Workbook

Sheet Main
B10: 2018-06-07
B12: Sheet No. | C12: Template Name | D12: Summary
B13: 1 | C13: Future Intra | D13: For Intraday trading in F&O segment
B14: 2 | C14: Cash Intra | D14: For Intraday trading in cash market segment
B15: 3 | C15: Mid-cap Intra | D15: For Intraday trading in Mid-cap stocks
B16: 4 | C16: Bulk Deals | D16: Reveals Bulk Deals carried on NSE & BSE
B17: 5 | C17: Call Tracker

Sheet Future Intra
M5: Back to Main Page
A6: FOR INTRA DAY TRADING | L6: =Main!B10 -> 2018-06-07
A9: Sr.no | B9: Sector | C9: Scrip | D9: CLOSE RATE | E9: Pivot Point | F9: Supports | I9: Resistances
B10: Sector | D10: Point | E10: Point | F10: S1 | G10: S2 | H10: S3 | I10: R1 | J10: R2 | K10: R3 | L10: HIGH | M10: LOW | N10: OI | O10: % Change in OI
A11: 1 | B11: Index | C11: BANKNIFTY | D11: 26391.50 | E11: 26325.02 | F11: 26200.03 | G11: 26008.57 | H11: 25883.58 | I11: 26516.48 | J11: 26641.47 | K11: 26832.93 | L11: 26450 | M11: 26133.55 | N11: 2577360 | O11: 1.62%
A12: 2 | B12: Index | C12: NIFTY | D12: 10686.25 | E12: 10654.08 | F12: 10607.17 | G12: 10528.08 | H12: 10481.17 | I12: 10733.17 | J12: 10780.08 | K12: 10859.17 | L12: 10701 | M12: 10575 | N12: 21390075 | O12: 1.35%
A13: 3 | B13: Index | C13: NIFTYCPSE | D13: 2463.55 | E13: 821.18 | F13: 1642.37 | G13: 821.18 | H13: 1642.37 | I13: 1642.37 | J13: 821.18 | K13: 1642.37 | L13: 0 | M13: 0 | N13: 0 | O13: 0.00%
A14: 4 | B14: Index | C14: NIFTYINFRA | D14: 3389.30 | E14: 1129.77 | F14: 2259.53 | G14: 1129.77 | H14: 2259.53 | I14: 2259.53 | J14: 1129.77 | K14: 2259.53 | L14: 0 | M14: 0 | N14: 0 | O14: 0.00%
A15: 5 | B15: Index | C15: NIFTYIT | D15: 13489.00 | E15: 13430.00 | F15: 13360.00 | G15: 13231.00 | H15: 13161.00 | I15: 13559.00 | J15: 13629.00 | K15: 13758.00 | L15: 13500 | M15: 13301 | N15: 46450 | O15: -5.30%
A16: 6 | B16: Index | C16: NIFTYMID50 | D16: 4900.00 | E16: 4900.00 | F16: 4900.00 | G16: 4900.00 | H16: 4900.00 | I16: 4900.00 | J16: 4900.00 | K16: 4900.00 | L16: 4900 | M16: 4900 | N16: 591800 | O16: 0.03%
A17: 7 | B17: Index | C17: NIFTYPSE | D17: 3915.30 | E17: 1305.10 | F17: 2610.20 | G17: 1305.10 | H17: 2610.20 | I17: 2610.20 | J17: 1305.10 | K17: 2610.20 | L17: 0 | M17: 0 | N17: 0 | O17: 0.00%
A18: 8 | B18: Cement | C18: ACC | D18: 1318.35 | E18: 1305.28 | F18: 1289.07 | G18: 1259.78 | H18: 1243.57 | I18: 1334.57 | J18: 1350.78 | K18: 1380.07 | L18: 1321.5 | M18: 1276 | N18: 3448800 | O18: -2.16%
A19: 9 | B19: Others | C19: ADANIENT | D19: 118.40 | E19: 117.52 | F19: 115.58 | G19: 112.77 | H19: 110.83 | I19: 120.33 | J19: 122.27 | K19: 125.08 | L19: 119.45 | M19: 114.7 | N19: 12652000 | O19: -0.28%
A20: 10 | B20: Others | C20: ADANIPORTS | D20: 377.55 | E20: 377.00 | F20: 374.70 | G20: 371.85 | H20: 369.55 | I20: 379.85 | J20: 382.15 | K20: 385.00 | L20: 379.3 | M20: 374.15 | N20: 11885000 | O20: 0.38%
A21: 11 | B21: Power | C21: ADANIPOWER | D21: 18.40 | E21: 18.15 | F21: 17.75 | G21: 17.10 | H21: 16.70 | I21: 18.80 | J21: 19.20 | K21: 19.85 | L21: 18.55 | M21: 17.5 | N21: 107520000 | O21: -1.52%
A22: 12 | B22: Pharma | C22: AJANTPHARM | D22: 916.25 | E22: 914.42 | F22: 906.83 | G22: 897.42 | H22: 889.83 | I22: 923.83 | J22: 931.42 | K22: 940.83 | L22: 922 | M22: 905 | N22: 1021000 | O22: 2.00%
A23: 13 | B23: Banking | C23: ALBK | D23: 43.40 | E23: 42.25 | F23: 40.60 | G23: 37.80 | H23: 36.15 | I23: 45.05 | J23: 46.70 | K23: 49.50 | L23: 43.9 | M23: 39.45 | N23: 15236000 | O23: -2.15%
A24: 14 | B24: Automobile | C24: AMARAJABAT | D24: 773.00 | E24: 764.75 | F24: 753.25 | G24: 733.50 | H24: 722.00 | I24: 784.50 | J24: 796.00 | K24: 815.75 | L24: 776.25 | M24: 745 | N24: 1721300 | O24: 5.58%
A25: 15 | B25: Cement | C25: AMBUJACEM | D25: 205.00 | E25: 204.25 | F25: 201.45 | G25: 197.90 | H25: 195.10 | I25: 207.80 | J25: 210.60 | K25: 214.15 | L25: 207.05 | M25: 200.7 | N25: 15227500 | O25: -2.79%
A26: 16 | B26: Banking | C26: ANDHRABANK | D26: 34.60 | E26: 34.22 | F26: 33.68 | G26: 32.77 | H26: 32.23 | I26: 35.13 | J26: 35.67 | K26: 36.58 | L26: 34.75 | M26: 33.3 | N26: 22271000 | O26: 1.08%
A27: 17 | B27: Others | C27: APOLLOHOSP | D27: 935.00 | E27: 938.80 | F27: 927.75 | G27: 920.50 | H27: 909.45 | I27: 946.05 | J27: 957.10 | K27: 964.35 | L27: 949.85 | M27: 931.55 | N27: 1258000 | O27: 1.00%
A28: 18 | B28: Automobile | C28: APOLLOTYRE | D28: 273.90 | E28: 272.20 | F28: 269.50 | G28: 265.10 | H28: 262.40 | I28: 276.60 | J28: 279.30 | K28: 283.70 | L28: 274.9 | M28: 267.8 | N28: 8859000 | O28: -2.09%
A29: 19 | B29: Textile | C29: ARVIND | D29: 395.65 | E29: 391.47 | F29: 385.58 | G29: 375.52 | H29: 369.63 | I29: 401.53 | J29: 407.42 | K29: 417.48 | L29: 397.35 | M29: 381.4 | N29: 5790000 | O29: -23.29%
A30: 20 | B30: Automobile | C30: ASHOKLEY | D30: 149.50 | E30: 148.27 | F30: 146.38 | G30: 143.27 | H30: 141.38 | I30: 151.38 | J30: 153.27 | K30: 156.38 | L30: 150.15 | M30: 145.15 | N30: 59330000 | O30: 0.03%
A31: 21 | B31: FMCG | C31: ASIANPAINT | D31: 1263.90 | E31: 1259.65 | F31: 1248.30 | G31: 1232.70 | H31: 1221.35 | I31: 1275.25 | J31: 1286.60 | K31: 1302.20 | L31: 1271 | M31: 1244.05 | N31: 5416200 | O31: 5.41%
A32: 22 | B32: Pharma | C32: AUROPHARMA | D32: 542.60 | E32: 539.63 | F32: 534.27 | G32: 525.93 | H32: 520.57 | I32: 547.97 | J32: 553.33 | K32: 561.67 | L32: 545 | M32: 531.3 | N32: 23250200 | O32: -0.12%
A33: 23 | B33: Banking | C33: AXISBANK | D33: 531.70 | E33: 531.03 | F33: 527.67 | G33: 523.63 | H33: 520.27 | I33: 535.07 | J33: 538.43 | K33: 542.47 | L33: 534.4 | M33: 527 | N33: 44128800 | O33: 1.55%
A34: 24 | B34: Automobile | C34: BAJAJ-AUTO | D34: 2900.30 | E34: 2897.45 | F34: 2843.65 | G34: 2787.00 | H34: 2733.20 | I34: 2954.10 | J34: 3007.90 | K34: 3064.55 | L34: 2951.25 | M34: 2840.8 | N34: 2638750 | O34: 8.67%
A35: 25 | B35: Others | C35: BAJAJFINSV | D35: 5943.35 | E35: 5899.18 | F35: 5838.47 | G35: 5733.58 | H35: 5672.87 | I35: 6004.07 | J35: 6064.78 | K35: 6169.67 | L35: 5959.9 | M35: 5794.3 | N35: 673250 | O35: 1.24%
A36: 26 | B36: Finance | C36: BAJFINANCE | D36: 2166.90 | E36: 2152.75 | F36: 2125.50 | G36: 2084.10 | H36: 2056.85 | I36: 2194.15 | J36: 2221.40 | K36: 2262.80 | L36: 2180 | M36: 2111.35 | N36: 4998500 | O36: 5.97%
A37: 27 | B37: Others | C37: BALKRISIND | D37: 1105.70 | E37: 1107.23 | F37: 1091.92 | G37: 1078.13 | H37: 1062.82 | I37: 1121.02 | J37: 1136.33 | K37: 1150.12 | L37: 1122.55 | M37: 1093.45 | N37: 1111200 | O37: 3.04%
A38: 28 | B38: Others | C38: BALRAMCHIN | D38: 67.40 | E38: 69.87 | F38: 63.88 | G38: 60.37 | H38: 54.38 | I38: 73.38 | J38: 79.37 | K38: 82.88 | L38: 75.85 | M38: 66.35 | N38: 18322500 | O38: 7.16%
A39: 29 | B39: Banking | C39: BANKBARODA | D39: 130.95 | E39: 129.92 | F39: 128.03 | G39: 125.12 | H39: 123.23 | I39: 132.83 | J39: 134.72 | K39: 137.63 | L39: 131.8 | M39: 127 | N39: 63336000 | O39: 3.67%
A40: 30 | B40: Banking | C40: BANKINDIA | D40: 96.40 | E40: 95.57 | F40: 93.98 | G40: 91.57 | H40: 89.98 | I40: 97.98 | J40: 99.57 | K40: 101.98 | L40: 97.15 | M40: 93.15 | N40: 27888000 | O40: 1.48%
A41: 31 | B41: FMCG | C41: BATAINDIA | D41: 755.05 | E41: 753.27 | F41: 748.38 | G41: 741.72 | H41: 736.83 | I41: 759.93 | J41: 764.82 | K41: 771.48 | L41: 758.15 | M41: 746.6 | N41: 2475000 | O41: 2.37%
A42: 32 | B42: Capital_Goods | C42: BEL | D42: 116.45 | E42: 115.50 | F42: 114.10 | G42: 111.75 | H42: 110.35 | I42: 117.85 | J42: 119.25 | K42: 121.60 | L42: 116.9 | M42: 113.15 | N42: 33189750 | O42: -3.02%
A43: 33 | B43: Infrastructure | C43: BEML | D43: 864.25 | E43: 863.03 | F43: 832.07 | G43: 799.88 | H43: 768.92 | I43: 895.22 | J43: 926.18 | K43: 958.37 | L43: 894 | M43: 830.85 | N43: 2181900 | O43: 5.35%
A44: 34 | B44: Others | C44: BERGEPAINT | D44: 282.65 | E44: 280.48 | F44: 276.97 | G44: 271.28 | H44: 267.77 | I44: 286.17 | J44: 289.68 | K44: 295.37 | L44: 284 | M44: 274.8 | N44: 2072400 | O44: 1.18%
A45: 35 | B45: Finance | C45: BHARATFIN | D45: 1174.60 | E45: 1166.75 | F45: 1156.25 | G45: 1137.90 | H45: 1127.40 | I45: 1185.10 | J45: 1195.60 | K45: 1213.95 | L45: 1177.25 | M45: 1148.4 | N45: 5870500 | O45: -0.14%
A46: 36 | B46: Automobile | C46: BHARATFORG | D46: 651.15 | E46: 645.28 | F46: 636.87 | G46: 622.58 | H46: 614.17 | I46: 659.57 | J46: 667.98 | K46: 682.27 | L46: 653.7 | M46: 631 | N46: 9796800 | O46: -0.50%
A47: 37 | B47: Telecom | C47: BHARTIARTL | D47: 381.25 | E47: 376.05 | F47: 369.20 | G47: 357.15 | H47: 350.30 | I47: 388.10 | J47: 394.95 | K47: 407.00 | L47: 382.9 | M47: 364 | N47: 47906000 | O47: 0.50%
A48: 38 | B48: Capital_Goods | C48: BHEL | D48: 74.75 | E48: 74.38 | F48: 73.67 | G48: 72.58 | H48: 71.87 | I48: 75.47 | J48: 76.18 | K48: 77.27 | L48: 75.1 | M48: 73.3 | N48: 51615000 | O48: -0.85%
A49: 39 | B49: Pharma | C49: BIOCON | D49: 609.35 | E49: 606.18 | F49: 594.52 | G49: 579.68 | H49: 568.02 | I49: 621.02 | J49: 632.68 | K49: 647.52 | L49: 617.85 | M49: 591.35 | N49: 10847700 | O49: -2.00%
A50: 40 | B50: Automobile | C50: BOSCHLTD | D50: 18940.95 | E50: 18580.30 | F50: 18110.65 | G50: 17280.35 | H50: 16810.70 | I50: 19410.60 | J50: 19880.25 | K50: 20710.55 | L50: 19049.95 | M50: 17750 | N50: 135255 | O50: 1.83%
A51: 41 | B51: Oil_Gas | C51: BPCL | D51: 407.95 | E51: 406.38 | F51: 403.52 | G51: 399.08 | H51: 396.22 | I51: 410.82 | J51: 413.68 | K51: 418.12 | L51: 409.25 | M51: 401.95 | N51: 8776800 | O51: 0.21%
A52: 42 | B52: FMCG | C52: BRITANNIA | D52: 5884.10 | E52: 5857.57 | F52: 5816.53 | G52: 5748.97 | H52: 5707.93 | I52: 5925.13 | J52: 5966.17 | K52: 6033.73 | L52: 5898.6 | M52: 5790 | N52: 764800 | O52: 3.05%
A53: 43 | B53: Pharma | C53: CADILAHC | D53: 351.65 | E53: 353.22 | F53: 345.18 | G53: 338.72 | H53: 330.68 | I53: 359.68 | J53: 367.72 | K53: 374.18 | L53: 361.25 | M53: 346.75 | N53: 9592000 | O53: 2.16%
A54: 44 | B54: Banking | C54: CANBK | D54: 261.90 | E54: 259.08 | F54: 254.87 | G54: 247.83 | H54: 243.62 | I54: 266.12 | J54: 270.33 | K54: 277.37 | L54: 263.3 | M54: 252.05 | N54: 13192800 | O54: 1.71%
A55: 45 | B55: Others | C55: CANFINHOME | D55: 362.95 | E55: 358.58 | F55: 351.17 | G55: 339.38 | H55: 331.97 | I55: 370.37 | J55: 377.78 | K55: 389.57 | L55: 366 | M55: 346.8 | N55: 4721250 | O55: 1.12%
A56: 46 | B56: Finance | C56: CAPF | D56: 562.75 | E56: 557.83 | F56: 545.67 | G56: 528.58 | H56: 516.42 | I56: 574.92 | J56: 587.08 | K56: 604.17 | L56: 570 | M56: 540.75 | N56: 8780800 | O56: -0.96%
A57: 47 | B57: Oil_Gas | C57: CASTROLIND | D57: 174.70 | E57: 173.67 | F57: 171.33 | G57: 167.97 | H57: 165.63 | I57: 177.03 | J57: 179.37 | K57: 182.73 | L57: 176 | M57: 170.3 | N57: 10570000 | O57: 0.59%
A58: 48 | B58: Automobile | C58: CEATLTD | D58: 1355.20 | E58: 1357.03 | F58: 1339.17 | G58: 1323.13 | H58: 1305.27 | I58: 1373.07 | J58: 1390.93 | K58: 1406.97 | L58: 1374.9 | M58: 1341 | N58: 1577450 | O58: 0.33%
A59: 49 | B59: Textile | C59: CENTURYTEX | D59: 909.15 | E59: 908.58 | F59: 895.82 | G59: 882.48 | H59: 869.72 | I59: 921.92 | J59: 934.68 | K59: 948.02 | L59: 921.35 | M59: 895.25 | N59: 6340950 | O59: -0.55%
A60: 50 | B60: Power | C60: CESC | D60: 1013.65 | E60: 1005.87 | F60: 991.73 | G60: 969.82 | H60: 955.68 | I60: 1027.78 | J60: 1041.92 | K60: 1063.83 | L60: 1020 | M60: 983.95 | N60: 5684800 | O60: -0.13%
A61: 51 | B61: Power | C61: CGPOWER | D61: 57.90 | E61: 57.42 | F61: 56.53 | G61: 55.17 | H61: 54.28 | I61: 58.78 | J61: 59.67 | K61: 61.03 | L61: 58.3 | M61: 56.05 | N61: 24564000 | O61: 2.50%
A62: 52 | B62: Others | C62: CHENNPETRO | D62: 296.10 | E62: 292.53 | F62: 287.07 | G62: 278.03 | H62: 272.57 | I62: 301.57 | J62: 307.03 | K62: 316.07 | L62: 298 | M62: 283.5 | N62: 2880000 | O62: -1.69%
A63: 53 | B63: Others | C63: CHOLAFIN | D63: 1567.60 | E63: 1557.50 | F63: 1540.10 | G63: 1512.60 | H63: 1495.20 | I63: 1585.00 | J63: 1602.40 | K63: 1629.90 | L63: 1574.9 | M63: 1530 | N63: 1055500 | O63: 2.18%
A64: 54 | B64: Pharma | C64: CIPLA | D64: 535.90 | E64: 536.60 | F64: 529.70 | G64: 523.50 | H64: 516.60 | I64: 542.80 | J64: 549.70 | K64: 555.90 | L64: 543.5 | M64: 530.4 | N64: 11681000 | O64: -2.32%
A65: 55 | B65: Others | C65: COALINDIA | D65: 291.85 | E65: 290.10 | F65: 287.35 | G65: 282.85 | H65: 280.10 | I65: 294.60 | J65: 297.35 | K65: 301.85 | L65: 292.85 | M65: 285.6 | N65: 18271000 | O65: 2.37%
A66: 56 | B66: FMCG | C66: COLPAL | D66: 1236.10 | E66: 1237.90 | F66: 1228.30 | G66: 1220.50 | H66: 1210.90 | I66: 1245.70 | J66: 1255.30 | K66: 1263.10 | L66: 1247.5 | M66: 1230.1 | N66: 1727600 | O66: -1.40%
A67: 57 | B67: Others | C67: CONCOR | D67: 1343.45 | E67: 1337.73 | F67: 1328.72 | G67: 1313.98 | H67: 1304.97 | I67: 1352.47 | J67: 1361.48 | K67: 1376.22 | L67: 1346.75 | M67: 1323 | N67: 1536875 | O67: -1.88%
A68: 58 | B68: Capital_Goods | C68: CUMMINSIND | D68: 682.55 | E68: 679.57 | F68: 674.78 | G68: 667.02 | H68: 662.23 | I68: 687.33 | J68: 692.12 | K68: 699.88 | L68: 684.35 | M68: 671.8 | N68: 859500 | O68: 1.12%
A69: 59 | B69: FMCG | C69: DABUR | D69: 380.65 | E69: 381.60 | F69: 376.20 | G69: 371.75 | H69: 366.35 | I69: 386.05 | J69: 391.45 | K69: 395.90 | L69: 387 | M69: 377.15 | N69: 14355000 | O69: 4.04%
A70: 60 | B70: Cement | C70: DALMIABHA | D70: 2554.00 | E70: 2572.15 | F70: 2499.40 | G70: 2444.80 | H70: 2372.05 | I70: 2626.75 | J70: 2699.50 | K70: 2754.10 | L70: 2644.9 | M70: 2517.55 | N70: 598500 | O70: 9.02%
A71: 61 | B71: Banking | C71: DCBBANK | D71: 180.05 | E71: 178.90 | F71: 176.45 | G71: 172.85 | H71: 170.40 | I71: 182.50 | J71: 184.95 | K71: 188.55 | L71: 181.35 | M71: 175.3 | N71: 7767000 | O71: 2.49%
A72: 62 | B72: Finance | C72: DHFL | D72: 604.70 | E72: 605.17 | F72: 598.63 | G72: 592.57 | H72: 586.03 | I72: 611.23 | J72: 617.77 | K72: 623.83 | L72: 611.7 | M72: 599.1 | N72: 29052000 | O72: -2.20%
A73: 63 | B73: Media | C73: DISHTV | D73: 73.05 | E73: 73.22 | F73: 72.33 | G73: 71.62 | H73: 70.73 | I73: 73.93 | J73: 74.82 | K73: 75.53 | L73: 74.1 | M73: 72.5 | N73: 45745000 | O73: -1.33%
A74: 64 | B74: Pharma | C74: DIVISLAB | D74: 1060.00 | E74: 1052.20 | F74: 1039.80 | G74: 1019.60 | H74: 1007.20 | I74: 1072.40 | J74: 1084.80 | K74: 1105.00 | L74: 1064.6 | M74: 1032 | N74: 3185600 | O74: -1.02%
A75: 65 | B75: Realty | C75: DLF | D75: 201.05 | E75: 200.52 | F75: 197.13 | G75: 193.22 | H75: 189.83 | I75: 204.43 | J75: 207.82 | K75: 211.73 | L75: 203.9 | M75: 196.6 | N75: 34747500 | O75: 1.33%
A76: 66 | B76: Pharma | C76: DRREDDY | D76: 1968.65 | E76: 1967.18 | F76: 1953.37 | G76: 1938.08 | H76: 1924.27 | I76: 1982.47 | J76: 1996.28 | K76: 2011.57 | L76: 1981 | M76: 1951.9 | N76: 4352000 | O76: 0.55%
A77: 67 | B77: Automobile | C77: EICHERMOT | D77: 30038.95 | E77: 29826.23 | F77: 29494.87 | G77: 28950.78 | H77: 28619.42 | I77: 30370.32 | J77: 30701.68 | K77: 31245.77 | L77: 30157.6 | M77: 29282.15 | N77: 201625 | O77: -2.29%
A78: 68 | B78: Infrastructure | C78: ENGINERSIN | D78: 132.15 | E78: 131.63 | F78: 129.57 | G78: 126.98 | H78: 124.92 | I78: 134.22 | J78: 136.28 | K78: 138.87 | L78: 133.7 | M78: 129.05 | N78: 9562000 | O78: -1.09%
A79: 69 | B79: Finance | C79: EQUITAS | D79: 154.80 | E79: 154.03 | F79: 152.12 | G79: 149.43 | H79: 147.52 | I79: 156.72 | J79: 158.63 | K79: 161.32 | L79: 155.95 | M79: 151.35 | N79: 21624000 | O79: -1.31%
A80: 70 | B80: Automobile | C80: ESCORTS | D80: 903.70 | E80: 900.68 | F80: 891.62 | G80: 879.53 | H80: 870.47 | I80: 912.77 | J80: 921.83 | K80: 933.92 | L80: 909.75 | M80: 888.6 | N80: 4766300 | O80: 2.15%
A81: 71 | B81: Automobile | C81: EXIDEIND | D81: 258.20 | E81: 255.90 | F81: 252.85 | G81: 247.50 | H81: 244.45 | I81: 261.25 | J81: 264.30 | K81: 269.65 | L81: 258.95 | M81: 250.55 | N81: 7148000 | O81: 0.17%
A82: 72 | B82: Banking | C82: FEDERALBNK | D82: 83.70 | E82: 83.22 | F82: 82.48 | G82: 81.27 | H82: 80.53 | I82: 84.43 | J82: 85.17 | K82: 86.38 | L82: 83.95 | M82: 82 | N82: 75399500 | O82: -1.02%
A83: 73 | B83: Oil_Gas | C83: GAIL | D83: 334.75 | E83: 334.87 | F83: 331.28 | G83: 327.82 | H83: 324.23 | I83: 338.33 | J83: 341.92 | K83: 345.38 | L83: 338.45 | M83: 331.4 | N83: 14535150 | O83: 1.00%
A84: 74 | B84: Pharma | C84: GLENMARK | D84: 537.30 | E84: 531.33 | F84: 522.67 | G84: 508.03 | H84: 499.37 | I84: 545.97 | J84: 554.63 | K84: 569.27 | L84: 540 | M84: 516.7 | N84: 4876600 | O84: 0.26%
A85: 75 | B85: Infrastructure | C85: GMRINFRA | D85: 16.30 | E85: 16.20 | F85: 15.85 | G85: 15.40 | H85: 15.05 | I85: 16.65 | J85: 17.00 | K85: 17.45 | L85: 16.55 | M85: 15.75 | N85: 271395000 | O85: -0.54%
A86: 76 | B86: Others | C86: GODFRYPHLP | D86: 734.75 | E86: 726.65 | F86: 714.40 | G86: 694.05 | H86: 681.80 | I86: 747.00 | J86: 759.25 | K86: 779.60 | L86: 738.9 | M86: 706.3 | N86: 522400 | O86: -0.44%
A87: 77 | B87: FMCG | C87: GODREJCP | D87: 1153.55 | E87: 1150.02 | F87: 1138.58 | G87: 1123.62 | H87: 1112.18 | I87: 1164.98 | J87: 1176.42 | K87: 1191.38 | L87: 1161.45 | M87: 1135.05 | N87: 2160000 | O87: 5.02%
A88: 78 | B88: FMCG | C88: GODREJIND | D88: 602.80 | E88: 603.47 | F88: 599.13 | G88: 595.47 | H88: 591.13 | I88: 607.13 | J88: 611.47 | K88: 615.13 | L88: 607.8 | M88: 599.8 | N88: 1714500 | O88: 0.44%
A89: 79 | B89: Pharma | C89: GRANULES | D89: 74.25 | E89: 73.75 | F89: 72.70 | G89: 71.15 | H89: 70.10 | I89: 75.30 | J89: 76.35 | K89: 77.90 | L89: 74.8 | M89: 72.2 | N89: 16395000 | O89: 1.08%
A90: 80 | B90: Cement | C90: GRASIM | D90: 1039.15 | E90: 1032.93 | F90: 1021.37 | G90: 1003.58 | H90: 992.02 | I90: 1050.72 | J90: 1062.28 | K90: 1080.07 | L90: 1044.5 | M90: 1015.15 | N90: 5328000 | O90: 0.89%
A91: 81 | B91: Others | C91: GSFC | D91: 111.90 | E91: 109.72 | F91: 107.03 | G91: 102.17 | H91: 99.48 | I91: 114.58 | J91: 117.27 | K91: 122.13 | L91: 112.4 | M91: 104.85 | N91: 16866000 | O91: -0.72%
A92: 82 | B92: Others | C92: HAVELLS | D92: 535.40 | E92: 532.45 | F92: 527.50 | G92: 519.60 | H92: 514.65 | I92: 540.35 | J92: 545.30 | K92: 553.20 | L92: 537.4 | M92: 524.55 | N92: 4743000 | O92: 3.18%
A93: 83 | B93: Others | C93: HCC | D93: 14.25 | E93: 14.50 | F93: 13.85 | G93: 13.45 | H93: 12.80 | I93: 14.90 | J93: 15.55 | K93: 15.95 | L93: 15.15 | M93: 14.1 | N93: 44883000 | O93: 5.34%
A94: 84 | B94: Technology | C94: HCLTECH | D94: 912.20 | E94: 907.72 | F94: 896.48 | G94: 880.77 | H94: 869.53 | I94: 923.43 | J94: 934.67 | K94: 950.38 | L94: 918.95 | M94: 892 | N94: 11454100 | O94: -0.56%
A95: 85 | B95: Finance | C95: HDFC | D95: 1861.05 | E95: 1855.57 | F95: 1846.73 | G95: 1832.42 | H95: 1823.58 | I95: 1869.88 | J95: 1878.72 | K95: 1893.03 | L95: 1864.4 | M95: 1841.25 | N95: 24899000 | O95: 0.08%
A96: 86 | B96: Banking | C96: HDFCBANK | D96: 2053.80 | E96: 2049.57 | F96: 2041.13 | G96: 2028.47 | H96: 2020.03 | I96: 2062.23 | J96: 2070.67 | K96: 2083.33 | L96: 2058 | M96: 2036.9 | N96: 23662500 | O96: -0.22%
A97: 88 | B97: Automobile | C97: HEROMOTOCO | D97: 3648.85 | E97: 3634.08 | F97: 3613.17 | G97: 3577.48 | H97: 3556.57 | I97: 3669.77 | J97: 3690.68 | K97: 3726.37 | L97: 3655 | M97: 3598.4 | N97: 1362000 | O97: 1.02%
A98: 89 | B98: Technology | C98: HEXAWARE | D98: 424.45 | E98: 416.10 | F98: 405.35 | G98: 386.25 | H98: 375.50 | I98: 435.20 | J98: 445.95 | K98: 465.05 | L98: 426.85 | M98: 397 | N98: 4633500 | O98: -6.14%
A99: 90 | B99: Metals | C99: HINDALCO | D99: 247.75 | E99: 246.02 | F99: 243.13 | G99: 238.52 | H99: 235.63 | I99: 250.63 | J99: 253.52 | K99: 258.13 | L99: 248.9 | M99: 241.4 | N99: 36988000 | O99: 3.24%
A100: 91 | B100: Oil_Gas | C100: HINDPETRO | D100: 309.90 | E100: 311.00 | F100: 306.30 | G100: 302.70 | H100: 298.00 | I100: 314.60 | J100: 319.30 | K100: 322.90 | L100: 315.7 | M100: 307.4 | N100: 25956000 | O100: -0.92%
A101: 92 | B101: FMCG | C101: HINDUNILVR | D101: 1567.60 | E101: 1564.25 | F101: 1554.80 | G101: 1542.00 | H101: 1532.55 | I101: 1577.05 | J101: 1586.50 | K101: 1599.30 | L101: 1573.7 | M101: 1551.45 | N101: 9365400 | O101: 1.59%
A102: 93 | B102: Metals | C102: HINDZINC | D102: 297.20 | E102: 294.52 | F102: 289.73 | G102: 282.27 | H102: 277.48 | I102: 301.98 | J102: 306.77 | K102: 314.23 | L102: 299.3 | M102: 287.05 | N102: 14393600 | O102: -8.26%
A103: 94 | B103: Finance | C103: IBULHSGFIN | D103: 1181.50 | E103: 1176.18 | F103: 1156.37 | G103: 1131.23 | H103: 1111.42 | I103: 1201.32 | J103: 1221.13 | K103: 1246.27 | L103: 1196 | M103: 1151.05 | N103: 14832800 | O103: -0.50%
A104: 95 | B104: Banking | C104: ICICIBANK | D104: 285.30 | E104: 285.08 | F104: 282.62 | G104: 279.93 | H104: 277.47 | I104: 287.77 | J104: 290.23 | K104: 292.92 | L104: 287.55 | M104: 282.4 | N104: 80066250 | O104: 0.62%
A105: 96 | B105: Others | C105: ICICIPRULI | D105: 405.00 | E105: 404.50 | F105: 400.50 | G105: 396.00 | H105: 392.00 | I105: 409.00 | J105: 413.00 | K105: 417.50 | L105: 408.5 | M105: 400 | N105: 4464200 | O105: 2.35%
A106: 97 | B106: Banking | C106: IDBI | D106: 57.40 | E106: 57.88 | F106: 56.57 | G106: 55.73 | H106: 54.42 | I106: 58.72 | J106: 60.03 | K106: 60.87 | L106: 59.2 | M106: 57.05 | N106: 61350000 | O106: 3.23%
A107: 98 | B107: Telecom | C107: IDEA | D107: 59.30 | E107: 58.15 | F107: 56.75 | G107: 54.20 | H107: 52.80 | I107: 60.70 | J107: 62.10 | K107: 64.65 | L107: 59.55 | M107: 55.6 | N107: 134449000 | O107: -2.15%
A108: 99 | B108: Finance | C108: IDFC | D108: 48.45 | E108: 48.05 | F108: 47.30 | G108: 46.15 | H108: 45.40 | I108: 49.20 | J108: 49.95 | K108: 51.10 | L108: 48.8 | M108: 46.9 | N108: 152407200 | O108: -0.60%
A109: 100 | B109: Banking | C109: IDFCBANK | D109: 41.25 | E109: 40.70 | F109: 39.65 | G109: 38.05 | H109: 37.00 | I109: 42.30 | J109: 43.35 | K109: 44.95 | L109: 41.75 | M109: 39.1 | N109: 198351000 | O109: -0.18%
A110: 101 | B110: Finance | C110: IFCI | D110: 16.25 | E110: 16.05 | F110: 15.75 | G110: 15.25 | H110: 14.95 | I110: 16.55 | J110: 16.85 | K110: 17.35 | L110: 16.35 | M110: 15.55 | N110: 67511000 | O110: -0.84%
A111: 102 | B111: Oil_Gas | C111: IGL | D111: 263.90 | E111: 261.77 | F111: 258.53 | G111: 253.17 | H111: 249.93 | I111: 267.13 | J111: 270.37 | K111: 275.73 | L111: 265 | M111: 256.4 | N111: 6759500 | O111: -4.69%
A112: 103 | B112: Cement | C112: INDIACEM | D112: 116.65 | E112: 115.55 | F112: 113.40 | G112: 110.15 | H112: 108.00 | I112: 118.80 | J112: 120.95 | K112: 124.20 | L112: 117.7 | M112: 112.3 | N112: 24937500 | O112: 0.86%
A113: 104 | B113: Banking | C113: INDIANB | D113: 337.20 | E113: 332.33 | F113: 326.07 | G113: 314.93 | H113: 308.67 | I113: 343.47 | J113: 349.73 | K113: 360.87 | L113: 338.6 | M113: 321.2 | N113: 3370000 | O113: 9.13%
A114: 105 | B114: Others | C114: INDIGO | D114: 1159.35 | E114: 1163.75 | F114: 1144.50 | G114: 1129.65 | H114: 1110.40 | I114: 1178.60 | J114: 1197.85 | K114: 1212.70 | L114: 1183 | M114: 1148.9 | N114: 5066400 | O114: 2.23%
A115: 106 | B115: Banking | C115: INDUSINDBK | D115: 1916.80 | E115: 1907.88 | F115: 1889.97 | G115: 1863.13 | H115: 1845.22 | I115: 1934.72 | J115: 1952.63 | K115: 1979.47 | L115: 1925.8 | M115: 1881.05 | N115: 7638300 | O115: -0.66%
A116: 107 | B116: Technology | C116: INFIBEAM | D116: 144.70 | E116: 147.25 | F116: 141.00 | G116: 137.30 | H116: 131.05 | I116: 150.95 | J116: 157.20 | K116: 160.90 | L116: 153.5 | M116: 143.55 | N116: 38524000 | O116: 1.43%
A117: 108 | B117: Telecom | C117: INFRATEL | D117: 293.25 | E117: 293.30 | F117: 291.10 | G117: 288.95 | H117: 286.75 | I117: 295.45 | J117: 297.65 | K117: 299.80 | L117: 295.5 | M117: 291.15 | N117: 6449800 | O117: -0.84%
A118: 109 | B118: Technology | C118: INFY | D118: 1210.75 | E118: 1205.88 | F118: 1197.77 | G118: 1184.78 | H118: 1176.67 | I118: 1218.87 | J118: 1226.98 | K118: 1239.97 | L118: 1214 | M118: 1192.9 | N118: 31060200 | O118: -1.19%
A119: 110 | B119: Oil_Gas | C119: IOC | D119: 173.60 | E119: 172.67 | F119: 171.33 | G119: 169.07 | H119: 167.73 | I119: 174.93 | J119: 176.27 | K119: 178.53 | L119: 174 | M119: 170.4 | N119: 36117000 | O119: -0.17%
A120: 111 | B120: Infrastructure | C120: IRB | D120: 235.85 | E120: 233.15 | F120: 228.85 | G120: 221.85 | H120: 217.55 | I120: 240.15 | J120: 244.45 | K120: 251.45 | L120: 237.45 | M120: 226.15 | N120: 18782500 | O120: -0.88%
A121: 112 | B121: FMCG | C121: ITC | D121: 271.25 | E121: 270.48 | F121: 269.37 | G121: 267.48 | H121: 266.37 | I121: 272.37 | J121: 273.48 | K121: 275.37 | L121: 271.6 | M121: 268.6 | N121: 79752000 | O121: -0.19%
A122: 113 | B122: Others | C122: JETAIRWAYS | D122: 404.75 | E122: 401.53 | F122: 396.02 | G122: 387.28 | H122: 381.77 | I122: 410.27 | J122: 415.78 | K122: 424.52 | L122: 407.05 | M122: 392.8 | N122: 7050000 | O122: 2.91%
A123: 114 | B123: Metals | C123: JINDALSTEL | D123: 236.25 | E123: 233.77 | F123: 229.03 | G123: 221.82 | H123: 217.08 | I123: 240.98 | J123: 245.72 | K123: 252.93 | L123: 238.5 | M123: 226.55 | N123: 31378500 | O123: 3.46%
A124: 115 | B124: Others | C124: JISLJALEQS | D124: 101.95 | E124: 100.88 | F124: 99.42 | G124: 96.88 | H124: 95.42 | I124: 103.42 | J124: 104.88 | K124: 107.42 | L124: 102.35 | M124: 98.35 | N124: 40077000 | O124: 1.50%
A125: 116 | B125: Realty | C125: JPASSOCIAT | D125: 14.25 | E125: 14.17 | F125: 13.83 | G125: 13.42 | H125: 13.08 | I125: 14.58 | J125: 14.92 | K125: 15.33 | L125: 14.5 | M125: 13.75 | N125: 185402000 | O125: 1.58%
A126: 117 | B126: Metals | C126: JSWSTEEL | D126: 339.55 | E126: 335.75 | F126: 331.00 | G126: 322.45 | H126: 317.70 | I126: 344.30 | J126: 349.05 | K126: 357.60 | L126: 340.5 | M126: 327.2 | N126: 64287000 | O126: 0.57%
A127: 118 | B127: Others | C127: JUBLFOOD | D127: 2643.10 | E127: 2616.72 | F127: 2585.18 | G127: 2527.27 | H127: 2495.73 | I127: 2674.63 | J127: 2706.17 | K127: 2764.08 | L127: 2648.25 | M127: 2558.8 | N127: 2377000 | O127: 6.48%
A128: 119 | B128: Others | C128: JUSTDIAL | D128: 534.35 | E128: 532.05 | F128: 516.25 | G128: 498.15 | H128: 482.35 | I128: 550.15 | J128: 565.95 | K128: 584.05 | L128: 547.85 | M128: 513.95 | N128: 3528000 | O128: 2.52%
A129: 120 | B129: Others | C129: KAJARIACER | D129: 524.80 | E129: 523.67 | F129: 518.38 | G129: 511.97 | H129: 506.68 | I129: 530.08 | J129: 535.37 | K129: 541.78 | L129: 528.95 | M129: 517.25 | N129: 1575400 | O129: -0.10%
A130: 121 | B130: Banking | C130: KOTAKBANK | D130: 1319.50 | E130: 1315.75 | F130: 1307.60 | G130: 1295.70 | H130: 1287.55 | I130: 1327.65 | J130: 1335.80 | K130: 1347.70 | L130: 1323.9 | M130: 1303.85 | N130: 14841600 | O130: -0.43%
A131: 122 | B131: Technology | C131: KPIT | D131: 266.25 | E131: 262.00 | F131: 255.60 | G131: 244.95 | H131: 238.55 | I131: 272.65 | J131: 279.05 | K131: 289.70 | L131: 268.4 | M131: 251.35 | N131: 7128000 | O131: -1.31%
A132: 123 | B132: Others | C132: KSCL | D132: 516.60 | E132: 513.22 | F132: 508.03 | G132: 499.47 | H132: 494.28 | I132: 521.78 | J132: 526.97 | K132: 535.53 | L132: 518.4 | M132: 504.65 | N132: 2034000 | O132: -1.17%
A133: 124 | B133: Banking | C133: KTKBANK | D133: 117.95 | E133: 117.12 | F133: 115.53 | G133: 113.12 | H133: 111.53 | I133: 119.53 | J133: 121.12 | K133: 123.53 | L133: 118.7 | M133: 114.7 | N133: 21563300 | O133: 0.62%
A134: 125 | B134: Finance | C134: L&TFH | D134: 167.45 | E134: 166.38 | F134: 164.62 | G134: 161.78 | H134: 160.02 | I134: 169.22 | J134: 170.98 | K134: 173.82 | L134: 168.15 | M134: 163.55 | N134: 29583000 | O134: 0.00%
A135: 126 | B135: Finance | C135: LICHSGFIN | D135: 489.10 | E135: 486.75 | F135: 481.20 | G135: 473.30 | H135: 467.75 | I135: 494.65 | J135: 500.20 | K135: 508.10 | L135: 492.3 | M135: 478.85 | N135: 12994300 | O135: 0.91%
A136: 127 | B136: Capital_Goods | C136: LT | D136: 1354.35 | E136: 1349.38 | F136: 1342.57 | G136: 1330.78 | H136: 1323.97 | I136: 1361.17 | J136: 1367.98 | K136: 1379.77 | L136: 1356.2 | M136: 1337.6 | N136: 12703500 | O136: -2.29%
A137: 128 | B137: Pharma | C137: LUPIN | D137: 772.45 | E137: 769.10 | F137: 760.20 | G137: 747.95 | H137: 739.05 | I137: 781.35 | J137: 790.25 | K137: 802.50 | L137: 778 | M137: 756.85 | N137: 12573100 | O137: -1.30%
A138: 129 | B138: Automobile | C138: M&M | D138: 917.80 | E138: 912.32 | F138: 904.63 | G138: 891.47 | H138: 883.78 | I138: 925.48 | J138: 933.17 | K138: 946.33 | L138: 920 | M138: 899.15 | N138: 14828000 | O138: 0.93%
A139: 130 | B139: Finance | C139: M&MFIN | D139: 479.25 | E139: 475.67 | F139: 469.63 | G139: 460.02 | H139: 453.98 | I139: 485.28 | J139: 491.32 | K139: 500.93 | L139: 481.7 | M139: 466.05 | N139: 8172500 | O139: 1.16%
A140: 131 | B140: Others | C140: MANAPPURAM | D140: 105.35 | E140: 104.55 | F140: 103.35 | G140: 101.35 | H140: 100.15 | I140: 106.55 | J140: 107.75 | K140: 109.75 | L140: 105.75 | M140: 102.55 | N140: 19968000 | O140: -2.06%
A141: 132 | B141: FMCG | C141: MARICO | D141: 335.90 | E141: 332.67 | F141: 327.83 | G141: 319.77 | H141: 314.93 | I141: 340.73 | J141: 345.57 | K141: 353.63 | L141: 337.5 | M141: 324.6 | N141: 5010200 | O141: 2.23%
A142: 133 | B142: Automobile | C142: MARUTI | D142: 8868.40 | E142: 8860.78 | F142: 8830.57 | G142: 8792.73 | H142: 8762.52 | I142: 8898.62 | J142: 8928.83 | K142: 8966.67 | L142: 8891 | M142: 8822.95 | N142: 2549100 | O142: -1.54%
A143: 134 | B143: FMCG | C143: MCDOWELL-N | D143: 3323.10 | E143: 3294.73 | F143: 3254.62 | G143: 3186.13 | H143: 3146.02 | I143: 3363.22 | J143: 3403.33 | K143: 3471.82 | L143: 3334.85 | M143: 3226.25 | N143: 2451000 | O143: 1.52%
A144: 135 | B144: Others | C144: MCX | D144: 829.45 | E144: 822.62 | F144: 810.83 | G144: 792.22 | H144: 780.43 | I144: 841.23 | J144: 853.02 | K144: 871.63 | L144: 834.4 | M144: 804 | N144: 3367000 | O144: 1.38%
A145: 136 | B145: Finance | C145: MFSL | D145: 466.15 | E145: 463.60 | F145: 456.75 | G145: 447.35 | H145: 440.50 | I145: 473.00 | J145: 479.85 | K145: 489.25 | L145: 470.45 | M145: 454.2 | N145: 2851800 | O145: 0.71%
A146: 137 | B146: Others | C146: MGL | D146: 815.25 | E146: 812.50 | F146: 807.30 | G146: 799.35 | H146: 794.15 | I146: 820.45 | J146: 825.65 | K146: 833.60 | L146: 817.7 | M146: 804.55 | N146: 2245800 | O146: 0.84%
A147: 138 | B147: Technology | C147: MINDTREE | D147: 1018.30 | E147: 1005.47 | F147: 986.98 | G147: 955.67 | H147: 937.18 | I147: 1036.78 | J147: 1055.27 | K147: 1086.58 | L147: 1023.95 | M147: 974.15 | N147: 3567600 | O147: 5.02%
A148: 139 | B148: Automobile | C148: MOTHERSUMI | D148: 312.20 | E148: 311.55 | F148: 308.60 | G148: 305.00 | H148: 302.05 | I148: 315.15 | J148: 318.10 | K148: 321.70 | L148: 314.5 | M148: 307.95 | N148: 13707200 | O148: 1.32%
A149: 140 | B149: Automobile | C149: MRF | D149: 74699.35 | E149: 74451.92 | F149: 73849.48 | G149: 72999.62 | H149: 72397.18 | I149: 75301.78 | J149: 75904.22 | K149: 76754.08 | L149: 75054.35 | M149: 73602.05 | N149: 30215 | O149: 1.73%
A150: 141 | B150: Others | C150: MRPL | D150: 90.50 | E150: 90.40 | F150: 89.10 | G150: 87.70 | H150: 86.40 | I150: 91.80 | J150: 93.10 | K150: 94.50 | L150: 91.7 | M150: 89 | N150: 5742000 | O150: 0.16%
A151: 142 | B151: Finance | C151: MUTHOOTFIN | D151: 381.75 | E151: 382.48 | F151: 378.72 | G151: 375.68 | H151: 371.92 | I151: 385.52 | J151: 389.28 | K151: 392.32 | L151: 386.25 | M151: 379.45 | N151: 2517000 | O151: 9.53%
A152: 143 | B152: Others | C152: NATIONALUM | D152: 72.05 | E152: 71.08 | F152: 69.47 | G152: 66.88 | H152: 65.27 | I152: 73.67 | J152: 75.28 | K152: 77.87 | L152: 72.7 | M152: 68.5 | N152: 38960000 | O152: -5.38%
A153: 144 | B153: Others | C153: NBCC | D153: 87.15 | E153: 86.60 | F153: 85.45 | G153: 83.75 | H153: 82.60 | I153: 88.30 | J153: 89.45 | K153: 91.15 | L153: 87.75 | M153: 84.9 | N153: 18954000 | O153: -0.25%
A154: 145 | B154: Infrastructure | C154: NCC | D154: 107.70 | E154: 107.67 | F154: 104.08 | G154: 100.47 | H154: 96.88 | I154: 111.28 | J154: 114.87 | K154: 118.48 | L154: 111.25 | M154: 104.05 | N154: 45528000 | O154: 17.39%
A155: 146 | B155: Others | C155: NESTLEIND | D155: 9796.95 | E155: 9729.53 | F155: 9632.57 | G155: 9468.18 | H155: 9371.22 | I155: 9893.92 | J155: 9990.88 | K155: 10155.27 | L155: 9826.5 | M155: 9565.15 | N155: 286000 | O155: 1.96%
A156: 147 | B156: Power | C156: NHPC | D156: 26.55 | E156: 26.40 | F156: 26.20 | G156: 25.85 | H156: 25.65 | I156: 26.75 | J156: 26.95 | K156: 27.30 | L156: 26.6 | M156: 26.05 | N156: 28107000 | O156: -0.19%
A157: 148 | B157: Technology | C157: NIITTECH | D157: 1053.85 | E157: 1031.25 | F157: 997.70 | G157: 941.55 | H157: 908.00 | I157: 1087.40 | J157: 1120.95 | K157: 1177.10 | L157: 1064.8 | M157: 975.1 | N157: 1609500 | O157: 10.33%
A158: 149 | B158: Metals | C158: NMDC | D158: 114.75 | E158: 113.78 | F158: 112.57 | G158: 110.38 | H158: 109.17 | I158: 115.97 | J158: 117.18 | K158: 119.37 | L158: 115 | M158: 111.6 | N158: 26460000 | O158: -0.05%
A159: 150 | B159: Power | C159: NTPC | D159: 162.80 | E159: 162.18 | F159: 161.27 | G159: 159.73 | H159: 158.82 | I159: 163.72 | J159: 164.63 | K159: 166.17 | L159: 163.1 | M159: 160.65 | N159: 44292000 | O159: -1.20%
A160: 151 | B160: Technology | C160: OFSS | D160: 3679.40 | E160: 3656.43 | F160: 3625.87 | G160: 3572.33 | H160: 3541.77 | I160: 3709.97 | J160: 3740.53 | K160: 3794.07 | L160: 3687 | M160: 3602.9 | N160: 77850 | O160: 4.22%
A161: 152 | B161: Oil_Gas | C161: OIL | D161: 217.95 | E161: 217.53 | F161: 215.77 | G161: 213.58 | H161: 211.82 | I161: 219.72 | J161: 221.48 | K161: 223.67 | L161: 219.3 | M161: 215.35 | N161: 2749791 | O161: 1.51%
A162: 153 | B162: Oil_Gas | C162: ONGC | D162: 171.35 | E162: 171.45 | F162: 170.05 | G162: 168.75 | H162: 167.35 | I162: 172.75 | J162: 174.15 | K162: 175.45 | L162: 172.85 | M162: 170.15 | N162: 45423750 | O162: -0.58%
A163: 154 | B163: Banking | C163: ORIENTBANK | D163: 78.55 | E163: 77.90 | F163: 76.60 | G163: 74.65 | H163: 73.35 | I163: 79.85 | J163: 81.15 | K163: 83.10 | L163: 79.2 | M163: 75.95 | N163: 14364000 | O163: -2.33%
A164: 155 | B164: Textile | C164: PAGEIND | D164: 24952.60 | E164: 24605.85 | F164: 24146.90 | G164: 23341.20 | H164: 22882.25 | I164: 25411.55 | J164: 25870.50 | K164: 26676.20 | L164: 25064.8 | M164: 23800.15 | N164: 54425 | O164: 2.21%
A165: 156 | B165: Others | C165: PCJEWELLER | D165: 134.75 | E165: 132.35 | F165: 127.05 | G165: 119.35 | H165: 114.05 | I165: 140.05 | J165: 145.35 | K165: 153.05 | L165: 137.65 | M165: 124.65 | N165: 10830000 | O165: 4.49%
A166: 157 | B166: Pharma | C166: PEL | D166: 2401.75 | E166: 2376.97 | F166: 2336.93 | G166: 2272.12 | H166: 2232.08 | I166: 2441.78 | J166: 2481.82 | K166: 2546.63 | L166: 2417 | M166: 2312.15 | N166: 2193124 | O166: -0.11%
A167: 158 | B167: Oil_Gas | C167: PETRONET | D167: 218.85 | E167: 218.57 | F167: 217.48 | G167: 216.12 | H167: 215.03 | I167: 219.93 | J167: 221.02 | K167: 222.38 | L167: 219.65 | M167: 217.2 | N167: 17130000 | O167: 1.03%
A168: 159 | B168: Finance | C168: PFC | D168: 81.10 | E168: 79.88 | F168: 78.27 | G168: 75.43 | H168: 73.82 | I168: 82.72 | J168: 84.33 | K168: 87.17 | L168: 81.5 | M168: 77.05 | N168: 99870000 | O168: -0.35%
A169: 160 | B169: FMCG | C169: PIDILITIND | D169: 1089.35 | E169: 1087.52 | F169: 1076.83 | G169: 1064.32 | H169: 1053.63 | I169: 1100.03 | J169: 1110.72 | K169: 1123.23 | L169: 1098.2 | M169: 1075 | N169: 3597000 | O169: 4.99%
A170: 161 | B170: Banking | C170: PNB | D170: 85.10 | E170: 84.53 | F170: 83.12 | G170: 81.13 | H170: 79.72 | I170: 86.52 | J170: 87.93 | K170: 89.92 | L170: 85.95 | M170: 82.55 | N170: 69580000 | O170: 0.41%
A171: 162 | B171: Power | C171: POWERGRID | D171: 200.75 | E171: 199.55 | F171: 197.70 | G171: 194.65 | H171: 192.80 | I171: 202.60 | J171: 204.45 | K171: 207.50 | L171: 201.4 | M171: 196.5 | N171: 55704000 | O171: -1.41%
A172: 163 | B172: Power | C172: PTC | D172: 81.45 | E172: 80.98 | F172: 80.07 | G172: 78.68 | H172: 77.77 | I172: 82.37 | J172: 83.28 | K172: 84.67 | L172: 81.9 | M172: 79.6 | N172: 21528000 | O172: 0.04%
A173: 164 | B173: Others | C173: PVR | D173: 1315.20 | E173: 1308.60 | F173: 1298.05 | G173: 1280.90 | H173: 1270.35 | I173: 1325.75 | J173: 1336.30 | K173: 1353.45 | L173: 1319.15 | M173: 1291.45 | N173: 1197200 | O173: 1.70%
A174: 165 | B174: Cement | C174: RAMCOCEM | D174: 748.10 | E174: 743.83 | F174: 734.87 | G174: 721.63 | H174: 712.67 | I174: 757.07 | J174: 766.03 | K174: 779.27 | L174: 752.8 | M174: 730.6 | N174: 1048000 | O174: 2.58%
A175: 166 | B175: Others | C175: RAYMOND | D175: 981.20 | E175: 971.35 | F175: 958.30 | G175: 935.40 | H175: 922.35 | I175: 994.25 | J175: 1007.30 | K175: 1030.20 | L175: 984.4 | M175: 948.45 | N175: 4897600 | O175: 0.00%
A176: 167 | B176: Banking | C176: RBLBANK | D176: 517.90 | E176: 516.20 | F176: 512.40 | G176: 506.90 | H176: 503.10 | I176: 521.70 | J176: 525.50 | K176: 531.00 | L176: 520 | M176: 510.7 | N176: 3692800 | O176: -3.20%
A177: 168 | B177: Telecom | C177: RCOM | D177: 16.10 | E177: 15.63 | F177: 14.57 | G177: 13.03 | H177: 11.97 | I177: 17.17 | J177: 18.23 | K177: 19.77 | L177: 16.7 | M177: 14.1 | N177: 93296000 | O177: 16.22%
A178: 169 | B178: Power | C178: RECLTD | D178: 111.00 | E178: 110.08 | F178: 108.77 | G178: 106.53 | H178: 105.22 | I178: 112.32 | J178: 113.63 | K178: 115.87 | L178: 111.4 | M178: 107.85 | N178: 40362000 | O178: -0.66%
A179: 170 | B179: Finance | C179: RELCAPITAL | D179: 398.80 | E179: 396.33 | F179: 390.52 | G179: 382.23 | H179: 376.42 | I179: 404.62 | J179: 410.43 | K179: 418.72 | L179: 402.15 | M179: 388.05 | N179: 9639000 | O179: 0.16%
A180: 171 | B180: Oil_Gas | C180: RELIANCE | D180: 950.35 | E180: 946.85 | F180: 942.00 | G180: 933.65 | H180: 928.80 | I180: 955.20 | J180: 960.05 | K180: 968.40 | L180: 951.7 | M180: 938.5 | N180: 41409000 | O180: 0.43%
A181: 172 | B181: Power | C181: RELINFRA | D181: 428.85 | E181: 424.77 | F181: 419.18 | G181: 409.52 | H181: 403.93 | I181: 434.43 | J181: 440.02 | K181: 449.68 | L181: 430.35 | M181: 415.1 | N181: 6181500 | O181: -1.59%
A182: 173 | B182: Others | C182: REPCOHOME | D182: 550.40 | E182: 548.70 | F182: 531.40 | G182: 512.40 | H182: 495.10 | I182: 567.70 | J182: 585.00 | K182: 604.00 | L182: 566 | M182: 529.7 | N182: 686700 | O182: 15.78%
A183: 174 | B183: Power | C183: RPOWER | D183: 34.25 | E183: 33.98 | F183: 33.57 | G183: 32.88 | H183: 32.47 | I183: 34.67 | J183: 35.08 | K183: 35.77 | L183: 34.4 | M183: 33.3 | N183: 52494000 | O183: -1.13%
A184: 175 | B184: Metals | C184: SAIL | D184: 77.70 | E184: 77.08 | F184: 76.27 | G184: 74.83 | H184: 74.02 | I184: 78.52 | J184: 79.33 | K184: 80.77 | L184: 77.9 | M184: 75.65 | N184: 93636000 | O184: 1.67%
A185: 176 | B185: Banking | C185: SBIN | D185: 270.80 | E185: 268.67 | F185: 265.53 | G185: 260.27 | H185: 257.13 | I185: 273.93 | J185: 277.07 | K185: 282.33 | L185: 271.8 | M185: 263.4 | N185: 76068000 | O185: 3.52%
A186: 177 | B186: Cement | C186: SHREECEM | D186: 16228.80 | E186: 16204.62 | F186: 16089.23 | G186: 15949.67 | H186: 15834.28 | I186: 16344.18 | J186: 16459.57 | K186: 16599.13 | L186: 16320 | M186: 16065.05 | N186: 68050 | O186: 2.10%
A187: 178 | B187: Capital_Goods | C187: SIEMENS | D187: 994.20 | E187: 982.53 | F187: 963.57 | G187: 932.93 | H187: 913.97 | I187: 1013.17 | J187: 1032.13 | K187: 1062.77 | L187: 1001.5 | M187: 951.9 | N187: 1218500 | O187: -1.93%
A188: 179 | B188: Banking | C188: SOUTHBANK | D188: 24.15 | E188: 23.85 | F188: 23.50 | G188: 22.85 | H188: 22.50 | I188: 24.50 | J188: 24.85 | K188: 25.50 | L188: 24.2 | M188: 23.2 | N188: 149499051 | O188: -0.66%
A189: 180 | B189: Others | C189: SREINFRA | D189: 75.10 | E189: 74.02 | F189: 72.18 | G189: 69.27 | H189: 67.43 | I189: 76.93 | J189: 78.77 | K189: 81.68 | L189: 75.85 | M189: 71.1 | N189: 17538000 | O189: -0.60%
A190: 181 | B190: Textile | C190: SRF | D190: 1902.30 | E190: 1895.92 | F190: 1878.83 | G190: 1855.37 | H190: 1838.28 | I190: 1919.38 | J190: 1936.47 | K190: 1959.93 | L190: 1913 | M190: 1872.45 | N190: 442000 | O190: -3.07%
A191: 182 | B191: Finance | C191: SRTRANSFIN | D191: 1436.85 | E191: 1421.97 | F191: 1400.98 | G191: 1365.12 | H191: 1344.13 | I191: 1457.83 | J191: 1478.82 | K191: 1514.68 | L191: 1442.95 | M191: 1386.1 | N191: 3762600 | O191: 0.82%
A192: 183 | B192: Pharma | C192: STAR | D192: 359.15 | E192: 360.12 | F192: 352.28 | G192: 345.42 | H192: 337.58 | I192: 366.98 | J192: 374.82 | K192: 381.68 | L192: 367.95 | M192: 353.25 | N192: 2927600 | O192: 4.78%
A193: 184 | B193: Pharma | C193: SUNPHARMA | D193: 490.80 | E193: 486.18 | F193: 479.17 | G193: 467.53 | H193: 460.52 | I193: 497.82 | J193: 504.83 | K193: 516.47 | L193: 493.2 | M193: 474.55 | N193: 56342000 | O193: -0.46%
A194: 185 | B194: Media | C194: SUNTV | D194: 906.55 | E194: 911.43 | F194: 895.87 | G194: 885.18 | H194: 869.62 | I194: 922.12 | J194: 937.68 | K194: 948.37 | L194: 927 | M194: 900.75 | N194: 4736000 | O194: 3.75%
A195: 186 | B195: Power | C195: SUZLON | D195: 7.95 | E195: 7.92 | F195: 7.78 | G195: 7.62 | H195: 7.48 | I195: 8.08 | J195: 8.22 | K195: 8.38 | L195: 8.05 | M195: 7.75 | N195: 298340000 | O195: 0.75%
A196: 187 | B196: Banking | C196: SYNDIBANK | D196: 48.95 | E196: 48.35 | F196: 47.45 | G196: 45.95 | H196: 45.05 | I196: 49.85 | J196: 50.75 | K196: 52.25 | L196: 49.25 | M196: 46.85 | N196: 25776000 | O196: 0.63%
A197: 188 | B197: Fertilisers | C197: TATACHEM | D197: 729.10 | E197: 728.32 | F197: 723.08 | G197: 717.07 | H197: 711.83 | I197: 734.33 | J197: 739.57 | K197: 745.58 | L197: 733.55 | M197: 722.3 | N197: 3763500 | O197: -10.30%
A198: 189 | B198: Telecom | C198: TATACOMM | D198: 607.60 | E198: 606.47 | F198: 602.13 | G198: 596.67 | H198: 592.33 | I198: 611.93 | J198: 616.27 | K198: 621.73 | L198: 610.8 | M198: 601 | N198: 4000800 | O198: -0.64%
A199: 190 | B199: Technology | C199: TATAELXSI | D199: 1193.65 | E199: 1178.08 | F199: 1158.17 | G199: 1122.68 | H199: 1102.77 | I199: 1213.57 | J199: 1233.48 | K199: 1268.97 | L199: 1198 | M199: 1142.6 | N199: 1679200 | O199: -6.63%
A200: 191 | B200: FMCG | C200: TATAGLOBAL | D200: 263.00 | E200: 261.75 | F200: 259.60 | G200: 256.20 | H200: 254.05 | I200: 265.15 | J200: 267.30 | K200: 270.70 | L200: 263.9 | M200: 258.35 | N200: 15547500 | O200: -4.23%
A201: 192 | B201: Automobile | C201: TATAMOTORS | D201: 296.80 | E201: 293.73 | F201: 289.52 | G201: 282.23 | H201: 278.02 | I201: 301.02 | J201: 305.23 | K201: 312.52 | L201: 297.95 | M201: 286.45 | N201: 90543000 | O201: -2.76%
A202: 193 | B202: Automobile | C202: TATAMTRDVR | D202: 175.75 | E202: 175.72 | F202: 172.18 | G202: 168.62 | H202: 165.08 | I202: 179.28 | J202: 182.82 | K202: 186.38 | L202: 179.25 | M202: 172.15 | N202: 25457500 | O202: -2.23%
A203: 194 | B203: Power | C203: TATAPOWER | D203: 78.45 | E203: 78.63 | F203: 77.42 | G203: 76.38 | H203: 75.17 | I203: 79.67 | J203: 80.88 | K203: 81.92 | L203: 79.85 | M203: 77.6 | N203: 42039000 | O203: 1.99%
A204: 195 | B204: Metals | C204: TATASTEEL | D204: 582.30 | E204: 579.27 | F204: 574.53 | G204: 566.77 | H204: 562.03 | I204: 587.03 | J204: 591.77 | K204: 599.53 | L204: 584 | M204: 571.5 | N204: 29820466 | O204: 0.22%
A205: 196 | B205: Technology | C205: TCS | D205: 1733.65 | E205: 1731.63 | F205: 1723.27 | G205: 1712.88 | H205: 1704.52 | I205: 1742.02 | J205: 1750.38 | K205: 1760.77 | L205: 1740 | M205: 1721.25 | N205: 11484500 | O205: 1.58%
A206: 197 | B206: Technology | C206: TECHM | D206: 695.25 | E206: 696.13 | F206: 686.27 | G206: 677.28 | H206: 667.42 | I206: 705.12 | J206: 714.98 | K206: 723.97 | L206: 706 | M206: 687.15 | N206: 14311200 | O206: 2.21%
... 35 more rows

Sheet Cash Intra
M5: Back to Main Page
A6: FOR INTRA DAY TRADING | K6: =Main!B10 -> 2018-06-07
A8: Sr.no | B8: Scrip | C8: CLOSE RATE | D8: Pivot Point | E8: Supports | H8: Resistances
C9: Point | E9: S1 | F9: S2 | G9: S3 | H9: R1 | I9: R2 | J9: R3 | K9: HIGH | L9: LOW | M9: Total Trade Quanity in Lakhs
A10: 1 | B10: Nifty 50 | C10: 10684.65 | D10: 10656.83 | E10: 10615.32 | F10: 10545.98 | G10: 10504.47 | H10: 10726.17 | I10: 10767.68 | J10: 10837.02 | K10: 10698.35 | L10: 10587.5
A11: 2 | B11: Nifty Bank | C11: 26367.6 | D11: 26313.53 | E11: 26201.87 | F11: 26036.13 | G11: 25924.47 | H11: 26479.27 | I11: 26590.93 | J11: 26756.67 | K11: 26425.2 | L11: 26147.8
A12: 3 | B12: Nifty CPSE | C12: 2367.6 | D12: 2361.85 | E12: 2351.35 | F12: 2335.10 | G12: 2324.60 | H12: 2378.10 | I12: 2388.60 | J12: 2404.85 | K12: 2372.35 | L12: 2345.6
A13: 4 | B13: Nifty Infra | C13: 3252.95 | D13: 3236.57 | E13: 3216.28 | F13: 3179.62 | G13: 3159.33 | H13: 3273.23 | I13: 3293.52 | J13: 3330.18 | K13: 3256.85 | L13: 3199.9
A14: 5 | B14: Nifty IT | C14: 13528.8 | D14: 13479.42 | E14: 13404.58 | F14: 13280.37 | G14: 13205.53 | H14: 13603.63 | I14: 13678.47 | J14: 13802.68 | K14: 13554.25 | L14: 13355.2
A15: 6 | B15: Nifty PSE | C15: 3759.4 | D15: 3749.70 | E15: 3733.90 | F15: 3708.40 | G15: 3692.60 | H15: 3775.20 | I15: 3791.00 | J15: 3816.50 | K15: 3765.5 | L15: 3724.2
A16: 7 | B16: Nifty Midcap 50 | C16: 4924.7 | D16: 4898.70 | E16: 4861.10 | F16: 4797.50 | G16: 4759.90 | H16: 4962.30 | I16: 4999.90 | J16: 5063.50 | K16: 4936.3 | L16: 4835.1
A17: 8 | B17: ABB | C17: 1196.4 | D17: 1183.12 | E17: 1166.23 | F17: 1136.07 | G17: 1119.18 | H17: 1213.28 | I17: 1230.17 | J17: 1260.33 | K17: 1200 | L17: 1152.95 | M17: 0.51555
A18: 9 | B18: ACC | C18: 1315.95 | D18: 1301.92 | E18: 1284.53 | F18: 1253.12 | G18: 1235.73 | H18: 1333.33 | I18: 1350.72 | J18: 1382.13 | K18: 1319.3 | L18: 1270.5 | M18: 5.92872
A19: 10 | B19: AIAENG | C19: 1549.85 | D19: 1553.05 | E19: 1541.80 | F19: 1533.75 | G19: 1522.50 | H19: 1561.10 | I19: 1572.35 | J19: 1580.40 | K19: 1564.3 | L19: 1545 | M19: 0.17562
A20: 11 | B20: AUBANK | C20: 698.7 | D20: 695.80 | E20: 686.90 | F20: 675.10 | G20: 666.20 | H20: 707.60 | I20: 716.50 | J20: 728.30 | K20: 704.7 | L20: 684 | M20: 0.69205
A21: 12 | B21: ADANIENT | C21: 118.25 | D21: 117.45 | E21: 115.25 | F21: 112.25 | G21: 110.05 | H21: 120.45 | I21: 122.65 | J21: 125.65 | K21: 119.65 | L21: 114.45 | M21: 40.1238
A22: 13 | B22: ADANIPORTS | C22: 375.8 | D22: 375.55 | E22: 373.60 | F22: 371.40 | G22: 369.45 | H22: 377.75 | I22: 379.70 | J22: 381.90 | K22: 377.5 | L22: 373.35 | M22: 39.27114
A23: 14 | B23: ADANIPOWER | C23: 18.25 | D23: 18.03 | E23: 17.62 | F23: 16.98 | G23: 16.57 | H23: 18.67 | I23: 19.08 | J23: 19.72 | K23: 18.45 | L23: 17.4 | M23: 199.60969
A24: 15 | B24: ABFRL | C24: 142.35 | D24: 141.23 | E24: 139.47 | F24: 136.58 | G24: 134.82 | H24: 144.12 | I24: 145.88 | J24: 148.77 | K24: 143 | L24: 138.35 | M24: 2.209
A25: 16 | B25: AJANTPHARM | C25: 911.6 | D25: 910.12 | E25: 901.98 | F25: 892.37 | G25: 884.23 | H25: 919.73 | I25: 927.87 | J25: 937.48 | K25: 918.25 | L25: 900.5 | M25: 1.62854
A26: 17 | B26: ALKEM | C26: 1946.4 | D26: 1934.45 | E26: 1913.95 | F26: 1881.50 | G26: 1861.00 | H26: 1966.90 | I26: 1987.40 | J26: 2019.85 | K26: 1954.95 | L26: 1902 | M26: 0.10912
A27: 18 | B27: AMARAJABAT | C27: 774.45 | D27: 773.28 | E27: 764.67 | F27: 754.88 | G27: 746.27 | H27: 783.07 | I27: 791.68 | J27: 801.47 | K27: 781.9 | L27: 763.5 | M27: 4.53243
A28: 19 | B28: AMBUJACEM | C28: 204.15 | D28: 203.80 | E28: 200.80 | F28: 197.45 | G28: 194.45 | H28: 207.15 | I28: 210.15 | J28: 213.50 | K28: 206.8 | L28: 200.45 | M28: 28.849
A29: 20 | B29: APOLLOHOSP | C29: 930.1 | D29: 935.12 | E29: 922.58 | F29: 915.07 | G29: 902.53 | H29: 942.63 | I29: 955.17 | J29: 962.68 | K29: 947.65 | L29: 927.6 | M29: 2.51767
A30: 21 | B30: APOLLOTYRE | C30: 273.4 | D30: 271.52 | E30: 268.53 | F30: 263.67 | G30: 260.68 | H30: 276.38 | I30: 279.37 | J30: 284.23 | K30: 274.5 | L30: 266.65 | M30: 22.71168
A31: 22 | B31: ARVIND | C31: 394.95 | D31: 390.65 | E31: 384.30 | F31: 373.65 | G31: 367.30 | H31: 401.30 | I31: 407.65 | J31: 418.30 | K31: 397 | L31: 380 | M31: 20.95338
A32: 23 | B32: ASHOKLEY | C32: 149.05 | D32: 147.82 | E32: 145.73 | F32: 142.42 | G32: 140.33 | H32: 151.13 | I32: 153.22 | J32: 156.53 | K32: 149.9 | L32: 144.5 | M32: 137.74065
A33: 24 | B33: ASIANPAINT | C33: 1262.8 | D33: 1259.58 | E33: 1248.27 | F33: 1233.73 | G33: 1222.42 | H33: 1274.12 | I33: 1285.43 | J33: 1299.97 | K33: 1270.9 | L33: 1245.05 | M33: 12.11557
A34: 25 | B34: AUROPHARMA | C34: 540.85 | D34: 538.12 | E34: 532.73 | F34: 524.62 | G34: 519.23 | H34: 546.23 | I34: 551.62 | J34: 559.73 | K34: 543.5 | L34: 530 | M34: 14.4926
A35: 26 | B35: DMART | C35: 1519.55 | D35: 1494.72 | E35: 1459.43 | F35: 1399.32 | G35: 1364.03 | H35: 1554.83 | I35: 1590.12 | J35: 1650.23 | K35: 1530 | L35: 1434.6 | M35: 11.61863
A36: 27 | B36: AXISBANK | C36: 531.4 | D36: 530.60 | E36: 527.40 | F36: 523.40 | G36: 520.20 | H36: 534.60 | I36: 537.80 | J36: 541.80 | K36: 533.8 | L36: 526.6 | M36: 52.81259
A37: 28 | B37: BAJAJ-AUTO | C37: 2885.25 | D37: 2886.10 | E37: 2832.80 | F37: 2780.35 | G37: 2727.05 | H37: 2938.55 | I37: 2991.85 | J37: 3044.30 | K37: 2939.4 | L37: 2833.65 | M37: 6.54288
A38: 29 | B38: BAJFINANCE | C38: 2160.65 | D38: 2146.85 | E38: 2120.80 | F38: 2080.95 | G38: 2054.90 | H38: 2186.70 | I38: 2212.75 | J38: 2252.60 | K38: 2172.9 | L38: 2107 | M38: 18.02977
A39: 30 | B39: BAJAJFINSV | C39: 5914.75 | D39: 5874.00 | E39: 5818.10 | F39: 5721.45 | G39: 5665.55 | H39: 5970.65 | I39: 6026.55 | J39: 6123.20 | K39: 5929.9 | L39: 5777.35 | M39: 1.23156
A40: 31 | B40: BALKRISIND | C40: 1099.9 | D40: 1103.40 | E40: 1086.50 | F40: 1073.10 | G40: 1056.20 | H40: 1116.80 | I40: 1133.70 | J40: 1147.10 | K40: 1120.3 | L40: 1090 | M40: 3.73378
A41: 32 | B41: BANKBARODA | C41: 130.25 | D41: 129.22 | E41: 127.33 | F41: 124.42 | G41: 122.53 | H41: 132.13 | I41: 134.02 | J41: 136.93 | K41: 131.1 | L41: 126.3 | M41: 255.5929
A42: 33 | B42: BANKINDIA | C42: 96 | D42: 95.25 | E42: 93.80 | F42: 91.60 | G42: 90.15 | H42: 97.45 | I42: 98.90 | J42: 101.10 | K42: 96.7 | L42: 93.05 | M42: 89.78676
A43: 34 | B43: BATAINDIA | C43: 750.8 | D43: 749.38 | E43: 743.82 | F43: 736.83 | G43: 731.27 | H43: 756.37 | I43: 761.93 | J43: 768.92 | K43: 754.95 | L43: 742.4 | M43: 4.95979
A44: 35 | B44: BERGEPAINT | C44: 282.95 | D44: 280.80 | E44: 276.60 | F44: 270.25 | G44: 266.05 | H44: 287.15 | I44: 291.35 | J44: 297.70 | K44: 285 | L44: 274.45 | M44: 4.54687
A45: 36 | B45: BEL | C45: 116.2 | D45: 115.28 | E45: 113.67 | F45: 111.13 | G45: 109.52 | H45: 117.82 | I45: 119.43 | J45: 121.97 | K45: 116.9 | L45: 112.75 | M45: 66.60743
A46: 37 | B46: BHARATFIN | C46: 1169.9 | D46: 1163.32 | E46: 1152.78 | F46: 1135.67 | G46: 1125.13 | H46: 1180.43 | I46: 1190.97 | J46: 1208.08 | K46: 1173.85 | L46: 1146.2 | M46: 4.06744
A47: 38 | B47: BHARATFORG | C47: 650.15 | D47: 643.57 | E47: 634.18 | F47: 618.22 | G47: 608.83 | H47: 659.53 | I47: 668.92 | J47: 684.88 | K47: 652.95 | L47: 627.6 | M47: 15.2468
A48: 39 | B48: BHEL | C48: 74.6 | D48: 74.23 | E48: 73.37 | F48: 72.13 | G48: 71.27 | H48: 75.47 | I48: 76.33 | J48: 77.57 | K48: 75.1 | L48: 73 | M48: 89.82847
A49: 40 | B49: BPCL | C49: 410 | D49: 409.03 | E49: 406.07 | F49: 402.13 | G49: 399.17 | H49: 412.97 | I49: 415.93 | J49: 419.87 | K49: 412 | L49: 405.1 | M49: 29.31303
A50: 41 | B50: BHARTIARTL | C50: 379.75 | D50: 374.58 | E50: 367.27 | F50: 354.78 | G50: 347.47 | H50: 387.07 | I50: 394.38 | J50: 406.87 | K50: 381.9 | L50: 362.1 | M50: 50.16415
A51: 42 | B51: INFRATEL | C51: 294.6 | D51: 294.85 | E51: 292.50 | F51: 290.40 | G51: 288.05 | H51: 296.95 | I51: 299.30 | J51: 301.40 | K51: 297.2 | L51: 292.75 | M51: 14.34703
A52: 43 | B52: BIOCON | C52: 608.35 | D52: 605.78 | E52: 593.57 | F52: 578.78 | G52: 566.57 | H52: 620.57 | I52: 632.78 | J52: 647.57 | K52: 618 | L52: 591 | M52: 81.58782
A53: 44 | B53: BOSCHLTD | C53: 18958.7 | D53: 18615.50 | E53: 18131.00 | F53: 17303.30 | G53: 16818.80 | H53: 19443.20 | I53: 19927.70 | J53: 20755.40 | K53: 19100 | L53: 17787.8 | M53: 0.23856
A54: 45 | B54: BRITANNIA | C54: 5876.95 | D54: 5856.98 | E54: 5824.97 | F54: 5772.98 | G54: 5740.97 | H54: 5908.97 | I54: 5940.98 | J54: 5992.97 | K54: 5889 | L54: 5805 | M54: 0.68662
A55: 46 | B55: CRISIL | C55: 1843.3 | D55: 1834.10 | E55: 1809.20 | F55: 1775.10 | G55: 1750.20 | H55: 1868.20 | I55: 1893.10 | J55: 1927.20 | K55: 1859 | L55: 1800 | M55: 0.25375
A56: 47 | B56: CADILAHC | C56: 349.95 | D56: 351.88 | E56: 343.82 | F56: 337.68 | G56: 329.62 | H56: 358.02 | I56: 366.08 | J56: 372.22 | K56: 359.95 | L56: 345.75 | M56: 13.67479
A57: 48 | B57: CANBK | C57: 260.6 | D57: 258.15 | E57: 254.05 | F57: 247.50 | G57: 243.40 | H57: 264.70 | I57: 268.80 | J57: 275.35 | K57: 262.25 | L57: 251.6 | M57: 76.25517
A58: 49 | B58: CASTROLIND | C58: 173.95 | D58: 173.00 | E58: 170.55 | F58: 167.15 | G58: 164.70 | H58: 176.40 | I58: 178.85 | J58: 182.25 | K58: 175.45 | L58: 169.6 | M58: 9.27653
A59: 50 | B59: CENTRALBK | C59: 75.45 | D59: 74.55 | E59: 73.30 | F59: 71.15 | G59: 69.90 | H59: 76.70 | I59: 77.95 | J59: 80.10 | K59: 75.8 | L59: 72.4 | M59: 3.37673
A60: 51 | B60: CENTURYTEX | C60: 905.05 | D60: 904.37 | E60: 890.73 | F60: 876.42 | G60: 862.78 | H60: 918.68 | I60: 932.32 | J60: 946.63 | K60: 918 | L60: 890.05 | M60: 6.5097
A61: 52 | B61: CHOLAFIN | C61: 1559.5 | D61: 1553.00 | E61: 1533.10 | F61: 1506.70 | G61: 1486.80 | H61: 1579.40 | I61: 1599.30 | J61: 1625.70 | K61: 1572.9 | L61: 1526.6 | M61: 1.03465
A62: 53 | B62: CIPLA | C62: 538.45 | D62: 539.95 | E62: 531.90 | F62: 525.35 | G62: 517.30 | H62: 546.50 | I62: 554.55 | J62: 561.10 | K62: 548 | L62: 533.4 | M62: 29.09756
A63: 54 | B63: COALINDIA | C63: 290.65 | D63: 289.12 | E63: 285.98 | F63: 281.32 | G63: 278.18 | H63: 293.78 | I63: 296.92 | J63: 301.58 | K63: 292.25 | L63: 284.45 | M63: 56.30857
A64: 55 | B64: COLPAL | C64: 1230.45 | D64: 1234.73 | E64: 1221.52 | F64: 1212.58 | G64: 1199.37 | H64: 1243.67 | I64: 1256.88 | J64: 1265.82 | K64: 1247.95 | L64: 1225.8 | M64: 3.95779
A65: 56 | B65: CONCOR | C65: 1347 | D65: 1339.35 | E65: 1328.70 | F65: 1310.40 | G65: 1299.75 | H65: 1357.65 | I65: 1368.30 | J65: 1386.60 | K65: 1350 | L65: 1321.05 | M65: 1.40277
A66: 57 | B66: COROMANDEL | C66: 435.95 | D66: 433.92 | E66: 428.83 | F66: 421.72 | G66: 416.63 | H66: 441.03 | I66: 446.12 | J66: 453.23 | K66: 439 | L66: 426.8 | M66: 0.77941
A67: 58 | B67: CROMPTON | C67: 225 | D67: 224.75 | E67: 222.50 | F67: 220.00 | G67: 217.75 | H67: 227.25 | I67: 229.50 | J67: 232.00 | K67: 227 | L67: 222.25 | M67: 2.15174
A68: 59 | B68: CUMMINSIND | C68: 679.55 | D68: 679.45 | E68: 673.90 | F68: 668.25 | G68: 662.70 | H68: 685.10 | I68: 690.65 | J68: 696.30 | K68: 685 | L68: 673.8 | M68: 1.63672
A69: 60 | B69: DLF | C69: 200.5 | D69: 200.12 | E69: 196.88 | F69: 193.27 | G69: 190.03 | H69: 203.73 | I69: 206.97 | J69: 210.58 | K69: 203.35 | L69: 196.5 | M69: 61.51093
A70: 61 | B70: DABUR | C70: 378.6 | D70: 379.90 | E70: 374.00 | F70: 369.40 | G70: 363.50 | H70: 384.50 | I70: 390.40 | J70: 395.00 | K70: 385.8 | L70: 375.3 | M70: 18.52078
A71: 62 | B71: DALMIABHA | C71: 2542.65 | D71: 2562.67 | E71: 2487.48 | F71: 2432.32 | G71: 2357.13 | H71: 2617.83 | I71: 2693.02 | J71: 2748.18 | K71: 2637.85 | L71: 2507.5 | M71: 0.95803
A72: 63 | B72: DHFL | C72: 604.85 | D72: 605.78 | E72: 599.07 | F72: 593.28 | G72: 586.57 | H72: 611.57 | I72: 618.28 | J72: 624.07 | K72: 612.5 | L72: 600 | M72: 40.99152
A73: 64 | B73: DISHTV | C73: 72.9 | D73: 72.97 | E73: 72.18 | F73: 71.47 | G73: 70.68 | H73: 73.68 | I73: 74.47 | J73: 75.18 | K73: 73.75 | L73: 72.25 | M73: 17.74133
A74: 65 | B74: DIVISLAB | C74: 1054.45 | D74: 1047.98 | E74: 1035.97 | F74: 1017.48 | G74: 1005.47 | H74: 1066.47 | I74: 1078.48 | J74: 1096.97 | K74: 1060 | L74: 1029.5 | M74: 2.73602
A75: 66 | B75: LALPATHLAB | C75: 849.55 | D75: 852.52 | E75: 839.03 | F75: 828.52 | G75: 815.03 | H75: 863.03 | I75: 876.52 | J75: 887.03 | K75: 866 | L75: 842 | M75: 0.14257
A76: 67 | B76: DRREDDY | C76: 1960.45 | D76: 1962.12 | E76: 1946.33 | F76: 1932.22 | G76: 1916.43 | H76: 1976.23 | I76: 1992.02 | J76: 2006.13 | K76: 1977.9 | L76: 1948 | M76: 4.15605
A77: 68 | B77: EDELWEISS | C77: 317.95 | D77: 310.62 | E77: 302.33 | F77: 286.72 | G77: 278.43 | H77: 326.23 | I77: 334.52 | J77: 350.13 | K77: 318.9 | L77: 295 | M77: 23.28918
A78: 69 | B78: EICHERMOT | C78: 29949.25 | D78: 29740.43 | E78: 29418.87 | F78: 28888.48 | G78: 28566.92 | H78: 30270.82 | I78: 30592.38 | J78: 31122.77 | K78: 30062 | L78: 29210.05 | M78: 0.22144
A79: 70 | B79: EMAMILTD | C79: 1027.25 | D79: 1024.07 | E79: 1011.18 | F79: 995.12 | G79: 982.23 | H79: 1040.13 | I79: 1053.02 | J79: 1069.08 | K79: 1036.95 | L79: 1008 | M79: 3.92983
A80: 71 | B80: ENDURANCE | C80: 1199.7 | D80: 1209.03 | E80: 1179.37 | F80: 1159.03 | G80: 1129.37 | H80: 1229.37 | I80: 1259.03 | J80: 1279.37 | K80: 1238.7 | L80: 1188.7 | M80: 0.63154
A81: 72 | B81: ENGINERSIN | C81: 131.95 | D81: 131.37 | E81: 129.53 | F81: 127.12 | G81: 125.28 | H81: 133.78 | I81: 135.62 | J81: 138.03 | K81: 133.2 | L81: 128.95 | M81: 15.61994
A82: 73 | B82: EXIDEIND | C82: 257.2 | D82: 255.90 | E82: 253.55 | F82: 249.90 | G82: 247.55 | H82: 259.55 | I82: 261.90 | J82: 265.55 | K82: 258.25 | L82: 252.25 | M82: 6.09639
A83: 74 | B83: FEDERALBNK | C83: 83.25 | D83: 82.83 | E83: 82.07 | F83: 80.88 | G83: 80.12 | H83: 84.02 | I83: 84.78 | J83: 85.97 | K83: 83.6 | L83: 81.65 | M83: 60.0767
A84: 75 | B84: GAIL | C84: 332.95 | D84: 333.48 | E84: 329.47 | F84: 325.98 | G84: 321.97 | H84: 336.97 | I84: 340.98 | J84: 344.47 | K84: 337.5 | L84: 330 | M84: 23.45553
A85: 76 | B85: GMRINFRA | C85: 16.25 | D85: 16.15 | E85: 15.80 | F85: 15.35 | G85: 15.00 | H85: 16.60 | I85: 16.95 | J85: 17.40 | K85: 16.5 | L85: 15.7 | M85: 282.52887
A86: 77 | B86: GSKCONS | C86: 6482.15 | D86: 6495.87 | E86: 6402.28 | F86: 6322.42 | G86: 6228.83 | H86: 6575.73 | I86: 6669.32 | J86: 6749.18 | K86: 6589.45 | L86: 6416 | M86: 0.13401
A87: 78 | B87: GLAXO | C87: 2560.7 | D87: 2548.57 | E87: 2522.13 | F87: 2483.57 | G87: 2457.13 | H87: 2587.13 | I87: 2613.57 | J87: 2652.13 | K87: 2575 | L87: 2510 | M87: 0.07471
A88: 79 | B88: GLENMARK | C88: 537 | D88: 530.42 | E88: 520.83 | F88: 504.67 | G88: 495.08 | H88: 546.58 | I88: 556.17 | J88: 572.33 | K88: 540 | L88: 514.25 | M88: 15.86757
A89: 80 | B89: GODREJCP | C89: 1145.8 | D89: 1145.45 | E89: 1133.70 | F89: 1121.60 | G89: 1109.85 | H89: 1157.55 | I89: 1169.30 | J89: 1181.40 | K89: 1157.2 | L89: 1133.35 | M89: 3.86058
A90: 81 | B90: GODREJIND | C90: 599.75 | D90: 601.70 | E90: 595.40 | F90: 591.05 | G90: 584.75 | H90: 606.05 | I90: 612.35 | J90: 616.70 | K90: 608 | L90: 597.35 | M90: 6.49834
A91: 82 | B91: GRUH | C91: 356.85 | D91: 349.70 | E91: 333.40 | F91: 309.95 | G91: 293.65 | H91: 373.15 | I91: 389.45 | J91: 412.90 | K91: 366 | L91: 326.25 | M91: 4.90296
A92: 83 | B92: GPPL | C92: 115.25 | D92: 113.92 | E92: 111.58 | F92: 107.92 | G92: 105.58 | H92: 117.58 | I92: 119.92 | J92: 123.58 | K92: 116.25 | L92: 110.25 | M92: 10.11799
A93: 84 | B93: GSPL | C93: 180 | D93: 180.27 | E93: 177.43 | F93: 174.87 | G93: 172.03 | H93: 182.83 | I93: 185.67 | J93: 188.23 | K93: 183.1 | L93: 177.7 | M93: 3.12225
A94: 85 | B94: HCLTECH | C94: 908.95 | D94: 905.58 | E94: 893.37 | F94: 877.78 | G94: 865.57 | H94: 921.17 | I94: 933.38 | J94: 948.97 | K94: 917.8 | L94: 890 | M94: 11.68856
A95: 86 | B95: HDFCBANK | C95: 2057.35 | D95: 2055.72 | E95: 2046.63 | F95: 2035.92 | G95: 2026.83 | H95: 2066.43 | I95: 2075.52 | J95: 2086.23 | K95: 2064.8 | L95: 2045 | M95: 24.455
A96: 87 | B96: HAVELLS | C96: 533.2 | D96: 530.03 | E96: 525.27 | F96: 517.33 | G96: 512.57 | H96: 537.97 | I96: 542.73 | J96: 550.67 | K96: 534.8 | L96: 522.1 | M96: 9.81439
A97: 88 | B97: HEROMOTOCO | C97: 3635.2 | D97: 3624.40 | E97: 3608.80 | F97: 3582.40 | G97: 3566.80 | H97: 3650.80 | I97: 3666.40 | J97: 3692.80 | K97: 3640 | L97: 3598 | M97: 2.11568
A98: 89 | B98: HEXAWARE | C98: 426.4 | D98: 418.60 | E98: 408.35 | F98: 390.30 | G98: 380.05 | H98: 436.65 | I98: 446.90 | J98: 464.95 | K98: 428.85 | L98: 400.55 | M98: 25.0589
A99: 90 | B99: HINDALCO | C99: 248.1 | D99: 246.38 | E99: 243.22 | F99: 238.33 | G99: 235.17 | H99: 251.27 | I99: 254.43 | J99: 259.32 | K99: 249.55 | L99: 241.5 | M99: 64.55908
A100: 91 | B100: HINDPETRO | C100: 310.8 | D100: 312.20 | E100: 307.60 | F100: 304.40 | G100: 299.80 | H100: 315.40 | I100: 320.00 | J100: 323.20 | K100: 316.8 | L100: 309 | M100: 61.51927
A101: 92 | B101: HINDUNILVR | C101: 1571.15 | D101: 1569.20 | E101: 1559.40 | F101: 1547.65 | G101: 1537.85 | H101: 1580.95 | I101: 1590.75 | J101: 1602.50 | K101: 1579 | L101: 1557.45 | M101: 10.85135
A102: 93 | B102: HINDZINC | C102: 297.45 | D102: 293.92 | E102: 288.53 | F102: 279.62 | G102: 274.23 | H102: 302.83 | I102: 308.22 | J102: 317.13 | K102: 299.3 | L102: 285 | M102: 29.82065
A103: 94 | B103: HUDCO | C103: 56.3 | D103: 55.98 | E103: 55.22 | F103: 54.13 | G103: 53.37 | H103: 57.07 | I103: 57.83 | J103: 58.92 | K103: 56.75 | L103: 54.9 | M103: 9.05416
A104: 95 | B104: HDFC | C104: 1858.45 | D104: 1852.70 | E104: 1843.90 | F104: 1829.35 | G104: 1820.55 | H104: 1867.25 | I104: 1876.05 | J104: 1890.60 | K104: 1861.5 | L104: 1838.15 | M104: 12.22829
A105: 96 | B105: ITC | C105: 270.4 | D105: 269.78 | E105: 268.42 | F105: 266.43 | G105: 265.07 | H105: 271.77 | I105: 273.13 | J105: 275.12 | K105: 271.15 | L105: 267.8 | M105: 72.96797
A106: 97 | B106: ICICIBANK | C106: 283.9 | D106: 283.97 | E106: 281.03 | F106: 278.17 | G106: 275.23 | H106: 286.83 | I106: 289.77 | J106: 292.63 | K106: 286.9 | L106: 281.1 | M106: 168.73633
A107: 98 | B107: ICICIPRULI | C107: 406.25 | D107: 406.52 | E107: 402.18 | F107: 398.12 | G107: 393.78 | H107: 410.58 | I107: 414.92 | J107: 418.98 | K107: 410.85 | L107: 402.45 | M107: 5.87209
A108: 99 | B108: IDBI | C108: 57.3 | D108: 57.73 | E108: 56.57 | F108: 55.83 | G108: 54.67 | H108: 58.47 | I108: 59.63 | J108: 60.37 | K108: 58.9 | L108: 57 | M108: 143.00608
A109: 100 | B109: IDFCBANK | C109: 41 | D109: 40.50 | E109: 39.45 | F109: 37.90 | G109: 36.85 | H109: 42.05 | I109: 43.10 | J109: 44.65 | K109: 41.55 | L109: 38.95 | M109: 408.07173
A110: 101 | B110: IDFC | C110: 48.3 | D110: 47.93 | E110: 47.12 | F110: 45.93 | G110: 45.12 | H110: 49.12 | I110: 49.93 | J110: 51.12 | K110: 48.75 | L110: 46.75 | M110: 62.44843
A111: 102 | B111: IRB | C111: 235 | D111: 232.50 | E111: 228.00 | F111: 221.00 | G111: 216.50 | H111: 239.50 | I111: 244.00 | J111: 251.00 | K111: 237 | L111: 225.5 | M111: 12.80858
A112: 103 | B112: IDEA | C112: 58.95 | D112: 57.92 | E112: 56.38 | F112: 53.82 | G112: 52.28 | H112: 60.48 | I112: 62.02 | J112: 64.58 | K112: 59.45 | L112: 55.35 | M112: 216.05255
A113: 104 | B113: IBULHSGFIN | C113: 1180.1 | D113: 1174.77 | E113: 1155.53 | F113: 1130.97 | G113: 1111.73 | H113: 1199.33 | I113: 1218.57 | J113: 1243.13 | K113: 1194 | L113: 1150.2 | M113: 16.08444
A114: 105 | B114: INDIANB | C114: 346.65 | D114: 340.78 | E114: 332.92 | F114: 319.18 | G114: 311.32 | H114: 354.52 | I114: 362.38 | J114: 376.12 | K114: 348.65 | L114: 327.05 | M114: 18.92508
A115: 106 | B115: INDHOTEL | C115: 134 | D115: 133.70 | E115: 131.85 | F115: 129.70 | G115: 127.85 | H115: 135.85 | I115: 137.70 | J115: 139.85 | K115: 135.55 | L115: 131.55 | M115: 16.34816
A116: 107 | B116: IOC | C116: 174.9 | D116: 174.12 | E116: 172.83 | F116: 170.77 | G116: 169.48 | H116: 176.18 | I116: 177.47 | J116: 179.53 | K116: 175.4 | L116: 172.05 | M116: 36.55986
A117: 108 | B117: IGL | C117: 262.9 | D117: 260.82 | E117: 258.08 | F117: 253.27 | G117: 250.53 | H117: 265.63 | I117: 268.37 | J117: 273.18 | K117: 263.55 | L117: 256 | M117: 20.44933
A118: 109 | B118: INDUSINDBK | C118: 1919.8 | D118: 1909.88 | E118: 1891.27 | F118: 1862.73 | G118: 1844.12 | H118: 1938.42 | I118: 1957.03 | J118: 1985.57 | K118: 1928.5 | L118: 1881.35 | M118: 5.08953
A119: 110 | B119: NAUKRI | C119: 1211.55 | D119: 1205.53 | E119: 1186.07 | F119: 1160.58 | G119: 1141.12 | H119: 1231.02 | I119: 1250.48 | J119: 1275.97 | K119: 1225 | L119: 1180.05 | M119: 0.3111
A120: 111 | B120: INFY | C120: 1237.45 | D120: 1233.02 | E120: 1224.48 | F120: 1211.52 | G120: 1202.98 | H120: 1245.98 | I120: 1254.52 | J120: 1267.48 | K120: 1241.55 | L120: 1220.05 | M120: 20.19092
A121: 112 | B121: INDIGO | C121: 1170.4 | D121: 1176.82 | E121: 1154.83 | F121: 1139.27 | G121: 1117.28 | H121: 1192.38 | I121: 1214.37 | J121: 1229.93 | K121: 1198.8 | L121: 1161.25 | M121: 6.11806
A122: 113 | B122: IPCALAB | C122: 639.3 | D122: 641.58 | E122: 628.72 | F122: 618.13 | G122: 605.27 | H122: 652.17 | I122: 665.03 | J122: 675.62 | K122: 654.45 | L122: 631 | M122: 0.92631
A123: 114 | B123: JSWENERGY | C123: 73.8 | D123: 72.82 | E123: 71.63 | F123: 69.47 | G123: 68.28 | H123: 74.98 | I123: 76.17 | J123: 78.33 | K123: 74 | L123: 70.65 | M123: 7.35503
A124: 115 | B124: JSWSTEEL | C124: 338 | D124: 335.05 | E124: 331.00 | F124: 324.00 | G124: 319.95 | H124: 342.05 | I124: 346.10 | J124: 353.10 | K124: 339.1 | L124: 328.05 | M124: 31.48197
A125: 116 | B125: JINDALSTEL | C125: 234.9 | D125: 233.07 | E125: 228.73 | F125: 222.57 | G125: 218.23 | H125: 239.23 | I125: 243.57 | J125: 249.73 | K125: 237.4 | L125: 226.9 | M125: 67.08647
A126: 117 | B126: JUBLFOOD | C126: 2631.55 | D126: 2610.02 | E126: 2581.53 | F126: 2531.52 | G126: 2503.03 | H126: 2660.03 | I126: 2688.52 | J126: 2738.53 | K126: 2638.5 | L126: 2560 | M126: 8.92316
A127: 118 | B127: JUBILANT | C127: 732.25 | D127: 723.98 | E127: 698.27 | F127: 664.28 | G127: 638.57 | H127: 757.97 | I127: 783.68 | J127: 817.67 | K127: 749.7 | L127: 690 | M127: 2.94953
A128: 119 | B128: KARURVYSYA | C128: 103.5 | D128: 103.03 | E128: 102.17 | F128: 100.83 | G128: 99.97 | H128: 104.37 | I128: 105.23 | J128: 106.57 | K128: 103.9 | L128: 101.7 | M128: 11.11056
A129: 120 | B129: KOTAKBANK | C129: 1315.7 | D129: 1312.22 | E129: 1303.48 | F129: 1291.27 | G129: 1282.53 | H129: 1324.43 | I129: 1333.17 | J129: 1345.38 | K129: 1320.95 | L129: 1300 | M129: 10.30269
A130: 121 | B130: L&TFH | C130: 166.9 | D130: 166.05 | E130: 164.55 | F130: 162.20 | G130: 160.70 | H130: 168.40 | I130: 169.90 | J130: 172.25 | K130: 167.55 | L130: 163.7 | M130: 26.16144
A131: 122 | B131: LICHSGFIN | C131: 486.3 | D131: 485.20 | E131: 479.10 | F131: 471.90 | G131: 465.80 | H131: 492.40 | I131: 498.50 | J131: 505.70 | K131: 491.3 | L131: 478 | M131: 19.92331
A132: 123 | B132: LT | C132: 1350.55 | D132: 1345.52 | E132: 1336.03 | F132: 1321.52 | G132: 1312.03 | H132: 1360.03 | I132: 1369.52 | J132: 1384.03 | K132: 1355 | L132: 1331 | M132: 15.81905
A133: 124 | B133: LUPIN | C133: 770.05 | D133: 767.72 | E133: 758.58 | F133: 747.12 | G133: 737.98 | H133: 779.18 | I133: 788.32 | J133: 799.78 | K133: 776.85 | L133: 756.25 | M133: 11.31792
A134: 125 | B134: MRF | C134: 74282.5 | D134: 74127.90 | E134: 73564.80 | F134: 72847.10 | G134: 72284.00 | H134: 74845.60 | I134: 75408.70 | J134: 76126.40 | K134: 74691 | L134: 73410.2 | M134: 0.04004
A135: 126 | B135: MGL | C135: 810.25 | D135: 808.33 | E135: 802.67 | F135: 795.08 | G135: 789.42 | H135: 815.92 | I135: 821.58 | J135: 829.17 | K135: 814 | L135: 800.75 | M135: 1.12246
A136: 127 | B136: M&MFIN | C136: 476.9 | D136: 474.55 | E136: 468.40 | F136: 459.90 | G136: 453.75 | H136: 483.05 | I136: 489.20 | J136: 497.70 | K136: 480.7 | L136: 466.05 | M136: 11.94076
A137: 128 | B137: M&M | C137: 914.3 | D137: 909.42 | E137: 901.73 | F137: 889.17 | G137: 881.48 | H137: 921.98 | I137: 929.67 | J137: 942.23 | K137: 917.1 | L137: 896.85 | M137: 21.02493
A138: 129 | B138: MANAPPURAM | C138: 104.9 | D138: 104.33 | E138: 102.97 | F138: 101.03 | G138: 99.67 | H138: 106.27 | I138: 107.63 | J138: 109.57 | K138: 105.7 | L138: 102.4 | M138: 22.68759
A139: 130 | B139: MRPL | C139: 91.3 | D139: 91.73 | E139: 89.67 | F139: 88.03 | G139: 85.97 | H139: 93.37 | I139: 95.43 | J139: 97.07 | K139: 93.8 | L139: 90.1 | M139: 13.58562
A140: 131 | B140: MARICO | C140: 335.4 | D140: 332.45 | E140: 327.90 | F140: 320.40 | G140: 315.85 | H140: 339.95 | I140: 344.50 | J140: 352.00 | K140: 337 | L140: 324.95 | M140: 20.86409
A141: 132 | B141: MARUTI | C141: 8842.35 | D141: 8840.78 | E141: 8811.57 | F141: 8780.78 | G141: 8751.57 | H141: 8871.57 | I141: 8900.78 | J141: 8931.57 | K141: 8870 | L141: 8810 | M141: 3.28784
A142: 133 | B142: MFSL | C142: 463.2 | D142: 461.02 | E142: 453.68 | F142: 444.17 | G142: 436.83 | H142: 470.53 | I142: 477.87 | J142: 487.38 | K142: 468.35 | L142: 451.5 | M142: 2.82371
A143: 134 | B143: MINDTREE | C143: 1013.8 | D143: 1001.38 | E143: 982.57 | F143: 951.33 | G143: 932.52 | H143: 1032.62 | I143: 1051.43 | J143: 1082.67 | K143: 1020.2 | L143: 970.15 | M143: 10.96128
A144: 135 | B144: MOTHERSUMI | C144: 311.1 | D144: 310.75 | E144: 308.00 | F144: 304.90 | G144: 302.15 | H144: 313.85 | I144: 316.60 | J144: 319.70 | K144: 313.5 | L144: 307.65 | M144: 22.21983
A145: 136 | B145: MPHASIS | C145: 1058.65 | D145: 1053.73 | E145: 1034.47 | F145: 1010.28 | G145: 991.02 | H145: 1077.92 | I145: 1097.18 | J145: 1121.37 | K145: 1073 | L145: 1029.55 | M145: 3.43905
A146: 137 | B146: MUTHOOTFIN | C146: 380.15 | D146: 381.02 | E146: 377.63 | F146: 375.12 | G146: 371.73 | H146: 383.53 | I146: 386.92 | J146: 389.43 | K146: 384.4 | L146: 378.5 | M146: 5.88475
A147: 138 | B147: NATCOPHARM | C147: 741.45 | D147: 745.15 | E147: 734.35 | F147: 727.25 | G147: 716.45 | H147: 752.25 | I147: 763.05 | J147: 770.15 | K147: 755.95 | L147: 738.05 | M147: 1.12991
A148: 139 | B148: NBCC | C148: 86.75 | D148: 86.20 | E148: 85.05 | F148: 83.35 | G148: 82.20 | H148: 87.90 | I148: 89.05 | J148: 90.75 | K148: 87.35 | L148: 84.5 | M148: 23.89793
A149: 140 | B149: NHPC | C149: 26.55 | D149: 26.42 | E149: 26.18 | F149: 25.82 | G149: 25.58 | H149: 26.78 | I149: 27.02 | J149: 27.38 | K149: 26.65 | L149: 26.05 | M149: 27.55001
A150: 141 | B150: NMDC | C150: 114.55 | D150: 113.50 | E150: 112.05 | F150: 109.55 | G150: 108.10 | H150: 116.00 | I150: 117.45 | J150: 119.95 | K150: 114.95 | L150: 111 | M150: 15.72083
A151: 142 | B151: NTPC | C151: 162.5 | D151: 161.93 | E151: 160.82 | F151: 159.13 | G151: 158.02 | H151: 163.62 | I151: 164.73 | J151: 166.42 | K151: 163.05 | L151: 160.25 | M151: 30.39576
A152: 143 | B152: NATIONALUM | C152: 71.7 | D152: 70.78 | E152: 69.17 | F152: 66.63 | G152: 65.02 | H152: 73.32 | I152: 74.93 | J152: 77.47 | K152: 72.4 | L152: 68.25 | M152: 101.58925
A153: 144 | B153: OBEROIRLTY | C153: 509.15 | D153: 503.90 | E153: 495.30 | F153: 481.45 | G153: 472.85 | H153: 517.75 | I153: 526.35 | J153: 540.20 | K153: 512.5 | L153: 490.05 | M153: 2.09097
A154: 145 | B154: ONGC | C154: 170.3 | D154: 170.78 | E154: 169.32 | F154: 168.33 | G154: 166.87 | H154: 171.77 | I154: 173.23 | J154: 174.22 | K154: 172.25 | L154: 169.8 | M154: 33.31408
A155: 146 | B155: OIL | C155: 217.05 | D155: 216.85 | E155: 215.10 | F155: 213.15 | G155: 211.40 | H155: 218.80 | I155: 220.55 | J155: 222.50 | K155: 218.6 | L155: 214.9 | M155: 6.34276
A156: 147 | B156: OFSS | C156: 3767.25 | D156: 3746.92 | E156: 3718.83 | F156: 3670.42 | G156: 3642.33 | H156: 3795.33 | I156: 3823.42 | J156: 3871.83 | K156: 3775 | L156: 3698.5 | M156: 0.12366
A157: 148 | B157: PCJEWELLER | C157: 134.15 | D157: 131.92 | E157: 126.43 | F157: 118.72 | G157: 113.23 | H157: 139.63 | I157: 145.12 | J157: 152.83 | K157: 137.4 | L157: 124.2 | M157: 407.43687
A158: 149 | B158: PIIND | C158: 818.75 | D158: 816.58 | E158: 812.17 | F158: 805.58 | G158: 801.17 | H158: 823.17 | I158: 827.58 | J158: 834.17 | K158: 821 | L158: 810 | M158: 0.30648
A159: 150 | B159: PNBHOUSING | C159: 1162.3 | D159: 1150.73 | E159: 1131.67 | F159: 1101.03 | G159: 1081.97 | H159: 1181.37 | I159: 1200.43 | J159: 1231.07 | K159: 1169.8 | L159: 1120.1 | M159: 2.70338
A160: 151 | B160: PAGEIND | C160: 24844.75 | D160: 24595.18 | E160: 24200.32 | F160: 23555.88 | G160: 23161.02 | H160: 25239.62 | I160: 25634.48 | J160: 26278.92 | K160: 24990.05 | L160: 23950.75 | M160: 0.13378
A161: 152 | B161: PETRONET | C161: 218.05 | D161: 218.07 | E161: 216.83 | F161: 215.62 | G161: 214.38 | H161: 219.28 | I161: 220.52 | J161: 221.73 | K161: 219.3 | L161: 216.85 | M161: 14.85487
A162: 153 | B162: PIDILITIND | C162: 1088.25 | D162: 1087.42 | E162: 1076.18 | F162: 1064.12 | G162: 1052.88 | H162: 1099.48 | I162: 1110.72 | J162: 1122.78 | K162: 1098.65 | L162: 1075.35 | M162: 5.75198
A163: 154 | B163: PEL | C163: 2394 | D163: 2374.67 | E163: 2334.33 | F163: 2274.67 | G163: 2234.33 | H163: 2434.33 | I163: 2474.67 | J163: 2534.33 | K163: 2415 | L163: 2315 | M163: 2.00224
A164: 155 | B164: PFC | C164: 80.7 | D164: 79.90 | E164: 78.80 | F164: 76.90 | G164: 75.80 | H164: 81.80 | I164: 82.90 | J164: 84.80 | K164: 81 | L164: 78 | M164: 63.93933
A165: 156 | B165: POWERGRID | C165: 201.1 | D165: 200.62 | E165: 197.98 | F165: 194.87 | G165: 192.23 | H165: 203.73 | I165: 206.37 | J165: 209.48 | K165: 203.25 | L165: 197.5 | M165: 45.73416
A166: 157 | B166: PRESTIGE | C166: 233.05 | D166: 231.03 | E166: 227.17 | F166: 221.28 | G166: 217.42 | H166: 236.92 | I166: 240.78 | J166: 246.67 | K166: 234.9 | L166: 225.15 | M166: 1.25663
A167: 158 | B167: PGHH | C167: 9316.25 | D167: 9309.07 | E167: 9219.18 | F167: 9122.12 | G167: 9032.23 | H167: 9406.13 | I167: 9496.02 | J167: 9593.08 | K167: 9398.95 | L167: 9212 | M167: 0.00385
A168: 159 | B168: PNB | C168: 84.7 | D168: 84.17 | E168: 82.83 | F168: 80.97 | G168: 79.63 | H168: 86.03 | I168: 87.37 | J168: 89.23 | K168: 85.5 | L168: 82.3 | M168: 181.67507
A169: 160 | B169: RBLBANK | C169: 519.05 | D169: 516.57 | E169: 511.93 | F169: 504.82 | G169: 500.18 | H169: 523.68 | I169: 528.32 | J169: 535.43 | K169: 521.2 | L169: 509.45 | M169: 9.51886
A170: 161 | B170: RAJESHEXPO | C170: 593.05 | D170: 595.10 | E170: 589.20 | F170: 585.35 | G170: 579.45 | H170: 598.95 | I170: 604.85 | J170: 608.70 | K170: 601 | L170: 591.25 | M170: 1.06499
A171: 162 | B171: RELCAPITAL | C171: 397.85 | D171: 394.98 | E171: 389.87 | F171: 381.88 | G171: 376.77 | H171: 402.97 | I171: 408.08 | J171: 416.07 | K171: 400.1 | L171: 387 | M171: 34.89048
A172: 163 | B172: RCOM | C172: 16 | D172: 15.52 | E172: 14.43 | F172: 12.87 | G172: 11.78 | H172: 17.08 | I172: 18.17 | J172: 19.73 | K172: 16.6 | L172: 13.95 | M172: 2571.42823
A173: 164 | B173: RELIANCE | C173: 954.4 | D173: 951.02 | E173: 946.03 | F173: 937.67 | G173: 932.68 | H173: 959.38 | I173: 964.37 | J173: 972.73 | K173: 956 | L173: 942.65 | M173: 41.89483
A174: 165 | B174: RELINFRA | C174: 427.15 | D174: 423.00 | E174: 417.45 | F174: 407.75 | G174: 402.20 | H174: 432.70 | I174: 438.25 | J174: 447.95 | K174: 428.55 | L174: 413.3 | M174: 16.00166
A175: 166 | B175: RPOWER | C175: 34.15 | D175: 33.90 | E175: 33.40 | F175: 32.65 | G175: 32.15 | H175: 34.65 | I175: 35.15 | J175: 35.90 | K175: 34.4 | L175: 33.15 | M175: 46.22111
A176: 167 | B176: RECLTD | C176: 110.7 | D176: 109.62 | E176: 108.13 | F176: 105.57 | G176: 104.08 | H176: 112.18 | I176: 113.67 | J176: 116.23 | K176: 111.1 | L176: 107.05 | M176: 41.58228
A177: 168 | B177: SRF | C177: 1893 | D177: 1890.35 | E177: 1868.70 | F177: 1844.40 | G177: 1822.75 | H177: 1914.65 | I177: 1936.30 | J177: 1960.60 | K177: 1912 | L177: 1866.05 | M177: 1.63064
A178: 169 | B178: SHREECEM | C178: 16141.3 | D178: 16164.43 | E178: 16078.87 | F178: 16016.43 | G178: 15930.87 | H178: 16226.87 | I178: 16312.43 | J178: 16374.87 | K178: 16250 | L178: 16102 | M178: 0.07631
A179: 170 | B179: SRTRANSFIN | C179: 1430.4 | D179: 1416.23 | E179: 1393.47 | F179: 1356.53 | G179: 1333.77 | H179: 1453.17 | I179: 1475.93 | J179: 1512.87 | K179: 1439 | L179: 1379.3 | M179: 7.3587
A180: 171 | B180: SIEMENS | C180: 988.75 | D180: 985.10 | E180: 970.20 | F180: 951.65 | G180: 936.75 | H180: 1003.65 | I180: 1018.55 | J180: 1037.10 | K180: 1000 | L180: 966.55 | M180: 1.67315
A181: 172 | B181: SBIN | C181: 270.15 | D181: 267.92 | E181: 264.43 | F181: 258.72 | G181: 255.23 | H181: 273.63 | I181: 277.12 | J181: 282.83 | K181: 271.4 | L181: 262.2 | M181: 183.15171
A182: 173 | B182: SAIL | C182: 77.3 | D182: 76.67 | E182: 75.83 | F182: 74.37 | G182: 73.53 | H182: 78.13 | I182: 78.97 | J182: 80.43 | K182: 77.5 | L182: 75.2 | M182: 147.5801
A183: 174 | B183: SPARC | C183: 370.8 | D183: 367.83 | E183: 363.07 | F183: 355.33 | G183: 350.57 | H183: 375.57 | I183: 380.33 | J183: 388.07 | K183: 372.6 | L183: 360.1 | M183: 1.24364
A184: 175 | B184: SUNPHARMA | C184: 489.85 | D184: 485.05 | E184: 477.90 | F184: 465.95 | G184: 458.80 | H184: 497.00 | I184: 504.15 | J184: 516.10 | K184: 492.2 | L184: 473.1 | M184: 41.26448
A185: 176 | B185: SUNTV | C185: 901.45 | D185: 907.08 | E185: 890.67 | F185: 879.88 | G185: 863.47 | H185: 917.87 | I185: 934.28 | J185: 945.07 | K185: 923.5 | L185: 896.3 | M185: 15.73889
A186: 177 | B186: SUZLON | C186: 7.9 | D186: 7.88 | E186: 7.72 | F186: 7.53 | G186: 7.37 | H186: 8.07 | I186: 8.23 | J186: 8.42 | K186: 8.05 | L186: 7.7 | M186: 268.69815
A187: 178 | B187: SYNDIBANK | C187: 48.7 | D187: 48.13 | E187: 47.32 | F187: 45.93 | G187: 45.12 | H187: 49.52 | I187: 50.33 | J187: 51.72 | K187: 48.95 | L187: 46.75 | M187: 26.67144
A188: 179 | B188: SYNGENE | C188: 585.2 | D188: 587.53 | E188: 577.17 | F188: 569.13 | G188: 558.77 | H188: 595.57 | I188: 605.93 | J188: 613.97 | K188: 597.9 | L188: 579.5 | M188: 0.53044
A189: 180 | B189: TV18BRDCST | C189: 52.25 | D189: 51.83 | E189: 50.97 | F189: 49.68 | G189: 48.82 | H189: 53.12 | I189: 53.98 | J189: 55.27 | K189: 52.7 | L189: 50.55 | M189: 26.92654
A190: 181 | B190: TVSMOTOR | C190: 565.9 | D190: 567.30 | E190: 556.80 | F190: 547.70 | G190: 537.20 | H190: 576.40 | I190: 586.90 | J190: 596.00 | K190: 577.8 | L190: 558.2 | M190: 8.64218
A191: 182 | B191: TATACHEM | C191: 730.7 | D191: 728.87 | E191: 722.93 | F191: 715.17 | G191: 709.23 | H191: 736.63 | I191: 742.57 | J191: 750.33 | K191: 734.8 | L191: 721.1 | M191: 11.52375
A192: 183 | B192: TATACOMM | C192: 606.5 | D192: 605.35 | E192: 599.20 | F192: 591.90 | G192: 585.75 | H192: 612.65 | I192: 618.80 | J192: 626.10 | K192: 611.5 | L192: 598.05 | M192: 1.08722
A193: 184 | B193: TCS | C193: 1725.75 | D193: 1725.28 | E193: 1715.67 | F193: 1705.58 | G193: 1695.97 | H193: 1735.37 | I193: 1744.98 | J193: 1755.07 | K193: 1734.9 | L193: 1715.2 | M193: 22.36512
A194: 185 | B194: TATAGLOBAL | C194: 265.75 | D194: 264.27 | E194: 261.83 | F194: 257.92 | G194: 255.48 | H194: 268.18 | I194: 270.62 | J194: 274.53 | K194: 266.7 | L194: 260.35 | M194: 20.52017
A195: 186 | B195: TATAMTRDVR | C195: 174.85 | D195: 175.03 | E195: 171.72 | F195: 168.58 | G195: 165.27 | H195: 178.17 | I195: 181.48 | J195: 184.62 | K195: 178.35 | L195: 171.9 | M195: 47.77059
A196: 187 | B196: TATAMOTORS | C196: 295.65 | D196: 292.60 | E196: 288.30 | F196: 280.95 | G196: 276.65 | H196: 299.95 | I196: 304.25 | J196: 311.60 | K196: 296.9 | L196: 285.25 | M196: 197.54001
A197: 188 | B197: TATAPOWER | C197: 78.1 | D197: 78.42 | E197: 77.13 | F197: 76.17 | G197: 74.88 | H197: 79.38 | I197: 80.67 | J197: 81.63 | K197: 79.7 | L197: 77.45 | M197: 28.49279
A198: 189 | B198: TATASTEEL | C198: 579.75 | D198: 576.88 | E198: 572.07 | F198: 564.38 | G198: 559.57 | H198: 584.57 | I198: 589.38 | J198: 597.07 | K198: 581.7 | L198: 569.2 | M198: 44.45305
A199: 190 | B199: TECHM | C199: 691.75 | D199: 694.18 | E199: 681.87 | F199: 671.98 | G199: 659.67 | H199: 704.07 | I199: 716.38 | J199: 726.27 | K199: 706.5 | L199: 684.3 | M199: 27.93493
A200: 191 | B200: RAMCOCEM | C200: 748.4 | D200: 746.65 | E200: 734.80 | F200: 721.20 | G200: 709.35 | H200: 760.25 | I200: 772.10 | J200: 785.70 | K200: 758.5 | L200: 733.05 | M200: 3.05031
A201: 192 | B201: TITAN | C201: 899.45 | D201: 885.58 | E201: 867.17 | F201: 834.88 | G201: 816.47 | H201: 917.87 | I201: 936.28 | J201: 968.57 | K201: 904 | L201: 853.3 | M201: 28.5432
A202: 193 | B202: TORNTPHARM | C202: 1392 | D202: 1399.50 | E202: 1366.55 | F202: 1341.10 | G202: 1308.15 | H202: 1424.95 | I202: 1457.90 | J202: 1483.35 | K202: 1432.45 | L202: 1374.05 | M202: 2.24803
A203: 194 | B203: TORNTPOWER | C203: 261.4 | D203: 257.72 | E203: 251.68 | F203: 241.97 | G203: 235.93 | H203: 267.43 | I203: 273.47 | J203: 283.18 | K203: 263.75 | L203: 248 | M203: 16.54778
A204: 195 | B204: UPL | C204: 693.55 | D204: 690.72 | E204: 685.43 | F204: 677.32 | G204: 672.03 | H204: 698.83 | I204: 704.12 | J204: 712.23 | K204: 696 | L204: 682.6 | M204: 8.61304
A205: 196 | B205: ULTRACEMCO | C205: 3696.35 | D205: 3683.70 | E205: 3644.00 | F205: 3591.65 | G205: 3551.95 | H205: 3736.05 | I205: 3775.75 | J205: 3828.10 | K205: 3723.4 | L205: 3631.35 | M205: 2.0085
... 30 more rows

Sheet MidCap Intra
L5: Back To Main Page
A6: FOR INTRA DAY TRADING | K6: =Main!B10 -> 2018-06-07
A9: Sr.no | B9: Scrip | C9: CLOSE RATE | D9: Pivot Point | E9: Supports | H9: Resistances
C10: Point | E10: S1 | F10: S2 | G10: S3 | H10: R1 | I10: R2 | J10: R3 | K10: HIGH | L10: LOW | M10: Total Trade Quanity in Lakhs
A11: 1 | B11: 3MINDIA | C11: 18398.35 | D11: 18449.50 | E11: 18199.85 | F11: 18001.35 | G11: 17751.70 | H11: 18648.00 | I11: 18897.65 | J11: 19096.15 | K11: 18699.15 | L11: 18251 | M11: 0.02532
A12: 2 | B12: 8KMILES | C12: 538.55 | D12: 530.35 | E12: 511.20 | F12: 483.85 | G12: 464.70 | H12: 557.70 | I12: 576.85 | J12: 604.20 | K12: 549.5 | L12: 503 | M12: 4.66286
A13: 3 | B13: AARTIIND | C13: 1155.8 | D13: 1161.98 | E13: 1143.92 | F13: 1132.03 | G13: 1113.97 | H13: 1173.87 | I13: 1191.93 | J13: 1203.82 | K13: 1180.05 | L13: 1150.1 | M13: 0.35612
A14: 4 | B14: ABAN | C14: 116.15 | D14: 117.05 | E14: 114.10 | F14: 112.05 | G14: 109.10 | H14: 119.10 | I14: 122.05 | J14: 124.10 | K14: 120 | L14: 115 | M14: 12.90775
A15: 5 | B15: ABB | C15: 1196.4 | D15: 1183.12 | E15: 1166.23 | F15: 1136.07 | G15: 1119.18 | H15: 1213.28 | I15: 1230.17 | J15: 1260.33 | K15: 1200 | L15: 1152.95 | M15: 0.51555
A16: 6 | B16: ABCAPITAL | C16: 139.7 | D16: 139.40 | E16: 138.40 | F16: 137.10 | G16: 136.10 | H16: 140.70 | I16: 141.70 | J16: 143.00 | K16: 140.4 | L16: 138.1 | M16: 12.3886
A17: 7 | B17: ABFRL | C17: 142.35 | D17: 141.23 | E17: 139.47 | F17: 136.58 | G17: 134.82 | H17: 144.12 | I17: 145.88 | J17: 148.77 | K17: 143 | L17: 138.35 | M17: 2.209
A18: 8 | B18: ACC | C18: 1315.95 | D18: 1301.92 | E18: 1284.53 | F18: 1253.12 | G18: 1235.73 | H18: 1333.33 | I18: 1350.72 | J18: 1382.13 | K18: 1319.3 | L18: 1270.5 | M18: 5.92872
A19: 9 | B19: ADANIPORTS | C19: 375.8 | D19: 375.55 | E19: 373.60 | F19: 371.40 | G19: 369.45 | H19: 377.75 | I19: 379.70 | J19: 381.90 | K19: 377.5 | L19: 373.35 | M19: 39.27114
A20: 10 | B20: ADANIPOWER | C20: 18.25 | D20: 18.03 | E20: 17.62 | F20: 16.98 | G20: 16.57 | H20: 18.67 | I20: 19.08 | J20: 19.72 | K20: 18.45 | L20: 17.4 | M20: 199.60969
A21: 11 | B21: ADANITRANS | C21: 132.15 | D21: 130.75 | E21: 126.50 | F21: 120.85 | G21: 116.60 | H21: 136.40 | I21: 140.65 | J21: 146.30 | K21: 135 | L21: 125.1 | M21: 6.92479
A22: 12 | B22: ADVENZYMES | C22: 210.65 | D22: 210.20 | E22: 205.45 | F22: 200.25 | G22: 195.50 | H22: 215.40 | I22: 220.15 | J22: 225.35 | K22: 214.95 | L22: 205 | M22: 1.90367
A23: 13 | B23: AEGISCHEM | C23: 229.9 | D23: 236.02 | E23: 222.13 | F23: 214.37 | G23: 200.48 | H23: 243.78 | I23: 257.67 | J23: 265.43 | K23: 249.9 | L23: 228.25 | M23: 1.85711
A24: 14 | B24: AIAENG | C24: 1549.85 | D24: 1553.05 | E24: 1541.80 | F24: 1533.75 | G24: 1522.50 | H24: 1561.10 | I24: 1572.35 | J24: 1580.40 | K24: 1564.3 | L24: 1545 | M24: 0.17562
A25: 15 | B25: AJANTPHARM | C25: 911.6 | D25: 910.12 | E25: 901.98 | F25: 892.37 | G25: 884.23 | H25: 919.73 | I25: 927.87 | J25: 937.48 | K25: 918.25 | L25: 900.5 | M25: 1.62854
A26: 16 | B26: AKZOINDIA | C26: 1850.85 | D26: 1843.32 | E26: 1806.63 | F26: 1762.42 | G26: 1725.73 | H26: 1887.53 | I26: 1924.22 | J26: 1968.43 | K26: 1880 | L26: 1799.1 | M26: 0.2094
A27: 17 | B27: ALBK | C27: 43.15 | D27: 42.10 | E27: 40.50 | F27: 37.85 | G27: 36.25 | H27: 44.75 | I27: 46.35 | J27: 49.00 | K27: 43.7 | L27: 39.45 | M27: 104.80287
A28: 18 | B28: ALKEM | C28: 1946.4 | D28: 1934.45 | E28: 1913.95 | F28: 1881.50 | G28: 1861.00 | H28: 1966.90 | I28: 1987.40 | J28: 2019.85 | K28: 1954.95 | L28: 1902 | M28: 0.10912
A29: 19 | B29: ALLCARGO | C29: 112.85 | D29: 110.65 | E29: 107.50 | F29: 102.15 | G29: 99.00 | H29: 116.00 | I29: 119.15 | J29: 124.50 | K29: 113.8 | L29: 105.3 | M29: 2.88649
A30: 20 | B30: AMARAJABAT | C30: 774.45 | D30: 773.28 | E30: 764.67 | F30: 754.88 | G30: 746.27 | H30: 783.07 | I30: 791.68 | J30: 801.47 | K30: 781.9 | L30: 763.5 | M30: 4.53243
A31: 21 | B31: AMBUJACEM | C31: 204.15 | D31: 203.80 | E31: 200.80 | F31: 197.45 | G31: 194.45 | H31: 207.15 | I31: 210.15 | J31: 213.50 | K31: 206.8 | L31: 200.45 | M31: 28.849
A32: 22 | B32: ANDHRABANK | C32: 34.4 | D32: 34.13 | E32: 33.57 | F32: 32.73 | G32: 32.17 | H32: 34.97 | I32: 35.53 | J32: 36.37 | K32: 34.7 | L32: 33.3 | M32: 39.28632
A33: 23 | B33: APLAPOLLO | C33: 1789.25 | D33: 1768.63 | E33: 1712.27 | F33: 1635.28 | G33: 1578.92 | H33: 1845.62 | I33: 1901.98 | J33: 1978.97 | K33: 1825 | L33: 1691.65 | M33: 0.12545
A34: 24 | B34: APLLTD | C34: 429.8 | D34: 425.62 | E34: 420.23 | F34: 410.67 | G34: 405.28 | H34: 435.18 | I34: 440.57 | J34: 450.13 | K34: 431 | L34: 416.05 | M34: 0.21395
A35: 25 | B35: APOLLOHOSP | C35: 930.1 | D35: 935.12 | E35: 922.58 | F35: 915.07 | G35: 902.53 | H35: 942.63 | I35: 955.17 | J35: 962.68 | K35: 947.65 | L35: 927.6 | M35: 2.51767
A36: 26 | B36: APOLLOTYRE | C36: 273.4 | D36: 271.52 | E36: 268.53 | F36: 263.67 | G36: 260.68 | H36: 276.38 | I36: 279.37 | J36: 284.23 | K36: 274.5 | L36: 266.65 | M36: 22.71168
A37: 27 | B37: ARVIND | C37: 394.95 | D37: 390.65 | E37: 384.30 | F37: 373.65 | G37: 367.30 | H37: 401.30 | I37: 407.65 | J37: 418.30 | K37: 397 | L37: 380 | M37: 20.95338
A38: 28 | B38: ASAHIINDIA | C38: 335.25 | D38: 334.35 | E38: 330.90 | F38: 326.55 | G38: 323.10 | H38: 338.70 | I38: 342.15 | J38: 346.50 | K38: 337.8 | L38: 330 | M38: 0.2199
A39: 29 | B39: ASHOKA | C39: 228.9 | D39: 229.62 | E39: 224.28 | F39: 219.67 | G39: 214.33 | H39: 234.23 | I39: 239.57 | J39: 244.18 | K39: 234.95 | L39: 225 | M39: 1.32203
A40: 30 | B40: ASHOKLEY | C40: 149.05 | D40: 147.82 | E40: 145.73 | F40: 142.42 | G40: 140.33 | H40: 151.13 | I40: 153.22 | J40: 156.53 | K40: 149.9 | L40: 144.5 | M40: 137.74065
A41: 31 | B41: ASIANPAINT | C41: 1262.8 | D41: 1259.58 | E41: 1248.27 | F41: 1233.73 | G41: 1222.42 | H41: 1274.12 | I41: 1285.43 | J41: 1299.97 | K41: 1270.9 | L41: 1245.05 | M41: 12.11557
A42: 32 | B42: ASTRAL | C42: 1026.75 | D42: 1006.90 | E42: 979.85 | F42: 932.95 | G42: 905.90 | H42: 1053.80 | I42: 1080.85 | J42: 1127.75 | K42: 1033.95 | L42: 960 | M42: 0.43357
A43: 33 | B43: ATUL | C43: 2752.25 | D43: 2756.40 | E43: 2722.85 | F43: 2693.45 | G43: 2659.90 | H43: 2785.80 | I43: 2819.35 | J43: 2848.75 | K43: 2789.95 | L43: 2727 | M43: 0.04028
A44: 34 | B44: AUBANK | C44: 698.7 | D44: 695.80 | E44: 686.90 | F44: 675.10 | G44: 666.20 | H44: 707.60 | I44: 716.50 | J44: 728.30 | K44: 704.7 | L44: 684 | M44: 0.69205
A45: 35 | B45: AUROPHARMA | C45: 540.85 | D45: 538.12 | E45: 532.73 | F45: 524.62 | G45: 519.23 | H45: 546.23 | I45: 551.62 | J45: 559.73 | K45: 543.5 | L45: 530 | M45: 14.4926
A46: 36 | B46: AVANTIFEED | C46: 1623.7 | D46: 1517.72 | E46: 1405.98 | F46: 1188.27 | G46: 1076.53 | H46: 1735.43 | I46: 1847.17 | J46: 2064.88 | K46: 1629.45 | L46: 1300 | M46: 16.50619
A47: 37 | B47: AXISBANK | C47: 531.4 | D47: 530.60 | E47: 527.40 | F47: 523.40 | G47: 520.20 | H47: 534.60 | I47: 537.80 | J47: 541.80 | K47: 533.8 | L47: 526.6 | M47: 52.81259
A48: 38 | B48: BAJAJ-AUTO | C48: 2885.25 | D48: 2886.10 | E48: 2832.80 | F48: 2780.35 | G48: 2727.05 | H48: 2938.55 | I48: 2991.85 | J48: 3044.30 | K48: 2939.4 | L48: 2833.65 | M48: 6.54288
A49: 39 | B49: BAJAJCORP | C49: 439.55 | D49: 442.38 | E49: 432.77 | F49: 425.98 | G49: 416.37 | H49: 449.17 | I49: 458.78 | J49: 465.57 | K49: 452 | L49: 435.6 | M49: 0.47326
A50: 40 | B50: BAJAJELEC | C50: 536 | D50: 520.00 | E50: 491.00 | F50: 446.00 | G50: 417.00 | H50: 565.00 | I50: 594.00 | J50: 639.00 | K50: 549 | L50: 475 | M50: 16.2342
A51: 41 | B51: BAJAJFINSV | C51: 5914.75 | D51: 5874.00 | E51: 5818.10 | F51: 5721.45 | G51: 5665.55 | H51: 5970.65 | I51: 6026.55 | J51: 6123.20 | K51: 5929.9 | L51: 5777.35 | M51: 1.23156
A52: 42 | B52: BAJAJHIND | C52: 7.1 | D52: 7.18 | E52: 6.87 | F52: 6.63 | G52: 6.32 | H52: 7.42 | I52: 7.73 | J52: 7.97 | K52: 7.5 | L52: 6.95 | M52: 37.8942
A53: 43 | B53: BAJAJHLDNG | C53: 2762.8 | D53: 2760.55 | E53: 2731.05 | F53: 2699.30 | G53: 2669.80 | H53: 2792.30 | I53: 2821.80 | J53: 2853.55 | K53: 2790.05 | L53: 2728.8 | M53: 0.08238
A54: 44 | B54: BAJFINANCE | C54: 2160.65 | D54: 2146.85 | E54: 2120.80 | F54: 2080.95 | G54: 2054.90 | H54: 2186.70 | I54: 2212.75 | J54: 2252.60 | K54: 2172.9 | L54: 2107 | M54: 18.02977
A55: 45 | B55: BALKRISIND | C55: 1099.9 | D55: 1103.40 | E55: 1086.50 | F55: 1073.10 | G55: 1056.20 | H55: 1116.80 | I55: 1133.70 | J55: 1147.10 | K55: 1120.3 | L55: 1090 | M55: 3.73378
A56: 46 | B56: BALLARPUR | C56: 10.15 | D56: 10.08 | E56: 9.77 | F56: 9.38 | G56: 9.07 | H56: 10.47 | I56: 10.78 | J56: 11.17 | K56: 10.4 | L56: 9.7 | M56: 13.73883
A57: 47 | B57: BALMLAWRIE | C57: 216.9 | D57: 216.63 | E57: 214.27 | F57: 211.63 | G57: 209.27 | H57: 219.27 | I57: 221.63 | J57: 224.27 | K57: 219 | L57: 214 | M57: 0.54431
A58: 48 | B58: BALRAMCHIN | C58: 67.25 | D58: 69.67 | E58: 63.83 | F58: 60.42 | G58: 54.58 | H58: 73.08 | I58: 78.92 | J58: 82.33 | K58: 75.5 | L58: 66.25 | M58: 289.67482
A59: 49 | B59: BANKBARODA | C59: 130.25 | D59: 129.22 | E59: 127.33 | F59: 124.42 | G59: 122.53 | H59: 132.13 | I59: 134.02 | J59: 136.93 | K59: 131.1 | L59: 126.3 | M59: 255.5929
A60: 50 | B60: BANKINDIA | C60: 96 | D60: 95.25 | E60: 93.80 | F60: 91.60 | G60: 90.15 | H60: 97.45 | I60: 98.90 | J60: 101.10 | K60: 96.7 | L60: 93.05 | M60: 89.78676
A61: 51 | B61: BASF | C61: 1920.9 | D61: 1929.83 | E61: 1906.07 | F61: 1891.23 | G61: 1867.47 | H61: 1944.67 | I61: 1968.43 | J61: 1983.27 | K61: 1953.6 | L61: 1915 | M61: 0.13264
A62: 52 | B62: BATAINDIA | C62: 750.8 | D62: 749.38 | E62: 743.82 | F62: 736.83 | G62: 731.27 | H62: 756.37 | I62: 761.93 | J62: 768.92 | K62: 754.95 | L62: 742.4 | M62: 4.95979
A63: 53 | B63: BBTC | C63: 1464 | D63: 1441.37 | E63: 1409.03 | F63: 1354.07 | G63: 1321.73 | H63: 1496.33 | I63: 1528.67 | J63: 1583.63 | K63: 1473.7 | L63: 1386.4 | M63: 1.85321
A64: 54 | B64: BEL | C64: 116.2 | D64: 115.28 | E64: 113.67 | F64: 111.13 | G64: 109.52 | H64: 117.82 | I64: 119.43 | J64: 121.97 | K64: 116.9 | L64: 112.75 | M64: 66.60743
A65: 55 | B65: BEML | C65: 859.05 | D65: 859.13 | E65: 826.27 | F65: 793.48 | G65: 760.62 | H65: 891.92 | I65: 924.78 | J65: 957.57 | K65: 892 | L65: 826.35 | M65: 28.41022
A66: 56 | B66: BERGEPAINT | C66: 282.95 | D66: 280.80 | E66: 276.60 | F66: 270.25 | G66: 266.05 | H66: 287.15 | I66: 291.35 | J66: 297.70 | K66: 285 | L66: 274.45 | M66: 4.54687
A67: 57 | B67: BFUTILITIE | C67: 339.1 | D67: 337.68 | E67: 329.42 | F67: 319.73 | G67: 311.47 | H67: 347.37 | I67: 355.63 | J67: 365.32 | K67: 345.95 | L67: 328 | M67: 4.32136
A68: 58 | B68: BGRENERGY | C68: 91.65 | D68: 91.82 | E68: 90.33 | F68: 89.02 | G68: 87.53 | H68: 93.13 | I68: 94.62 | J68: 95.93 | K68: 93.3 | L68: 90.5 | M68: 1.56263
A69: 59 | B69: BHARATFIN | C69: 1169.9 | D69: 1163.32 | E69: 1152.78 | F69: 1135.67 | G69: 1125.13 | H69: 1180.43 | I69: 1190.97 | J69: 1208.08 | K69: 1173.85 | L69: 1146.2 | M69: 4.06744
A70: 60 | B70: BHARATFORG | C70: 650.15 | D70: 643.57 | E70: 634.18 | F70: 618.22 | G70: 608.83 | H70: 659.53 | I70: 668.92 | J70: 684.88 | K70: 652.95 | L70: 627.6 | M70: 15.2468
A71: 61 | B71: BHARTIARTL | C71: 379.75 | D71: 374.58 | E71: 367.27 | F71: 354.78 | G71: 347.47 | H71: 387.07 | I71: 394.38 | J71: 406.87 | K71: 381.9 | L71: 362.1 | M71: 50.16415
A72: 62 | B72: BHEL | C72: 74.6 | D72: 74.23 | E72: 73.37 | F72: 72.13 | G72: 71.27 | H72: 75.47 | I72: 76.33 | J72: 77.57 | K72: 75.1 | L72: 73 | M72: 89.82847
A73: 63 | B73: BHUSANSTL | C73: 38.4 | D73: 38.40 | E73: 38.40 | F73: 38.40 | G73: 38.40 | H73: 38.40 | I73: 38.40 | J73: 38.40 | K73: 38.4 | L73: 38.4 | M73: 1.80498
A74: 64 | B74: BIOCON | C74: 608.35 | D74: 605.78 | E74: 593.57 | F74: 578.78 | G74: 566.57 | H74: 620.57 | I74: 632.78 | J74: 647.57 | K74: 618 | L74: 591 | M74: 81.58782
A75: 65 | B75: BIRLACORPN | C75: 672.85 | D75: 676.47 | E75: 657.93 | F75: 643.02 | G75: 624.48 | H75: 691.38 | I75: 709.92 | J75: 724.83 | K75: 695 | L75: 661.55 | M75: 0.47272
A76: 66 | B76: BLISSGVS | C76: 167.5 | D76: 166.62 | E76: 165.03 | F76: 162.57 | G76: 160.98 | H76: 169.08 | I76: 170.67 | J76: 173.13 | K76: 168.2 | L76: 164.15 | M76: 1.11379
A77: 67 | B77: BLUEDART | C77: 3536.55 | D77: 3500.17 | E77: 3426.38 | F77: 3316.22 | G77: 3242.43 | H77: 3610.33 | I77: 3684.12 | J77: 3794.28 | K77: 3573.95 | L77: 3390 | M77: 0.0213
A78: 68 | B78: BLUESTARCO | C78: 667.7 | D78: 670.23 | E78: 660.47 | F78: 653.23 | G78: 643.47 | H78: 677.47 | I78: 687.23 | J78: 694.47 | K78: 680 | L78: 663 | M78: 0.23159
A79: 69 | B79: BOMDYEING | C79: 215.5 | D79: 215.35 | E79: 209.35 | F79: 203.20 | G79: 197.20 | H79: 221.50 | I79: 227.50 | J79: 233.65 | K79: 221.35 | L79: 209.2 | M79: 42.90711
A80: 70 | B80: BOSCHLTD | C80: 18958.7 | D80: 18615.50 | E80: 18131.00 | F80: 17303.30 | G80: 16818.80 | H80: 19443.20 | I80: 19927.70 | J80: 20755.40 | K80: 19100 | L80: 17787.8 | M80: 0.23856
A81: 71 | B81: BPCL | C81: 410 | D81: 409.03 | E81: 406.07 | F81: 402.13 | G81: 399.17 | H81: 412.97 | I81: 415.93 | J81: 419.87 | K81: 412 | L81: 405.1 | M81: 29.31303
A82: 72 | B82: BRFL | C82: 19.9 | D82: 19.38 | E82: 18.82 | F82: 17.73 | G82: 17.17 | H82: 20.47 | I82: 21.03 | J82: 22.12 | K82: 19.95 | L82: 18.3 | M82: 0.4442
A83: 73 | B83: BRIGADE | C83: 231.1 | D83: 232.18 | E83: 224.42 | F83: 217.73 | G83: 209.97 | H83: 238.87 | I83: 246.63 | J83: 253.32 | K83: 239.95 | L83: 225.5 | M83: 0.33043
A84: 74 | B84: BRITANNIA | C84: 5876.95 | D84: 5856.98 | E84: 5824.97 | F84: 5772.98 | G84: 5740.97 | H84: 5908.97 | I84: 5940.98 | J84: 5992.97 | K84: 5889 | L84: 5805 | M84: 0.68662
A85: 75 | B85: BSE | C85: 827.9 | D85: 828.48 | E85: 823.42 | F85: 818.93 | G85: 813.87 | H85: 832.97 | I85: 838.03 | J85: 842.52 | K85: 833.55 | L85: 824 | M85: 1.2511
A86: 77 | B86: CADILAHC | C86: 349.95 | D86: 351.88 | E86: 343.82 | F86: 337.68 | G86: 329.62 | H86: 358.02 | I86: 366.08 | J86: 372.22 | K86: 359.95 | L86: 345.75 | M86: 13.67479
A87: 78 | B87: CANBK | C87: 260.6 | D87: 258.15 | E87: 254.05 | F87: 247.50 | G87: 243.40 | H87: 264.70 | I87: 268.80 | J87: 275.35 | K87: 262.25 | L87: 251.6 | M87: 76.25517
A88: 79 | B88: CANFINHOME | C88: 362.75 | D88: 359.08 | E88: 350.77 | F88: 338.78 | G88: 330.47 | H88: 371.07 | I88: 379.38 | J88: 391.37 | K88: 367.4 | L88: 347.1 | M88: 11.73088
A89: 80 | B89: CAPF | C89: 560.45 | D89: 555.77 | E89: 542.78 | F89: 525.12 | G89: 512.13 | H89: 573.43 | I89: 586.42 | J89: 604.08 | K89: 568.75 | L89: 538.1 | M89: 22.52442
A90: 81 | B90: CAPLIPOINT | C90: 396.75 | D90: 376.52 | E90: 356.28 | F90: 315.82 | G90: 295.58 | H90: 416.98 | I90: 437.22 | J90: 477.68 | K90: 396.75 | L90: 336.05 | M90: 4.23145
A91: 82 | B91: CARBORUNIV | C91: 327.7 | D91: 327.65 | E91: 325.30 | F91: 322.90 | G91: 320.55 | H91: 330.05 | I91: 332.40 | J91: 334.80 | K91: 330 | L91: 325.25 | M91: 0.17593
A92: 83 | B92: CARERATING | C92: 1307.4 | D92: 1304.13 | E92: 1289.27 | F92: 1271.13 | G92: 1256.27 | H92: 1322.27 | I92: 1337.13 | J92: 1355.27 | K92: 1319 | L92: 1286 | M92: 0.40686
A93: 84 | B93: CASTROLIND | C93: 173.95 | D93: 173.00 | E93: 170.55 | F93: 167.15 | G93: 164.70 | H93: 176.40 | I93: 178.85 | J93: 182.25 | K93: 175.45 | L93: 169.6 | M93: 9.27653
A94: 85 | B94: CCL | C94: 285.9 | D94: 284.02 | E94: 278.93 | F94: 271.97 | G94: 266.88 | H94: 290.98 | I94: 296.07 | J94: 303.03 | K94: 289.1 | L94: 277.05 | M94: 0.3774
A95: 86 | B95: CDSL | C95: 278.35 | D95: 276.20 | E95: 270.70 | F95: 263.05 | G95: 257.55 | H95: 283.85 | I95: 289.35 | J95: 297.00 | K95: 281.7 | L95: 268.55 | M95: 2.66007
A96: 87 | B96: CEATLTD | C96: 1350.2 | D96: 1353.80 | E96: 1336.50 | F96: 1322.80 | G96: 1305.50 | H96: 1367.50 | I96: 1384.80 | J96: 1398.50 | K96: 1371.1 | L96: 1340.1 | M96: 5.45737
A97: 88 | B97: CENTRALBK | C97: 75.45 | D97: 74.55 | E97: 73.30 | F97: 71.15 | G97: 69.90 | H97: 76.70 | I97: 77.95 | J97: 80.10 | K97: 75.8 | L97: 72.4 | M97: 3.37673
A98: 89 | B98: CENTURYPLY | C98: 250.75 | D98: 249.30 | E98: 241.70 | F98: 232.65 | G98: 225.05 | H98: 258.35 | I98: 265.95 | J98: 275.00 | K98: 256.9 | L98: 240.25 | M98: 2.12863
A99: 90 | B99: CENTURYTEX | C99: 905.05 | D99: 904.37 | E99: 890.73 | F99: 876.42 | G99: 862.78 | H99: 918.68 | I99: 932.32 | J99: 946.63 | K99: 918 | L99: 890.05 | M99: 6.5097
A100: 91 | B100: CERA | C100: 2823.35 | D100: 2814.70 | E100: 2763.90 | F100: 2704.45 | G100: 2653.65 | H100: 2874.15 | I100: 2924.95 | J100: 2984.40 | K100: 2865.5 | L100: 2755.25 | M100: 0.0717
A101: 92 | B101: CGPOWER | C101: 57.6 | D101: 57.25 | E101: 56.35 | F101: 55.10 | G101: 54.20 | H101: 58.50 | I101: 59.40 | J101: 60.65 | K101: 58.15 | L101: 56 | M101: 81.68911
A102: 93 | B102: CHAMBLFERT | C102: 162.85 | D102: 161.32 | E102: 157.73 | F102: 152.62 | G102: 149.03 | H102: 166.43 | I102: 170.02 | J102: 175.13 | K102: 164.9 | L102: 156.2 | M102: 5.49394
A103: 94 | B103: CHENNPETRO | C103: 294.65 | D103: 291.52 | E103: 286.03 | F103: 277.42 | G103: 271.93 | H103: 300.13 | I103: 305.62 | J103: 314.23 | K103: 297 | L103: 282.9 | M103: 5.62575
A104: 95 | B104: CHOLAFIN | C104: 1559.5 | D104: 1553.00 | E104: 1533.10 | F104: 1506.70 | G104: 1486.80 | H104: 1579.40 | I104: 1599.30 | J104: 1625.70 | K104: 1572.9 | L104: 1526.6 | M104: 1.03465
A105: 96 | B105: CIPLA | C105: 538.45 | D105: 539.95 | E105: 531.90 | F105: 525.35 | G105: 517.30 | H105: 546.50 | I105: 554.55 | J105: 561.10 | K105: 548 | L105: 533.4 | M105: 29.09756
A106: 97 | B106: COALINDIA | C106: 290.65 | D106: 289.12 | E106: 285.98 | F106: 281.32 | G106: 278.18 | H106: 293.78 | I106: 296.92 | J106: 301.58 | K106: 292.25 | L106: 284.45 | M106: 56.30857
A107: 98 | B107: COCHINSHIP | C107: 475.35 | D107: 474.00 | E107: 469.90 | F107: 464.45 | G107: 460.35 | H107: 479.45 | I107: 483.55 | J107: 489.00 | K107: 478.1 | L107: 468.55 | M107: 0.96658
A108: 99 | B108: COFFEEDAY | C108: 284.15 | D108: 283.45 | E108: 278.70 | F108: 273.25 | G108: 268.50 | H108: 288.90 | I108: 293.65 | J108: 299.10 | K108: 288.2 | L108: 278 | M108: 0.48809
A109: 100 | B109: COLPAL | C109: 1230.45 | D109: 1234.73 | E109: 1221.52 | F109: 1212.58 | G109: 1199.37 | H109: 1243.67 | I109: 1256.88 | J109: 1265.82 | K109: 1247.95 | L109: 1225.8 | M109: 3.95779
A110: 101 | B110: CONCOR | C110: 1347 | D110: 1339.35 | E110: 1328.70 | F110: 1310.40 | G110: 1299.75 | H110: 1357.65 | I110: 1368.30 | J110: 1386.60 | K110: 1350 | L110: 1321.05 | M110: 1.40277
A111: 102 | B111: COROMANDEL | C111: 435.95 | D111: 433.92 | E111: 428.83 | F111: 421.72 | G111: 416.63 | H111: 441.03 | I111: 446.12 | J111: 453.23 | K111: 439 | L111: 426.8 | M111: 0.77941
A112: 103 | B112: COX&KINGS | C112: 205.8 | D112: 207.10 | E112: 202.75 | F112: 199.70 | G112: 195.35 | H112: 210.15 | I112: 214.50 | J112: 217.55 | K112: 211.45 | L112: 204.05 | M112: 2.47846
A113: 104 | B113: CRISIL | C113: 1843.3 | D113: 1834.10 | E113: 1809.20 | F113: 1775.10 | G113: 1750.20 | H113: 1868.20 | I113: 1893.10 | J113: 1927.20 | K113: 1859 | L113: 1800 | M113: 0.25375
A114: 105 | B114: CROMPTON | C114: 225 | D114: 224.75 | E114: 222.50 | F114: 220.00 | G114: 217.75 | H114: 227.25 | I114: 229.50 | J114: 232.00 | K114: 227 | L114: 222.25 | M114: 2.15174
A115: 106 | B115: CUB | C115: 186.1 | D115: 185.90 | E115: 184.45 | F115: 182.80 | G115: 181.35 | H115: 187.55 | I115: 189.00 | J115: 190.65 | K115: 187.35 | L115: 184.25 | M115: 2.83147
A116: 107 | B116: CUMMINSIND | C116: 679.55 | D116: 679.45 | E116: 673.90 | F116: 668.25 | G116: 662.70 | H116: 685.10 | I116: 690.65 | J116: 696.30 | K116: 685 | L116: 673.8 | M116: 1.63672
A117: 108 | B117: CYIENT | C117: 707.45 | D117: 692.85 | E117: 674.40 | F117: 641.35 | G117: 622.90 | H117: 725.90 | I117: 744.35 | J117: 777.40 | K117: 711.3 | L117: 659.8 | M117: 1.81951
A118: 109 | B118: DABUR | C118: 378.6 | D118: 379.90 | E118: 374.00 | F118: 369.40 | G118: 363.50 | H118: 384.50 | I118: 390.40 | J118: 395.00 | K118: 385.8 | L118: 375.3 | M118: 18.52078
A119: 110 | B119: DBCORP | C119: 258.25 | D119: 256.75 | E119: 253.50 | F119: 248.75 | G119: 245.50 | H119: 261.50 | I119: 264.75 | J119: 269.50 | K119: 260 | L119: 252 | M119: 0.77176
A120: 111 | B120: DBL | C120: 825.9 | D120: 814.47 | E120: 789.93 | F120: 753.97 | G120: 729.43 | H120: 850.43 | I120: 874.97 | J120: 910.93 | K120: 839 | L120: 778.5 | M120: 11.45909
A121: 112 | B121: DBREALTY | C121: 41.65 | D121: 41.07 | E121: 38.28 | F121: 34.92 | G121: 32.13 | H121: 44.43 | I121: 47.22 | J121: 50.58 | K121: 43.85 | L121: 37.7 | M121: 7.15866
A122: 113 | B122: DCAL | C122: 280.65 | D122: 280.30 | E122: 273.65 | F122: 266.65 | G122: 260.00 | H122: 287.30 | I122: 293.95 | J122: 300.95 | K122: 286.95 | L122: 273.3 | M122: 1.13729
A123: 114 | B123: DCBBANK | C123: 179.55 | D123: 178.35 | E123: 175.85 | F123: 172.15 | G123: 169.65 | H123: 182.05 | I123: 184.55 | J123: 188.25 | K123: 180.85 | L123: 174.65 | M123: 16.749
A124: 115 | B124: DCMSHRIRAM | C124: 267.25 | D124: 264.45 | E124: 258.50 | F124: 249.75 | G124: 243.80 | H124: 273.20 | I124: 279.15 | J124: 287.90 | K124: 270.4 | L124: 255.7 | M124: 3.13758
A125: 116 | B125: DEEPAKFERT | C125: 290.45 | D125: 288.32 | E125: 277.13 | F125: 263.82 | G125: 252.63 | H125: 301.63 | I125: 312.82 | J125: 326.13 | K125: 299.5 | L125: 275 | M125: 2.08673
A126: 117 | B126: DELTACORP | C126: 221.25 | D126: 219.82 | E126: 215.43 | F126: 209.62 | G126: 205.23 | H126: 225.63 | I126: 230.02 | J126: 235.83 | K126: 224.2 | L126: 214 | M126: 21.23007
A127: 118 | B127: DEN | C127: 88.75 | D127: 88.63 | E127: 87.62 | F127: 86.48 | G127: 85.47 | H127: 89.77 | I127: 90.78 | J127: 91.92 | K127: 89.65 | L127: 87.5 | M127: 0.87134
A128: 119 | B128: DENABANK | C128: 15.8 | D128: 15.67 | E128: 15.43 | F128: 15.07 | G128: 14.83 | H128: 16.03 | I128: 16.27 | J128: 16.63 | K128: 15.9 | L128: 15.3 | M128: 6.81952
A129: 120 | B129: DHFL | C129: 604.85 | D129: 605.78 | E129: 599.07 | F129: 593.28 | G129: 586.57 | H129: 611.57 | I129: 618.28 | J129: 624.07 | K129: 612.5 | L129: 600 | M129: 40.99152
A130: 121 | B130: DISHTV | C130: 72.9 | D130: 72.97 | E130: 72.18 | F130: 71.47 | G130: 70.68 | H130: 73.68 | I130: 74.47 | J130: 75.18 | K130: 73.75 | L130: 72.25 | M130: 17.74133
A131: 122 | B131: DIVISLAB | C131: 1054.45 | D131: 1047.98 | E131: 1035.97 | F131: 1017.48 | G131: 1005.47 | H131: 1066.47 | I131: 1078.48 | J131: 1096.97 | K131: 1060 | L131: 1029.5 | M131: 2.73602
A132: 123 | B132: DIXON | C132: 3187 | D132: 3185.23 | E132: 3141.77 | F132: 3096.53 | G132: 3053.07 | H132: 3230.47 | I132: 3273.93 | J132: 3319.17 | K132: 3228.7 | L132: 3140 | M132: 0.07247
A133: 124 | B133: DLF | C133: 200.5 | D133: 200.12 | E133: 196.88 | F133: 193.27 | G133: 190.03 | H133: 203.73 | I133: 206.97 | J133: 210.58 | K133: 203.35 | L133: 196.5 | M133: 61.51093
A134: 125 | B134: DMART | C134: 1519.55 | D134: 1494.72 | E134: 1459.43 | F134: 1399.32 | G134: 1364.03 | H134: 1554.83 | I134: 1590.12 | J134: 1650.23 | K134: 1530 | L134: 1434.6 | M134: 11.61863
A135: 126 | B135: DREDGECORP | C135: 493.55 | D135: 493.63 | E135: 483.27 | F135: 472.98 | G135: 462.62 | H135: 503.92 | I135: 514.28 | J135: 524.57 | K135: 504 | L135: 483.35 | M135: 2.62497
A136: 127 | B136: DRREDDY | C136: 1960.45 | D136: 1962.12 | E136: 1946.33 | F136: 1932.22 | G136: 1916.43 | H136: 1976.23 | I136: 1992.02 | J136: 2006.13 | K136: 1977.9 | L136: 1948 | M136: 4.15605
A137: 128 | B137: ECLERX | C137: 1301.15 | D137: 1296.37 | E137: 1281.78 | F137: 1262.42 | G137: 1247.83 | H137: 1315.73 | I137: 1330.32 | J137: 1349.68 | K137: 1310.95 | L137: 1277 | M137: 0.13462
A138: 129 | B138: EDELWEISS | C138: 317.95 | D138: 310.62 | E138: 302.33 | F138: 286.72 | G138: 278.43 | H138: 326.23 | I138: 334.52 | J138: 350.13 | K138: 318.9 | L138: 295 | M138: 23.28918
A139: 130 | B139: EICHERMOT | C139: 29949.25 | D139: 29740.43 | E139: 29418.87 | F139: 28888.48 | G139: 28566.92 | H139: 30270.82 | I139: 30592.38 | J139: 31122.77 | K139: 30062 | L139: 29210.05 | M139: 0.22144
A140: 131 | B140: EIDPARRY | C140: 229.3 | D140: 226.20 | E140: 217.70 | F140: 206.10 | G140: 197.60 | H140: 237.80 | I140: 246.30 | J140: 257.90 | K140: 234.7 | L140: 214.6 | M140: 5.66237
A141: 132 | B141: EIHOTEL | C141: 168.95 | D141: 170.55 | E141: 166.45 | F141: 163.95 | G141: 159.85 | H141: 173.05 | I141: 177.15 | J141: 179.65 | K141: 174.65 | L141: 168.05 | M141: 1.14883
A142: 133 | B142: EMAMILTD | C142: 1027.25 | D142: 1024.07 | E142: 1011.18 | F142: 995.12 | G142: 982.23 | H142: 1040.13 | I142: 1053.02 | J142: 1069.08 | K142: 1036.95 | L142: 1008 | M142: 3.92983
A143: 134 | B143: ENDURANCE | C143: 1199.7 | D143: 1209.03 | E143: 1179.37 | F143: 1159.03 | G143: 1129.37 | H143: 1229.37 | I143: 1259.03 | J143: 1279.37 | K143: 1238.7 | L143: 1188.7 | M143: 0.63154
A144: 135 | B144: ENGINERSIN | C144: 131.95 | D144: 131.37 | E144: 129.53 | F144: 127.12 | G144: 125.28 | H144: 133.78 | I144: 135.62 | J144: 138.03 | K144: 133.2 | L144: 128.95 | M144: 15.61994
A145: 136 | B145: EQUITAS | C145: 154.2 | D145: 153.45 | E145: 151.50 | F145: 148.80 | G145: 146.85 | H145: 156.15 | I145: 158.10 | J145: 160.80 | K145: 155.4 | L145: 150.75 | M145: 12.1404
A146: 137 | B146: ERIS | C146: 781.45 | D146: 783.03 | E146: 773.57 | F146: 765.68 | G146: 756.22 | H146: 790.92 | I146: 800.38 | J146: 808.27 | K146: 792.5 | L146: 775.15 | M146: 0.04749
A147: 138 | B147: EROSMEDIA | C147: 132.25 | D147: 130.88 | E147: 127.17 | F147: 122.08 | G147: 118.37 | H147: 135.97 | I147: 139.68 | J147: 144.77 | K147: 134.6 | L147: 125.8 | M147: 5.01412
A148: 139 | B148: ESCORTS | C148: 898.65 | D148: 895.95 | E148: 886.90 | F148: 875.15 | G148: 866.10 | H148: 907.70 | I148: 916.75 | J148: 928.50 | K148: 905 | L148: 884.2 | M148: 11.18827
A149: 140 | B149: EVEREADY | C149: 244.95 | D149: 241.52 | E149: 236.03 | F149: 227.12 | G149: 221.63 | H149: 250.43 | I149: 255.92 | J149: 264.83 | K149: 247 | L149: 232.6 | M149: 0.75449
A150: 141 | B150: EXIDEIND | C150: 257.2 | D150: 255.90 | E150: 253.55 | F150: 249.90 | G150: 247.55 | H150: 259.55 | I150: 261.90 | J150: 265.55 | K150: 258.25 | L150: 252.25 | M150: 6.09639
A151: 142 | B151: FCONSUMER | C151: 51.95 | D151: 51.72 | E151: 50.73 | F151: 49.52 | G151: 48.53 | H151: 52.93 | I151: 53.92 | J151: 55.13 | K151: 52.7 | L151: 50.5 | M151: 26.46552
A152: 143 | B152: FEDERALBNK | C152: 83.25 | D152: 82.83 | E152: 82.07 | F152: 80.88 | G152: 80.12 | H152: 84.02 | I152: 84.78 | J152: 85.97 | K152: 83.6 | L152: 81.65 | M152: 60.0767
A153: 144 | B153: FINCABLES | C153: 675.05 | D153: 672.58 | E153: 663.47 | F153: 651.88 | G153: 642.77 | H153: 684.17 | I153: 693.28 | J153: 704.87 | K153: 681.7 | L153: 661 | M153: 0.20068
A154: 145 | B154: FINPIPE | C154: 606.05 | D154: 604.12 | E154: 596.28 | F154: 586.52 | G154: 578.68 | H154: 613.88 | I154: 621.72 | J154: 631.48 | K154: 611.95 | L154: 594.35 | M154: 0.13621
A155: 146 | B155: FLFL | C155: 441 | D155: 439.15 | E155: 427.85 | F155: 414.70 | G155: 403.40 | H155: 452.30 | I155: 463.60 | J155: 476.75 | K155: 450.45 | L155: 426 | M155: 4.26307
A156: 147 | B156: FSL | C156: 76.05 | D156: 74.72 | E156: 72.73 | F156: 69.42 | G156: 67.43 | H156: 78.03 | I156: 80.02 | J156: 83.33 | K156: 76.7 | L156: 71.4 | M156: 105.77724
A157: 148 | B157: GAIL | C157: 332.95 | D157: 333.48 | E157: 329.47 | F157: 325.98 | G157: 321.97 | H157: 336.97 | I157: 340.98 | J157: 344.47 | K157: 337.5 | L157: 330 | M157: 23.45553
A158: 149 | B158: GATI | C158: 87.9 | D158: 87.27 | E158: 85.83 | F158: 83.77 | G158: 82.33 | H158: 89.33 | I158: 90.77 | J158: 92.83 | K158: 88.7 | L158: 85.2 | M158: 6.23848
A159: 150 | B159: GDL | C159: 183.6 | D159: 184.38 | E159: 181.77 | F159: 179.93 | G159: 177.32 | H159: 186.22 | I159: 188.83 | J159: 190.67 | K159: 187 | L159: 182.55 | M159: 4.44434
A160: 151 | B160: GEPIL | C160: 812.15 | D160: 821.45 | E160: 792.90 | F160: 773.65 | G160: 745.10 | H160: 840.70 | I160: 869.25 | J160: 888.50 | K160: 850 | L160: 802.2 | M160: 0.94016
A161: 152 | B161: GESHIP | C161: 308.1 | D161: 310.15 | E161: 304.05 | F161: 300.00 | G161: 293.90 | H161: 314.20 | I161: 320.30 | J161: 324.35 | K161: 316.25 | L161: 306.1 | M161: 0.32636
A162: 153 | B162: GET&D | C162: 299.85 | D162: 297.53 | E162: 290.32 | F162: 280.78 | G162: 273.57 | H162: 307.07 | I162: 314.28 | J162: 323.82 | K162: 304.75 | L162: 288 | M162: 0.36658
A163: 154 | B163: GHCL | C163: 271.35 | D163: 268.57 | E163: 264.28 | F163: 257.22 | G163: 252.93 | H163: 275.63 | I163: 279.92 | J163: 286.98 | K163: 272.85 | L163: 261.5 | M163: 1.05435
A164: 155 | B164: GICRE | C164: 702.45 | D164: 702.07 | E164: 699.13 | F164: 695.82 | G164: 692.88 | H164: 705.38 | I164: 708.32 | J164: 711.63 | K164: 705 | L164: 698.75 | M164: 0.77587
A165: 156 | B165: GILLETTE | C165: 6543.75 | D165: 6528.95 | E165: 6489.95 | F165: 6436.15 | G165: 6397.15 | H165: 6582.75 | I165: 6621.75 | J165: 6675.55 | K165: 6567.95 | L165: 6475.15 | M165: 0.02887
A166: 157 | B166: GLAXO | C166: 2560.7 | D166: 2548.57 | E166: 2522.13 | F166: 2483.57 | G166: 2457.13 | H166: 2587.13 | I166: 2613.57 | J166: 2652.13 | K166: 2575 | L166: 2510 | M166: 0.07471
A167: 158 | B167: GLENMARK | C167: 537 | D167: 530.42 | E167: 520.83 | F167: 504.67 | G167: 495.08 | H167: 546.58 | I167: 556.17 | J167: 572.33 | K167: 540 | L167: 514.25 | M167: 15.86757
A168: 159 | B168: GMDCLTD | C168: 110.95 | D168: 109.15 | E168: 106.70 | F168: 102.45 | G168: 100.00 | H168: 113.40 | I168: 115.85 | J168: 120.10 | K168: 111.6 | L168: 104.9 | M168: 2.38448
A169: 160 | B169: GMRINFRA | C169: 16.25 | D169: 16.15 | E169: 15.80 | F169: 15.35 | G169: 15.00 | H169: 16.60 | I169: 16.95 | J169: 17.40 | K169: 16.5 | L169: 15.7 | M169: 282.52887
A170: 161 | B170: GNFC | C170: 464.6 | D170: 456.83 | E170: 444.67 | F170: 424.73 | G170: 412.57 | H170: 476.77 | I170: 488.93 | J170: 508.87 | K170: 469 | L170: 436.9 | M170: 11.60192
A171: 162 | B171: GODFRYPHLP | C171: 730.15 | D171: 722.73 | E171: 710.47 | F171: 690.78 | G171: 678.52 | H171: 742.42 | I171: 754.68 | J171: 774.37 | K171: 735 | L171: 703.05 | M171: 0.65185
A172: 163 | B172: GODREJAGRO | C172: 645.25 | D172: 636.15 | E172: 624.30 | F172: 603.35 | G172: 591.50 | H172: 657.10 | I172: 668.95 | J172: 689.90 | K172: 648 | L172: 615.2 | M172: 1.52473
A173: 164 | B173: GODREJCP | C173: 1145.8 | D173: 1145.45 | E173: 1133.70 | F173: 1121.60 | G173: 1109.85 | H173: 1157.55 | I173: 1169.30 | J173: 1181.40 | K173: 1157.2 | L173: 1133.35 | M173: 3.86058
A174: 165 | B174: GODREJIND | C174: 599.75 | D174: 601.70 | E174: 595.40 | F174: 591.05 | G174: 584.75 | H174: 606.05 | I174: 612.35 | J174: 616.70 | K174: 608 | L174: 597.35 | M174: 6.49834
A175: 166 | B175: GODREJPROP | C175: 726.2 | D175: 721.03 | E175: 707.07 | F175: 687.93 | G175: 673.97 | H175: 740.17 | I175: 754.13 | J175: 773.27 | K175: 735 | L175: 701.9 | M175: 1.11498
A176: 167 | B176: GPPL | C176: 115.25 | D176: 113.92 | E176: 111.58 | F176: 107.92 | G176: 105.58 | H176: 117.58 | I176: 119.92 | J176: 123.58 | K176: 116.25 | L176: 110.25 | M176: 10.11799
A177: 168 | B177: GRANULES | C177: 73.75 | D177: 73.37 | E177: 72.23 | F177: 70.72 | G177: 69.58 | H177: 74.88 | I177: 76.02 | J177: 77.53 | K177: 74.5 | L177: 71.85 | M177: 19.56522
A178: 169 | B178: GRAPHITE | C178: 799.85 | D178: 774.48 | E178: 749.12 | F178: 698.38 | G178: 673.02 | H178: 825.22 | I178: 850.58 | J178: 901.32 | K178: 799.85 | L178: 723.75 | M178: 28.9235
A179: 170 | B179: GRASIM | C179: 1034.1 | D179: 1029.73 | E179: 1016.82 | F179: 999.53 | G179: 986.62 | H179: 1047.02 | I179: 1059.93 | J179: 1077.22 | K179: 1042.65 | L179: 1012.45 | M179: 5.95318
A180: 171 | B180: GREAVESCOT | C180: 125.35 | D180: 123.82 | E180: 121.73 | F180: 118.12 | G180: 116.03 | H180: 127.43 | I180: 129.52 | J180: 133.13 | K180: 125.9 | L180: 120.2 | M180: 4.5682
A181: 172 | B181: GREENPLY | C181: 241.8 | D181: 241.50 | E181: 234.05 | F181: 226.30 | G181: 218.85 | H181: 249.25 | I181: 256.70 | J181: 264.45 | K181: 248.95 | L181: 233.75 | M181: 1.63323
A182: 173 | B182: GRUH | C182: 356.85 | D182: 349.70 | E182: 333.40 | F182: 309.95 | G182: 293.65 | H182: 373.15 | I182: 389.45 | J182: 412.90 | K182: 366 | L182: 326.25 | M182: 4.90296
A183: 174 | B183: GSFC | C183: 111.3 | D183: 109.13 | E183: 106.27 | F183: 101.23 | G183: 98.37 | H183: 114.17 | I183: 117.03 | J183: 122.07 | K183: 112 | L183: 104.1 | M183: 21.83901
A184: 175 | B184: GSKCONS | C184: 6482.15 | D184: 6495.87 | E184: 6402.28 | F184: 6322.42 | G184: 6228.83 | H184: 6575.73 | I184: 6669.32 | J184: 6749.18 | K184: 6589.45 | L184: 6416 | M184: 0.13401
A185: 176 | B185: GSPL | C185: 180 | D185: 180.27 | E185: 177.43 | F185: 174.87 | G185: 172.03 | H185: 182.83 | I185: 185.67 | J185: 188.23 | K185: 183.1 | L185: 177.7 | M185: 3.12225
A186: 177 | B186: GUJALKALI | C186: 605.6 | D186: 593.95 | E186: 576.60 | F186: 547.60 | G186: 530.25 | H186: 622.95 | I186: 640.30 | J186: 669.30 | K186: 611.3 | L186: 564.95 | M186: 0.70034
A187: 178 | B187: GUJFLUORO | C187: 748.65 | D187: 748.00 | E187: 735.55 | F187: 722.45 | G187: 710.00 | H187: 761.10 | I187: 773.55 | J187: 786.65 | K187: 760.45 | L187: 734.9 | M187: 0.17307
A188: 179 | B188: GUJGASLTD | C188: 829.3 | D188: 830.75 | E188: 823.55 | F188: 817.80 | G188: 810.60 | H188: 836.50 | I188: 843.70 | J188: 849.45 | K188: 837.95 | L188: 825 | M188: 0.0615
A189: 180 | B189: GULFOILLUB | C189: 827.05 | D189: 827.53 | E189: 811.12 | F189: 795.18 | G189: 778.77 | H189: 843.47 | I189: 859.88 | J189: 875.82 | K189: 843.95 | L189: 811.6 | M189: 0.07344
A190: 181 | B190: GVKPIL | C190: 11.35 | D190: 11.20 | E190: 10.80 | F190: 10.25 | G190: 9.85 | H190: 11.75 | I190: 12.15 | J190: 12.70 | K190: 11.6 | L190: 10.65 | M190: 59.79839
A191: 182 | B191: HATHWAY | C191: 27.9 | D191: 27.53 | E191: 26.87 | F191: 25.83 | G191: 25.17 | H191: 28.57 | I191: 29.23 | J191: 30.27 | K191: 28.2 | L191: 26.5 | M191: 7.21926
A192: 183 | B192: HATSUN | C192: 712.05 | D192: 707.25 | E192: 699.80 | F192: 687.55 | G192: 680.10 | H192: 719.50 | I192: 726.95 | J192: 739.20 | K192: 714.7 | L192: 695 | M192: 0.13509
A193: 184 | B193: HAVELLS | C193: 533.2 | D193: 530.03 | E193: 525.27 | F193: 517.33 | G193: 512.57 | H193: 537.97 | I193: 542.73 | J193: 550.67 | K193: 534.8 | L193: 522.1 | M193: 9.81439
A194: 185 | B194: HCC | C194: 14.2 | D194: 14.43 | E194: 13.82 | F194: 13.43 | G194: 12.82 | H194: 14.82 | I194: 15.43 | J194: 15.82 | K194: 15.05 | L194: 14.05 | M194: 111.11138
A195: 186 | B195: HCL-INSYS | C195: 35.8 | D195: 35.22 | E195: 34.23 | F195: 32.67 | G195: 31.68 | H195: 36.78 | I195: 37.77 | J195: 39.33 | K195: 36.2 | L195: 33.65 | M195: 18.08955
A196: 187 | B196: HCLTECH | C196: 908.95 | D196: 905.58 | E196: 893.37 | F196: 877.78 | G196: 865.57 | H196: 921.17 | I196: 933.38 | J196: 948.97 | K196: 917.8 | L196: 890 | M196: 11.68856
A197: 188 | B197: HDFC | C197: 1858.45 | D197: 1852.70 | E197: 1843.90 | F197: 1829.35 | G197: 1820.55 | H197: 1867.25 | I197: 1876.05 | J197: 1890.60 | K197: 1861.5 | L197: 1838.15 | M197: 12.22829
A198: 189 | B198: HDFCBANK | C198: 2057.35 | D198: 2055.72 | E198: 2046.63 | F198: 2035.92 | G198: 2026.83 | H198: 2066.43 | I198: 2075.52 | J198: 2086.23 | K198: 2064.8 | L198: 2045 | M198: 24.455
A199: 190 | B199: HDIL | C199: 20.7 | D199: 21.08 | E199: 19.97 | F199: 19.23 | G199: 18.12 | H199: 21.82 | I199: 22.93 | J199: 23.67 | K199: 22.2 | L199: 20.35 | M199: 136.4224
A200: 191 | B200: HEG | C200: 3188 | D200: 3086.80 | E200: 2985.60 | F200: 2783.20 | G200: 2682.00 | H200: 3289.20 | I200: 3390.40 | J200: 3592.80 | K200: 3188 | L200: 2884.4 | M200: 6.76074
A201: 192 | B201: HEIDELBERG | C201: 143.9 | D201: 142.90 | E201: 140.80 | F201: 137.70 | G201: 135.60 | H201: 146.00 | I201: 148.10 | J201: 151.20 | K201: 145 | L201: 139.8 | M201: 1.26209
A202: 193 | B202: HERITGFOOD | C202: 676.15 | D202: 672.95 | E202: 663.20 | F202: 650.25 | G202: 640.50 | H202: 685.90 | I202: 695.65 | J202: 708.60 | K202: 682.7 | L202: 660 | M202: 0.69057
A203: 194 | B203: HEROMOTOCO | C203: 3635.2 | D203: 3624.40 | E203: 3608.80 | F203: 3582.40 | G203: 3566.80 | H203: 3650.80 | I203: 3666.40 | J203: 3692.80 | K203: 3640 | L203: 3598 | M203: 2.11568
A204: 195 | B204: HEXAWARE | C204: 426.4 | D204: 418.60 | E204: 408.35 | F204: 390.30 | G204: 380.05 | H204: 436.65 | I204: 446.90 | J204: 464.95 | K204: 428.85 | L204: 400.55 | M204: 25.0589
A205: 196 | B205: HFCL | C205: 27.5 | D205: 26.77 | E205: 25.78 | F205: 24.07 | G205: 23.08 | H205: 28.48 | I205: 29.47 | J205: 31.18 | K205: 27.75 | L205: 25.05 | M205: 109.69984
A206: 197 | B206: HIMATSEIDE | C206: 346.35 | D206: 343.47 | E206: 338.93 | F206: 331.52 | G206: 326.98 | H206: 350.88 | I206: 355.42 | J206: 362.83 | K206: 348 | L206: 336.05 | M206: 0.17803
... 305 more rows

Sheet Bulk Deals
E6: Back To Main Page
A7: Subject : | B7: BULK DEAL | D7: =Main!B10 -> 2018-06-07
A9: Date | B9: Scrip code | C9: Scrip Name | D9: Client Name | E9: Buy / Sell | F9: Quantity Traded | G9: Trade Price / Wt.Avg.trade price | H9: Exchange
A10: 2018-06-06 | B10: 539042 | C10: AGIIL | D10: JASPREET KAUR | E10: SELL | F10: 74,816 | G10: 104.4 | H10: BSE
A11: 2018-06-06 | B11: 539042 | C11: AGIIL | D11: JASPREET KAUR | E11: BUY | F11: 65,491 | G11: 110.61 | H11: BSE
A12: 2018-06-06 | B12: 539042 | C12: AGIIL | D12: B M TRADERS | E12: SELL | F12: 20,181 | G12: 110.99 | H12: BSE
A13: 2018-06-06 | B13: 539042 | C13: AGIIL | D13: B M TRADERS | E13: BUY | F13: 91,181 | G13: 104.37 | H13: BSE
A14: 2018-06-06 | B14: 539042 | C14: AGIIL | D14: HAVELI INDIA LTD | E14: SELL | F14: 107,654 | G14: 104.57 | H14: BSE
A15: 2018-06-06 | B15: 539042 | C15: AGIIL | D15: HAVELI INDIA LTD | E15: BUY | F15: 73,210 | G15: 110.06 | H15: BSE
A16: 2018-06-06 | B16: 540697 | C16: AMFL | D16: SAGAR RAJESHBHAI JHAVERI | E16: SELL | F16: 88,000 | G16: 12.5 | H16: BSE
A17: 2018-06-06 | B17: 541401 | C17: ARIHANTINS | D17: SEJAL ULLAS SHAH | E17: BUY | F17: 60,000 | G17: 29.11 | H17: BSE
A18: 2018-06-06 | B18: 541401 | C18: ARIHANTINS | D18: NIRMALABEN ANANTRAI DOSHI | E18: BUY | F18: 76,000 | G18: 29.48 | H18: BSE
A19: 2018-06-06 | B19: 541401 | C19: ARIHANTINS | D19: BHUMIBEN DHARMESHBHAI DOSHI | E19: BUY | F19: 100,000 | G19: 29.05 | H19: BSE
A20: 2018-06-06 | B20: 537766 | C20: BCP | D20: KAMAL BABULAL AGARWAL | E20: SELL | F20: 67,888 | G20: 175.06 | H20: BSE
A21: 2018-06-06 | B21: 537766 | C21: BCP | D21: KAMAL BABULAL AGARWAL | E21: BUY | F21: 67,888 | G21: 176.34 | H21: BSE
A22: 2018-06-06 | B22: 537766 | C22: BCP | D22: MANISH RAMESHBHAI VYAS | E22: BUY | F22: 60,000 | G22: 175 | H22: BSE
A23: 2018-06-06 | B23: 539131 | C23: CLLIMITED | D23: ADSERVE ADVISORY AND CONSULTANCY SERVICES PRIVATE LIMITED | E23: SELL | F23: 39,802 | G23: 21.7 | H23: BSE
A24: 2018-06-06 | B24: 539131 | C24: CLLIMITED | D24: ADSERVE ADVISORY AND CONSULTANCY SERVICES PRIVATE LIMITED | E24: BUY | F24: 7,813 | G24: 21.64 | H24: BSE
A25: 2018-06-06 | B25: 538476 | C25: CTL | D25: SHRESTH BANSAL | E25: SELL | F25: 300,000 | G25: 3.78 | H25: BSE
A26: 2018-06-06 | B26: 533090 | C26: EXCEL | D26: LOPA SAUMIL BHAVNAGARI | E26: SELL | F26: 585,001 | G26: 10 | H26: BSE
A27: 2018-06-06 | B27: 533090 | C27: EXCEL | D27: VISHWAMURTE TRAD INVEST PE LTD | E27: BUY | F27: 585,001 | G27: 10 | H27: BSE
A28: 2018-06-06 | B28: 507910 | C28: FIBERWEB | D28: VORA FINANCIAL SERVICES PRIVATE LIMITED | E28: SELL | F28: 38,808 | G28: 68.01 | H28: BSE
A29: 2018-06-06 | B29: 507910 | C29: FIBERWEB | D29: VORA FINANCIAL SERVICES PRIVATE LIMITED | E29: BUY | F29: 188,808 | G29: 64.28 | H29: BSE
A30: 2018-06-06 | B30: 540267 | C30: FLORACORP | D30: DHIRAJLAL CHAUDHARI | E30: BUY | F30: 50,000 | G30: 12.35 | H30: BSE
A31: 2018-06-06 | B31: 541276 | C31: GARVIND | D31: NEELAM JAIN | E31: SELL | F31: 80,000 | G31: 7.76 | H31: BSE
A32: 2018-06-06 | B32: 541276 | C32: GARVIND | D32: ATUL MITTAL | E32: BUY | F32: 100,000 | G32: 7.76 | H32: BSE
A33: 2018-06-06 | B33: 540750 | C33: IEX | D33: MORGAN STANLEY (FRANCE) S.A.S. | E33: SELL | F33: 158,096 | G33: 1590 | H33: BSE
A34: 2018-06-06 | B34: 541418 | C34: NGIL | D34: PRADEEP OMPRAKASH PANJWANI | E34: BUY | F34: 136,000 | G34: 36.04 | H34: BSE
A35: 2018-06-06 | B35: 541418 | C35: NGIL | D35: BHAVIK PRADEEP PANJWANI | E35: BUY | F35: 68,000 | G35: 35.6 | H35: BSE
A36: 2018-06-06 | B36: 531952 | C36: RIBATEX | D36: SITA RAM (HUF) | E36: SELL | F36: 50,000 | G36: 76.12 | H36: BSE
A37: 2018-06-06 | B37: 531952 | C37: RIBATEX | D37: SITA RAM (HUF) | E37: BUY | F37: 37 | G37: 85.18 | H37: BSE
A38: 2018-06-06 | B38: 533470 | C38: RUSHIL | D38: ELARA INDIA OPPORTUNITIES FUND LIMITED | E38: BUY | F38: 75,000 | G38: 625 | H38: BSE
A39: 2018-06-06 | B39: 538520 | C39: SBL | D39: GAJERA GHANSHYAM KALUBHAI HUF | E39: SELL | F39: 260,000 | G39: 0.5 | H39: BSE
A40: 2018-06-06 | B40: 514211 | C40: SUMEETINDS | D40: CHIRAG NARENDRA MODH | E40: BUY | F40: 502,700 | G40: 17.3 | H40: BSE
A41: 2018-06-06 | B41: 540108 | C41: TAHL | D41: RAHAT HUSAIN MOHAMED YUNUS ANSARI | E41: SELL | F41: 23,635 | G41: 23.5 | H41: BSE
A42: 2018-06-06 | B42: 540108 | C42: TAHL | D42: MAROOF MEHBOOB KHAN | E42: SELL | F42: 24,000 | G42: 23.37 | H42: BSE
A43: 2018-06-06 | B43: 540108 | C43: TAHL | D43: RASHMI SATENDRA NEGI | E43: BUY | F43: 19,545 | G43: 23.5 | H43: BSE
A44: 2018-06-06 | B44: 540108 | C44: TAHL | D44: BP COMTRADE PVT LTD | E44: SELL | F44: 44,003 | G44: 23.49 | H44: BSE
A45: 2018-06-06 | B45: 540108 | C45: TAHL | D45: BP COMTRADE PVT LTD | E45: BUY | F45: 44,003 | G45: 23.5 | H45: BSE
A46: 2018-06-06 | B46: 539097 | C46: YOGYA | D46: HETAL HARDIK MITHANI | E46: BUY | F46: 24,000 | G46: 20.35 | H46: BSE
A47: 2018-06-06 | B47: 539097 | C47: YOGYA | D47: MILY MILAN MITHANI | E47: BUY | F47: 24,000 | G47: 20.35 | H47: BSE
A48: 2018-06-06 | B48: 539097 | C48: YOGYA | D48: POOJA BHAVESH BHAGDEV | E48: SELL | F48: 56,000 | G48: 20.35 | H48: BSE
A49: 2018-06-06 | B49: 539097 | C49: YOGYA | D49: ATUL KANTILAL SHAH | E49: BUY | F49: 152,000 | G49: 20.35 | H49: BSE
A50: 2018-06-06 | B50: 539097 | C50: YOGYA | D50: RAJIV GUPTA | E50: SELL | F50: 136,000 | G50: 20.35 | H50: BSE
A51: 2018-06-06 | B51: ATLANTA | C51: Atlanta Limited | D51: PURITY TRADEMAX LLP | E51: BUY | F51: 411,931 | G51: 48.41 | H51: NSE
A52: 2018-06-06 | B52: BALRAMCHIN | C52: Balrampur Chini Mills | D52: CROSSLAND TRADING CO | E52: BUY | F52: 3,007,852 | G52: 70.42 | H52: NSE
A53: 2018-06-06 | B53: BALRAMCHIN | C53: Balrampur Chini Mills | D53: QE SECURITIES | E53: BUY | F53: 1,560,126 | G53: 70.2 | H53: NSE
A54: 2018-06-06 | B54: DSML | C54: Debock Sale Marketing Ltd | D54: JHAVERI TRADING AND INVESTMENT PVT LTD | E54: BUY | F54: 48,000 | G54: 20.29 | H54: NSE
A55: 2018-06-06 | B55: DSML | C55: Debock Sale Marketing Ltd | D55: ORANGE MIST PRODUCTIONS PRIVATE LIMITED | E55: BUY | F55: 132,000 | G55: 20.35 | H55: NSE
A56: 2018-06-06 | B56: DSML | C56: Debock Sale Marketing Ltd | D56: ZUBER TRADING LLP | E56: BUY | F56: 78,000 | G56: 20.27 | H56: NSE
A57: 2018-06-06 | B57: GSS | C57: GSS Infotech Limited | D57: AMBIKA KAPUR | E57: BUY | F57: 100,000 | G57: 81.58 | H57: NSE
A58: 2018-06-06 | B58: JUSTDIAL | C58: Justdial Ltd. | D58: CROSSLAND TRADING CO | E58: BUY | F58: 522,874 | G58: 528.06 | H58: NSE
A59: 2018-06-06 | B59: JUSTDIAL | C59: Justdial Ltd. | D59: SHAASTRA SECURITIES TRADING PRIVATE LIMITED | E59: BUY | F59: 519,655 | G59: 527.45 | H59: NSE
A60: 2018-06-06 | B60: LASA | C60: Lasa Supergenerics Ltd | D60: BP FINTRADE PRIVATE LIMITED | E60: BUY | F60: 178,414 | G60: 46.92 | H60: NSE
A61: 2018-06-06 | B61: LATTEYS | C61: Latteys Industries Ltd | D61: ASHISHKUMAR JASVANTLAL SHAH | E61: BUY | F61: 30,000 | G61: 66 | H61: NSE
A62: 2018-06-06 | B62: LATTEYS | C62: Latteys Industries Ltd | D62: ROHIT VALLABHBHAI VASANI | E62: BUY | F62: 52,000 | G62: 65.98 | H62: NSE
A63: 2018-06-06 | B63: LATTEYS | C63: Latteys Industries Ltd | D63: SHITAL ASHISHKUMAR SHAH | E63: BUY | F63: 30,000 | G63: 65.98 | H63: NSE
A64: 2018-06-06 | B64: RCOM | C64: Reliance Comm. Ltd. | D64: ADROIT FINANCIAL SERVICES PRIVATE LIMITED | E64: BUY | F64: 21,273,129 | G64: 15.59 | H64: NSE
A65: 2018-06-06 | B65: RCOM | C65: Reliance Comm. Ltd. | D65: ADROIT SHARE & STOCK BROKER PVT. LTD. | E65: BUY | F65: 16,930,347 | G65: 15.64 | H65: NSE
A66: 2018-06-06 | B66: RCOM | C66: Reliance Comm. Ltd. | D66: SHAASTRA SECURITIES TRADING PRIVATE LIMITED | E66: BUY | F66: 28,831,658 | G66: 15.56 | H66: NSE
A67: 2018-06-06 | B67: SUMEETINDS | C67: Sumeet Ind Limited | D67: MYSTIQUE MEDIA PRIVATE LIMITED . | E67: BUY | F67: 730,917 | G67: 17.12 | H67: NSE
A68: 2018-06-06 | B68: SUULD | C68: Suumaya Lifestyle Limited | D68: NNM SECURITIES PVT. LTD. | E68: BUY | F68: 160,000 | G68: 17.85 | H68: NSE
A69: 2018-06-06 | B69: SUULD | C69: Suumaya Lifestyle Limited | D69: SRICHAND VALIRAM KATARIA (HUF) | E69: BUY | F69: 1,112,000 | G69: 17.83 | H69: NSE
A70: 2018-06-06 | B70: VIJSHAN | C70: Vijay Shanthi Builders Li | D70: WADHWA MANOJ | E70: BUY | F70: 289,657 | G70: 9.16 | H70: NSE
A71: 2018-06-06 | B71: ACEINTEG | C71: Ace Integrated Solu. Ltd. | D71: HIRANI AASIF MAHAMMADALI | E71: SELL | F71: 60,000 | G71: 39.5 | H71: NSE
A72: 2018-06-06 | B72: ATLANTA | C72: Atlanta Limited | D72: PURITY TRADEMAX LLP | E72: SELL | F72: 411,931 | G72: 48.86 | H72: NSE
A73: 2018-06-06 | B73: BALRAMCHIN | C73: Balrampur Chini Mills | D73: CROSSLAND TRADING CO | E73: SELL | F73: 3,007,852 | G73: 70.5 | H73: NSE
A74: 2018-06-06 | B74: BALRAMCHIN | C74: Balrampur Chini Mills | D74: QE SECURITIES | E74: SELL | F74: 1,605,715 | G74: 70.25 | H74: NSE
A75: 2018-06-06 | B75: DSML | C75: Debock Sale Marketing Ltd | D75: JAIN PRAVINKUMAR INDIRA | E75: SELL | F75: 84,000 | G75: 20.28 | H75: NSE
A76: 2018-06-06 | B76: DSML | C76: Debock Sale Marketing Ltd | D76: SHAH ANIL MEET | E76: SELL | F76: 102,000 | G76: 20.36 | H76: NSE
A77: 2018-06-06 | B77: DSML | C77: Debock Sale Marketing Ltd | D77: SOLANKI DHIRAJ KAASH | E77: SELL | F77: 102,000 | G77: 20.32 | H77: NSE
A78: 2018-06-06 | B78: IEX | C78: Indian Energy Exc Ltd | D78: SOCIETE GENERALE | E78: SELL | F78: 165,325 | G78: 1590 | H78: NSE
A79: 2018-06-06 | B79: JUSTDIAL | C79: Justdial Ltd. | D79: CROSSLAND TRADING CO | E79: SELL | F79: 522874 | G79: 528.55 | H79: NSE
A80: 2018-06-06 | B80: JUSTDIAL | C80: Justdial Ltd. | D80: SHAASTRA SECURITIES TRADING PRIVATE LIMITED | E80: SELL | F80: 519655 | G80: 527.89 | H80: NSE
A81: 2018-06-06 | B81: LASA | C81: Lasa Supergenerics Ltd | D81: BP FINTRADE PRIVATE LIMITED | E81: SELL | F81: 113235 | G81: 49.12 | H81: NSE
A82: 2018-06-06 | B82: RCOM | C82: Reliance Comm. Ltd. | D82: ADROIT FINANCIAL SERVICES PRIVATE LIMITED | E82: SELL | F82: 21455708 | G82: 15.61 | H82: NSE
A83: 2018-06-06 | B83: RCOM | C83: Reliance Comm. Ltd. | D83: ADROIT SHARE & STOCK BROKER PVT. LTD. | E83: SELL | F83: 16930347 | G83: 15.66 | H83: NSE
A84: 2018-06-06 | B84: RCOM | C84: Reliance Comm. Ltd. | D84: SHAASTRA SECURITIES TRADING PRIVATE LIMITED | E84: SELL | F84: 28831658 | G84: 15.57 | H84: NSE
A85: 2018-06-06 | B85: SUULD | C85: Suumaya Lifestyle Limited | D85: RAM BALLABH KATTA | E85: SELL | F85: 304000 | G85: 17.82 | H85: NSE

Sheet Call Tracker (Equity & F&O)
M5: Back To Main Page
A6: Retail Research Technical Calls & Fundamental Performance Report for the month of June -2018
M7: =Main!B10 -> 2018-06-07
B8: Positional Call
A9: Sr.no | B9: Date | D9: Company | E9: Rec | F9: Rec Price | G9: Stop Loss*** | H9: Call Closed At | I9: Target | J9: Remark | K9: Profit / Loss per Share | L9: Gain / Loss % | M9: Status | N9: Closed Date | O9: NSE Closed Price
A10: 1 | B10: 2018-05-04 | D10: HCLTECH | E10: Buy | F10: 925 | G10: 890 | H10: 890 | I10: 980-990 | J10: Loss of Rs.35/- | K10: =H10-F10 -> -35.00 | L10: =K10/F10 -> -3.78% | M10: Unsuccessful | N10: 2018-06-05 | R10: H
A11: 2 | B11: 2018-05-25 | D11: MARUTI | E11: Buy | F11: 8440 | G11: 8190 | H11: =(8640+8805)/2 -> 8722.5 | I11: 8850-8900 | J11: Profit of Rs.282.5/- | K11: =H11-F11 -> 282.5 | L11: =K11/F11 -> 3.35% | M11: Successful | N11: 2018-06-01 | R11: R
A12: 3 | B12: 2018-05-29 | D12: CHOLAFIN | E12: Buy | F12: 1530 | G12: 1460 | H12: 1582.5 | I12: 1620-1640 | J12: Profit of Rs.52.5/- | K12: =H12-F12 -> 52.5 | L12: 3.43% | M12: Successful | N12: 2018-06-01 | R12: R
A13: 4 | B13: 2018-05-30 | D13: HEXAWARE | E13: Sell | F13: 447 | G13: 465 | H13: 434.5 | I13: 415-405 | J13: Profit of Rs.12.5/- | K13: =F13-H13 -> 12.5 | L13: 2.80% | M13: Successful | N13: 2018-06-01 | R13: H
A14: 5 | B14: 2018-05-30 | D14: VEDL | E14: Buy | F14: 248 | G14: 237 | H14: 258 | I14: 268-272 | J14: Profit of Rs.10/- | K14: =H14-F14 -> 10 | L14: =K14/F14 -> 4.03% | M14: Successful | N14: 2018-06-01 | R14: R
A15: 6 | B15: 2018-06-01 | D15: ZEEL | E15: Buy | F15: 557.5 | G15: 539 | H15: 538 | I15: 590-600 | J15: Loss of Rs.19.50/- | K15: =H15-F15 -> -19.50 | L15: -3.50% | M15: Unsuccessful | N15: 2018-06-06 | R15: H
A16: 7 | B16: 2018-06-01 | D16: UPL | E16: Buy | F16: 700-704 | G16: 668 | I16: 750-760 | J16: Open | O16: =VLOOKUP(D16,Sheet2!$A$1:M2165,6,0) -> 693.55 | R16: H
A17: 8 | B17: 2018-06-04 | D17: CROMPTON | E17: Buy | F17: 220-222 | G17: 209 | I17: 235-240 | J17: Open | O17: =VLOOKUP(D17,Sheet2!$A$1:M2166,6,0) -> 225 | R17: R
A18: 9 | B18: 2018-06-05 | D18: TECHM | E18: Sell | F18: 708 | G18: 728 | H18: 686.25 | I18: 680-670 | J18: Profit of Rs.21.75/- | K18: =F18-H18 -> 21.75 | L18: =K18/F18 -> 3.07% | M18: Successful | N18: 2018-06-06 | R18: H
A33: CLBS = Closing Basis *** | F33: Reinitiated $
A34: Dividend adjusted <> | F34: Revised stoploss #
A36: Master Trade High Risk
A37: Sr.no | B37: Date | D37: Company | E37: Rec | F37: Rec Price | G37: Stop Loss | H37: Call Closed At | I37: Target | J37: Remark | K37: Profit / Loss per share | L37: Gain / Loss per Lot | M37: Lot | N37: Status | O37: Closed Date
A47: Master Trade Medium Risk
A48: Sr.no | B48: Date | D48: Company | E48: Rec | F48: Rec Price | G48: Stop Loss | H48: Call Closed At | I48: Target | J48: Remark | K48: Profit/Loss per lot | L48: Gain / Loss per Lot | M48: Lot | N48: Status | O48: Closed Date
B58: Smart Delivery Trade
A59: Sr.no | B59: Date | D59: Company | E59: Rec | F59: Rec Price | G59: Stop Loss*** | H59: Call Closed At | I59: Target | J59: Remark | K59: Profit / Loss per Share | L59: Gain / Loss % | M59: Status | N59: Closed Date | O59: NSE Closed Price
A60: 1 | B60: 2018-05-29 | D60: TATASTEEL | E60: Buy | F60: 575-580 | G60: 555 | I60: 600-610 | J60: Open | O60: =VLOOKUP(D60,Sheet2!$A$1:M2233,6,0) -> 579.75 | R60: R
A61: 2 | B61: 2018-05-29 | D61: RELIANCE | E61: Buy | F61: 925 | G61: 898 | H61: 943 | I61: 960-970 | J61: Profit of Rs.18/- | K61: =H61-F61 -> 18 | L61: =K61/F61 -> 1.95% | M61: Successful | N61: 2018-06-04 | R61: R
A62: 3 | B62: 2018-05-30 | D62: CADILAHC | E62: Buy | F62: 367 | G62: 357 | H62: 355 | I62: 380-388 | J62: Loss of Rs.12/- | K62: =H62-F62 -> -12.00 | L62: =K62/F62 -> -3.27% | M62: Unsuccessful | N62: 2018-06-01 | R62: H
A63: 4 | B63: 2018-05-30 | D63: TATAMOTORS | E63: Buy | F63: 289-291 | G63: 279 | I63: 305-310 | J63: Open | O63: =VLOOKUP(D63,Sheet2!$A$1:M2236,6,0) -> 295.65 | R63: H
A64: 5 | B64: 2018-05-30 | D64: ITC | E64: Buy | F64: 270-272 | G64: 262 | I64: 285-290 | J64: Open | O64: =VLOOKUP(D64,Sheet2!$A$1:M2237,6,0) -> 270.4 | R64: H
A65: 6 | B65: 2018-05-30 | D65: AMARAJABAT | E65: Buy | F65: 792 | G65: 768 | H65: 768 | I65: 830-840 | J65: Loss of Rs.24/- | K65: =H65-F65 -> -24.00 | L65: =K65/F65 -> -3.03% | M65: Unsuccessful | N65: 2018-06-04 | R65: R
A66: 7 | B66: 2018-05-30 | D66: LICHSGFIN | E66: Buy | F66: 475 | G66: 460 | H66: 489.5 | I66: 495-500 | J66: Profit of Rs.14.50/- | K66: =H66-F66 -> 14.5 | L66: 3.05% | M66: Successful | N66: 2018-06-06 | R66: R
A67: 8 | B67: 2018-06-01 | D67: HINDALCO | E67: Buy | F67: 233.5 | G67: 227 | H67: 240.5 | I67: 245 | J67: Profit of Rs.7/- | K67: =H67-F67 -> 7 | L67: =K67/F67 -> 3.00% | M67: Successful | N67: 2018-06-04 | R67: H
A68: 9 | B68: 2018-06-05 | D68: KPIT | E68: Sell | F68: 280.5 | G68: 292 | H68: 271.5 | I68: 266-262 | J68: Profit of Rs.9/- | K68: =F68-H68 -> 9 | L68: =K68/F68 -> 3.21% | M68: Successful | N68: 2018-06-05 | R68: H
A69: 10 | B69: 2018-06-05 | D69: BATAINDIA | E69: Buy | F69: 754 | G69: 734 | I69: 785-790 | J69: Open | O69: =VLOOKUP(D69,Sheet2!$A$1:M2242,6,0) -> 750.8 | R69: R
A70: 11 | B70: 2018-06-06 | D70: RAYMOND | E70: Buy | F70: 967-972 | G70: 938 | I70: 1020 | J70: Open | O70: =VLOOKUP(D70,Sheet2!$A$1:M2243,6,0) -> 978.1 | R70: H
A81: CLBS = Closing Basis *** | F81: Reinitiated $
A82: Dividend adjusted <> | F82: Revised stoploss #
B85: Momentum Call
A86: Sr.no | B86: Date | D86: Company | E86: Rec | F86: Rec Price | G86: Stop Loss | H86: Call Closed At | I86: Target | J86: Remark | K86: Profit / Loss per Share/Lot | L86: Gain / Loss % | M86: Gain / Loss per Lot | N86: Lot | O86: Status | P86: Closed Date | Q86: NSE Closed Price
A87: 1 | B87: 2018-06-04 | D87: APOLLOTYRE | E87: Buy | F87: 268 | G87: 260 | H87: 273.75 | I87: 280-285 | J87: Profit of Rs.5.75/- | K87: =H87-F87 -> 5.75 | L87: =K87/F87 -> 2.15% | O87: Successful | P87: 2018-06-06 | R87: H
A88: 2 | B88: 2018-06-05 | D88: LT June Fut | E88: Sell | F88: 1343.5 | G88: 1358 | H88: 1339 | I88: 1330-1320 | J88: Profit of Rs.4.5/- | K88: =F88-H88 -> 4.5 | M88: =N88*K88 -> 3375 | N88: 750 | O88: Successful | P88: 2018-06-05 | R88: H
A89: 3 | B89: 2018-06-05 | D89: L&TFH | E89: Buy | F89: 163 | G89: 159 | H89: 167.5 | I89: 170-172 | J89: Profit of Rs.4.5/- | K89: =H89-F89 -> 4.5 | L89: =K89/F89 -> 2.76% | O89: Successful | P89: 2018-06-06 | R89: H
A90: 4 | B90: 2018-06-05 | D90: ASIANPAINT JUN FUT | E90: Buy | F90: 1285.5 | G90: 1264 | H90: 1264 | I90: 1310-1320 | J90: Loss of Rs.21.5/- | K90: =H90-F90 -> -21.5 | M90: =N90*K90 -> -12900 | N90: 600 | O90: Unsuccessful | P90: 2018-06-06 | R90: R
A91: 5 | B91: 2018-06-06 | D91: ACC JUN FUT | E91: Buy | F91: 1296 | G91: 1275 | H91: 1315.5 | I91: 1320-1330 | J91: Profit of Rs.19.50/- | K91: =H91-F91 -> 19.5 | M91: =N91*K91 -> 7800 | N91: 400 | O91: Successful | P91: 2018-06-06 | R91: H
A97: CLBS = Closing Basis *** | F97: Reinitiated $
A98: Dividend adjusted <> | F98: Revised stoploss #
B100: Quick Pick Intraday
A101: Sr.no | B101: Date | D101: Company | E101: Rec | F101: Rec Price | G101: Stop Loss*** | H101: Call Closed At | I101: Target | J101: Remark | K101: Profit / Loss per Share | L101: Status | M101: Closed Date
A102: 1 | B102: 2018-06-04 | D102: BAJFINANCE | E102: Buy | F102: 2082.5 | G102: 2057 | H102: 2067.5 | I102: 2150 | J102: Loss of Rs.15/- | K102: =H102-F102 -> -15 | L102: Neutral | M102: 2018-06-04 | R102: R
A103: 2 | B103: 2018-06-05 | D103: ARVIND | E103: Sell | F103: 375.5 | G103: 382 | H103: 371.5 | I103: 368-365 | J103: Profit of Rs.4/- | K103: =F103-H103 -> 4 | L103: Successful | M103: 2018-06-05 | R103: H
A104: 3 | B104: 2018-06-05 | D104: DLF | E104: Buy | F104: 200.5 | G104: 197 | H104: 197 | I104: 206 | J104: Loss of Rs.3.5/- | K104: =H104-F104 -> -3.5 | L104: Unsuccessful | M104: 2018-06-05 | R104: R
A115: Techno -Funda (positional)
A116: Sr.no | B116: Date | D116: Company | E116: Rec | F116: Rec Price | G116: Stop Loss*** | H116: Call Closed At | I116: Target | J116: Remark | K116: Profit / Loss per Share | L116: Gain / Loss % | M116: Status | N116: Closed Date | O116: NSE Closed Price
A117: 1 | B117: 2018-06-04 | D117: BAJAJ-AUTO | E117: Buy | F117: 2875-2895 | G117: 2730 | I117: 3170-3200 | J117: Open | R117: H
A119: CLBS = Closing Basis *** | F119: Reinitiated $
A120: Dividend adjusted <> | F120: Revised stoploss #
B125: Investment Idea
A126: Sr.no | B126: Date | D126: Company | E126: Rec | F126: Rec Price | G126: Point of Review | H126: Close Rate | I126: Target | J126: Remark | K126: Profit / Loss per Share | L126: Gain / Loss % | M126: Status | N126: Closed Date
A127: 1 | B127: 2013-11-01 | D127: L&T Finance Holding | E127: Accu | F127: 82.00 | G127: - | H127: 100 | I127: 100.00 | J127: Target Achieved | K127: =H127-F127 -> 18.00 | L127: =K127/F127 -> 21.95% | M127: Successful | N127: 2016-10-14
A128: 2 | B128: 2014-06-04 | D128: Finolex Inds | E128: Buy | F128: 257.00 | G128: - | H128: 300 | I128: 300.00 | J128: Target Achieved | K128: =H128-F128 -> 43.00 | L128: 16.73% | M128: Successful | N128: 2014-07-02
A129: =1+A128 -> 3 | B129: 2014-07-08 | D129: JK Cement | E129: Buy | F129: 393.00 | G129: - | H129: 468 | I129: 468.00 | J129: Target Achieved | K129: =H129-F129 -> 75.00 | L129: 19.08% | M129: Successful | N129: 2014-08-12
A130: 4 | B130: 2014-08-06 | D130: Finolex Cables | E130: Buy | F130: 205.00 | G130: - | H130: 275 | I130: 250.00 | J130: Target Achieved | K130: 70.00 | L130: 34.15% | M130: Successful | N130: 2014-11-19
A131: 5 | B131: 2014-09-04 | D131: Exide Inds | E131: Buy | F131: 162.00 | G131: - | H131: 190 | I131: 190.00 | J131: Target Achieved | K131: 28.00 | L131: 17.28% | M131: Successful | N131: 2015-01-02
A132: 6 | B132: 2014-09-04 | D132: Deepak Nitrite | E132: Buy | F132: 75.00 | G132: - | H132: 91.5 | I132: 95-100 | J132: Profit of Rs.16.50/- | K132: 16.50 | L132: 22.00% | M132: Successful | N132: 2014-11-11
A133: 7 | B133: 2014-10-01 | D133: Mercks | E133: Buy | F133: 850.00 | G133: - | H133: 982.5 | I133: 1050.00 | J133: Profit of Rs.132.50/- | K133: 132.50 | L133: 15.59% | M133: Successful | N133: 2015-02-04
A134: 8 | B134: 2014-10-01 | D134: Grindwell Norton | E134: Buy | F134: 475.00 | G134: - | H134: 515 | I134: 600.00 | J134: Profit of Rs.40/- | K134: 40.00 | L134: 8.42% | M134: Successful | N134: 2014-10-27
A135: 9 | B135: 2014-10-01 | D135: Snowman Logistics | E135: Buy | F135: 86.00 | G135: - | H135: 99 | I135: 140.00 | J135: Profit of Rs.13.00/- | K135: 13.00 | L135: 15.12% | M135: Successful | N135: 2014-10-27
A136: 10 | B136: 2014-10-14 | D136: Birla Corp | E136: Buy | F136: 496.60 | G136: - | H136: 621 | I136: 580.00 | J136: Target Achieved | K136: 124.40 | L136: 25.05% | M136: Successful | N136: 2016-08-23
A137: 11 | B137: 2014-10-14 | D137: Ultratech Cem | E137: Buy | F137: 2481.90 | G137: - | H137: 2840 | I137: 2870.00 | J137: Profit of Rs.358.10/- | K137: 358.10 | L137: 14.43% | M137: Successful | N137: 2015-01-13
A138: =1+A135 -> 10 | B138: 2014-10-16 | D138: Sintex Inds | E138: Buy | F138: 84.50 | G138: - | H138: 93 | I138: 110.00 | J138: Profit of Rs.8.50/- | K138: 8.50 | L138: 10.06% | M138: Successful | N138: 2014-10-27
A139: =1+A138 -> 11 | B139: 2014-10-16 | D139: HSIL | E139: Buy | F139: 401.00 | G139: - | H139: 428 | I139: 450.00 | J139: Profit of Rs.27.00/- | K139: 27.00 | L139: 6.73% | M139: Successful | N139: 2015-01-16
A140: 12 | B140: 2014-10-16 | D140: Eveready Inds | E140: Buy | F140: 101.00 | G140: - | H140: 112 | I140: 120.00 | J140: Profit of Rs.11.00/- | K140: 11.00 | L140: 10.89% | M140: Successful | N140: 2014-10-27
A141: 13 | B141: 2014-11-11 | D141: Pennar Inds | E141: Buy | F141: 59.00 | G141: - | H141: 76 | I141: 76.00 | J141: Target Achieved | K141: 17.00 | L141: 28.81% | M141: Successful | N141: 2017-10-24
A142: 14 | B142: 2014-11-11 | D142: Snowman Logistics | E142: Buy | F142: 99.00 | G142: - | H142: 120 | I142: 120.00 | J142: Profit of Rs.21/- | K142: 21.00 | L142: 21.21% | M142: Successful | N142: 2014-11-17
A143: 15 | B143: 2014-11-13 | D143: Dharamsi Morarji Chem | E143: Buy | F143: 22.00 | G143: - | H143: 33.55 | I143: 32.00 | J143: Profit of Rs 11.55/- | K143: 11.55 | L143: 52.50% | M143: Successful | N143: 2015-07-03
A144: 16 | B144: 2014-12-03 | D144: Tatachem | E144: Buy | F144: 440.00 | G144: - | H144: 520 | I144: 520.00 | J144: Profit of Rs 80.00/- | K144: 80.00 | L144: 18.18% | M144: Successful | N144: 2015-07-23
A145: 17 | B145: 2014-12-03 | D145: Advanta | E145: Buy | F145: 360.00 | G145: - | H145: 427 | I145: 425.00 | J145: Profit of Rs.67.00/- | K145: 67.00 | L145: 18.61% | M145: Successful | N145: 2015-02-23
A146: 18 | B146: 2015-01-08 | D146: GDL | E146: Buy | F146: 360.00 | G146: - | H146: 455 | I146: 420.00 | J146: Profit of Rs.95.00/- | K146: 95.00 | L146: 26.39% | M146: Successful | N146: 2015-01-20
A147: 19 | B147: 2015-01-08 | D147: NRB Bearing | E147: Buy | F147: 130.00 | H147: 175.5 | I147: 165.00 | J147: Profit of Rs 45.50/- | K147: 45.50 | L147: 35.00% | M147: Successful | N147: 2017-12-19
A148: 20 | B148: 2015-02-05 | D148: GSFC | E148: Accu | F148: 98.00 | H148: 120 | I148: 120.00 | J148: Target Achieved | K148: 22.00 | L148: 22.45% | M148: Successful | N148: 2017-01-18
A149: 21 | B149: 2015-02-05 | D149: Sundrmfast | E149: Accu | F149: 196.00 | H149: 262 | I149: 255.00 | J149: Target Achieved | K149: 66.00 | L149: 33.67% | M149: Successful | N149: 2016-08-17
A150: 22 | B150: 2015-03-04 | D150: GPPL | E150: Accu | F150: 230-240 | I150: 280-285 | J150: Open
A151: 23 | B151: 2015-03-04 | D151: ORIENTCEM | E151: Accu | F151: 185.00 | H151: 224 | I151: 220-225 | J151: Target Achieved | K151: 39.00 | L151: =K151/F151 -> 21.08% | M151: Successful | N151: 2016-10-04
A152: 24 | B152: 2015-03-27 | D152: PFS | E152: Accu | F152: 49-50 | I152: 67.00 | J152: Open
A153: 25 | B153: 2015-03-30 | D153: Walchandnagar Ind Ltd | E153: Accu | F153: 183.50 | H153: 219 | I153: 218.00 | J153: Profit of Rs.35.50/- | K153: 35.50 | L153: =K153/F153 -> 19.35% | M153: Successful | N153: 2015-04-09
A154: 26 | B154: 2015-04-20 | D154: Kalpataru Power Transmission Ltd | E154: Accu | F154: =(227+237)/2 -> 232.00 | H154: 298 | I154: 298.00 | J154: Target Achieved | K154: 66.00 | L154: 28.45% | M154: Successful | N154: 2017-03-29
A155: 27 | B155: 2015-05-04 | D155: Mastek Ltd | E155: Buy | F155: 385.00 | H155: =212.5+331 -> 543.5 | I155: 510.00 | J155: Profit of Rs 158.50/- | K155: 158.50 | L155: 41.17% | M155: Successful | N155: 2015-08-19
A156: 28 | B156: 2015-05-04 | D156: Suprajit Eng | E156: Buy | F156: 115.50 | H156: 146 | I156: 142.00 | J156: Profit of Rs 30.50/- | K156: 30.50 | L156: 26.41% | M156: Successful | N156: 2015-07-17
A157: 29 | B157: 2015-05-27 | D157: TCI | E157: Buy | F157: 237.50 | H157: 279.5 | I157: 278.00 | J157: Target Achieved | K157: 42.00 | L157: 17.68% | M157: Successful | N157: 2015-08-06
A158: 30 | B158: 2015-06-19 | D158: HSIL | E158: Accu | F158: 340.00 | H158: 448 | I158: 448.00 | J158: Target Achieved | K158: 108.00 | L158: 31.76% | M158: Successful | N158: 2017-10-10
A159: 31 | B159: 2015-07-06 | D159: Capital First | E159: Accu | F159: 390.00 | H159: 460 | I159: 460.00 | J159: Target Achieved | K159: 70.00 | L159: 17.95% | M159: Successful | N159: 2016-04-18
A160: 32 | B160: 2015-07-10 | D160: Dolphin OffShore | E160: Accu | F160: 118-127 | I160: 172.00 | J160: Open
A161: 33 | B161: 2015-08-03 | D161: Allcargo logistics | E161: Accu | F161: 297.50 | H161: 350 | I161: 360.00 | J161: Profit of Rs 52.50/- | K161: 52.50 | L161: =K161/F161 -> 17.65% | M161: Successful | N161: 2015-08-16
A162: 34 | B162: 2015-08-03 | D162: Camline Fine | E162: Accu | F162: 115.50 | H162: 149 | I162: 140.00 | J162: Profit of Rs 33.50/- | K162: 33.50 | L162: 29.00% | M162: Successful | N162: 2017-01-05
A163: 35 | B163: 2015-09-04 | D163: TCI | E163: Accu | F163: 226.00 | H163: 292 | I163: 292.00 | J163: Target Achieved | K163: 66.00 | L163: 29.20% | M163: Successful | N163: 2015-10-09
A164: 36 | B164: 2015-09-07 | D164: Kalpataru Power Transmission Ltd | E164: Accu | F164: 232.50 | H164: 312.5 | I164: 310.00 | J164: Target Achieved | K164: 80.00 | L164: 34.41% | M164: Successful | N164: 2017-03-29
A165: 37 | B165: 2015-09-21 | D165: LLOYD ELECTRIC & ENG LTD | E165: Accu | F165: 196.50 | H165: 238 | I165: 238.00 | J165: Target Achieved | K165: 41.50 | L165: 21.12% | M165: Successful | N165: 2015-10-14
A166: 38 | B166: 2015-09-24 | D166: L&T Finance Holding | E166: Accu | F166: 65.00 | H166: 82 | I166: 82.00 | J166: Target Achieved | K166: 17.00 | L166: 26.15% | M166: Successful | N166: 2016-07-27
A167: 39 | B167: 2015-10-14 | D167: KEC International ltd | E167: Accu | F167: 144.00 | H167: 182.5 | I167: 181.00 | J167: Target Achieved | K167: 38.50 | L167: 26.74% | M167: Successful | N167: 2017-03-23
A168: 40 | B168: 2015-10-14 | D168: Gruh Finance | E168: Accu | F168: 264.00 | H168: 311 | I168: 311.00 | J168: Target Achieved | K168: 47.00 | L168: 17.80% | M168: Successful | N168: 2016-08-22
A169: 41 | B169: 2015-11-10 | D169: Pidilitind | E169: Buy | F169: 549.50 | H169: 630 | I169: 630.00 | J169: Target Achieved | K169: 80.50 | L169: 14.65% | M169: Successful | N169: 2016-02-19
A170: 42 | B170: 2015-12-04 | D170: Zensar Technology | E170: Accu | F170: 1027.50 | H170: 1315 | I170: 1250.00 | J170: Target Achieved | K170: =H170-F170 -> 287.50 | L170: 27.98% | M170: Successful | N170: 2018-05-24
A171: 43 | B171: 2015-12-29 | D171: Vinati Organics Ltd | E171: Accu | F171: 465.00 | H171: 540 | I171: 540.00 | J171: Target Achieved | K171: 75.00 | L171: =K171/F171 -> 16.13% | M171: Successful | N171: 2016-06-09
A172: 44 | B172: 2016-01-11 | D172: GSFC | E172: Buy | F172: 81.00 | H172: 110 | I172: 110.00 | J172: Target Achieved | K172: 29.00 | L172: 35.80% | M172: Successful | N172: 2017-01-10
A173: 45 | B173: 2016-01-13 | D173: SSWL | E173: Buy | F173: 417.50 | H173: 547 | I173: 535.00 | J173: Target Achieved | K173: 129.50 | L173: 31.02% | M173: Successful | N173: 2016-07-27
A174: 46 | B174: 2016-02-08 | D174: Persistent System Ltd | E174: Accu | F174: 650.00 | H174: 800 | I174: 800.00 | J174: Target Achieved | K174: 150.00 | L174: 23.08% | M174: Successful | N174: 2018-02-23
A175: 47 | B175: 2016-03-04 | D175: UPL | E175: Accu | F175: 437.50 | H175: 504.5 | I175: 522.00 | J175: Profit of Rs.67/- | K175: 67.00 | L175: 15.31% | M175: Successful | N175: 2016-04-20
A176: 48 | B176: 2016-03-09 | D176: Ashoka Buildcon Ltd | E176: Accu | F176: 189.50 | H176: 218 | I176: 218.00 | J176: Target Achieved | K176: 28.50 | L176: 15.04% | M176: Successful | N176: 2017-10-26
A177: 49 | B177: 2016-04-11 | D177: PTC INDIA FIN SERV LTD | E177: Accu | F177: 36-37 | I177: 60.00 | J177: Open
A178: 50 | B178: 2016-04-12 | D178: CAMLINFINE $ | E178: Accu | F178: 93.00 | H178: 149 | I178: 140.00 | J178: Profit of Rs 56/- | K178: 56.00 | L178: =K178/F178 -> 60.22% | M178: Successful | N178: 2017-01-05
A179: 51 | B179: 2016-04-12 | D179: Greaves Cotton Ltd. | E179: Accu | F179: 130.00 | H179: 150 | I179: 150-155 | J179: Target Achieved | K179: 20.00 | L179: 15.38% | M179: Successful | N179: 2016-07-13
A180: 52 | B180: 2016-04-13 | D180: DHFL | E180: Accu | F180: 196.00 | H180: 299 | I180: 299.00 | J180: Target Achieved | K180: 103.00 | L180: 52.55% | M180: Successful | N180: 2016-09-07
A181: 53 | B181: 2016-04-13 | D181: Magma | E181: Accu | F181: 88.00 | H181: 103 | I181: 103.00 | J181: Target Achieved | K181: 15.00 | L181: 17.05% | M181: Successful | N181: 2016-06-09
A182: 54 | B182: 2016-05-02 | D182: KEC International ltd $ | E182: Accu | F182: 127.50 | H182: 148 | I182: 148-150 | J182: Target Achieved | K182: 20.50 | L182: 16.08% | M182: Successful | N182: 2016-07-13
A183: 55 | B183: 2016-05-03 | D183: Mindtree | E183: Accu | F183: 675.00 | H183: 815 | I183: 790-800 | J183: Target Achieved | K183: 140.00 | L183: 20.74% | M183: Successful | N183: 2018-02-23
A184: 56 | B184: 2016-06-01 | D184: Atulauto | E184: Accu | F184: 495-505 | I184: 565-570 | J184: Open
A185: 57 | B185: 2016-06-06 | D185: TRITURBINE | E185: Accu | F185: 110.00 | H185: 126.5 | I185: 125.00 | J185: Profit of Rs.16.50/- | K185: 16.50 | L185: =K185/F185 -> 15.00% | M185: Successful | N185: 2016-07-01
A186: 58 | B186: 2016-06-17 | D186: Pennar Industries Ltd | E186: Accu | F186: 44.00 | H186: 69.5 | I186: 69.50 | J186: Profit of Rs.25.50/- | K186: 25.50 | L186: =K186/F186 -> 57.95% | M186: Successful | N186: 2017-08-30
A187: 59 | B187: 2016-06-28 | D187: EVEREADY INDS. IND. LTD. | E187: Accu | F187: 262.50 | H187: 340 | I187: 333.00 | J187: Profit of Rs.77.50/- | K187: 77.50 | L187: =K187/F187 -> 29.52% | M187: Successful | N187: 2017-10-09
A188: 60 | B188: 2016-06-28 | D188: FIEM INDUSTRIES LIMITED | E188: Accu | F188: 840.00 | H188: 1230 | I188: 1230.00 | J188: Target Achieved | K188: 390.00 | L188: =K188/F188 -> 46.43% | M188: Successful | N188: 2016-10-06
A189: 61 | B189: 2016-07-05 | D189: Bajaj Corp Ltd | E189: Accu | F189: 395 | H189: 468.50 | I189: 510.00 | J189: Part profit of Rs.73.50/- | K189: 73.50 | L189: =K189/F189 -> 19% | M189: Successful | N189: 2017-08-30
A190: 62 | B190: 2016-08-02 | D190: GPPL $ | E190: Buy | F190: 167-172 | I190: 198-200 | J190: Open
A191: 63 | B191: 2016-08-04 | D191: WONDERLA HOLIDAYS LTD | E191: Accu | F191: 395-405 | I191: 475.00 | J191: Open
A192: 64 | B192: 2016-08-11 | D192: CAMLINFINE | E192: Accu | F192: 86.50 | H192: 130 | I192: 130.00 | J192: Profit of Rs.43.50/- | K192: =H192-F192 -> 43.50 | L192: =K192/F192 -> 50.29% | M192: Successful | N192: 2017-12-22
A193: 65 | B193: 2016-08-18 | D193: GRANULES | E193: Accu | F193: 133.5 | H193: 126.50 | I193: 178.00 | J193: Exit | K193: -7.00 | L193: -5.24% | M193: Unsuccessful | N193: 2016-09-02
A194: 66 | B194: 2016-08-31 | D194: VA TECH WABAG | E194: Accu | F194: 560.00 | H194: 725 | I194: 725.00 | J194: Target Achieved | K194: 165.00 | L194: 29.46% | M194: Successful | N194: 2016-03-27
A195: 67 | B195: 2016-09-01 | D195: SKIPPER LIMITED | E195: Accu | F195: 160.50 | H195: 210 | I195: 210.00 | J195: Target Achieved | K195: 49.50 | L195: 30.84% | M195: Successful | N195: 2017-05-16
A196: 68 | B196: 2016-10-03 | D196: IFB Industries | E196: Accu | F196: 430.00 | H196: 596 | I196: 575.00 | J196: Profit of Rs.166/- | K196: 166.00 | L196: 38.60% | M196: Successful | N196: 2017-02-03
A197: 69 | B197: 2016-10-14 | D197: ASIANTILES | E197: Accu | F197: 280.00 | H197: 345 | I197: 345.00 | J197: Target Achieved | K197: 65.00 | L197: 23.21% | M197: Successful | N197: 2017-03-20
A198: 70 | B198: 2016-10-14 | D198: DEEPIND | E198: Accu | F198: 245.00 | H198: 325.5 | I198: 330.00 | J198: Profit of Rs.80.5/- | K198: 80.50 | L198: 32.86% | M198: Successful | N198: 2017-02-03
A199: 71 | B199: 2016-10-17 | D199: DCBBANK | E199: Accu | F199: 125.00 | H199: 160 | I199: 160.00 | J199: Target Achieved | K199: 35.00 | L199: 28.00% | M199: Successful | N199: 2017-03-09
A200: 72 | B200: 2016-10-17 | D200: ORIENTREF | E200: Accu | F200: 114.00 | H200: 145 | I200: 145.00 | J200: Target Achieved | K200: 31.00 | L200: =K200/F200 -> 27.19% | M200: Successful | N200: 2017-05-04
A201: 73 | B201: 2016-10-17 | D201: GANECOS | E201: Accu | F201: 212.00 | H201: 280 | I201: 276.00 | J201: Profit of Rs.68/- | K201: 68.00 | L201: =K201/F201 -> 32.08% | M201: Successful | N201: 2017-05-03
A202: 74 | B202: 2016-11-04 | D202: NBCC | E202: Accu | F202: 155.00 | H202: 210 | I202: 210.00 | J202: Profit of Rs.55/- | K202: 55.00 | L202: =K202/F202 -> 35.48% | M202: Successful | N202: 2017-07-28
A203: 75 | B203: 2016-12-06 | D203: PRECAM | E203: Accu | F203: 148-153 | I203: 174.00 | J203: Open
A204: 76 | B204: 2016-12-08 | D204: INFRATEL | E204: Accu | F204: 380.00 | H204: 478 | I204: 468.00 | J204: Target Achieved | K204: 98.00 | L204: =K204/F204 -> 25.79% | M204: Successful | N204: 2017-10-17
A205: 77 | B205: 2016-12-30 | D205: GODREJPROP | E205: Accu | F205: 305.00 | H205: 375 | I205: 375.00 | J205: Target Achieved | K205: 70.00 | L205: 22.95% | M205: Successful | N205: 2017-02-02
A206: 78 | B206: 2017-01-04 | D206: DEEPAKNTR | E206: Accu | F206: 99.50 | H206: 158 | I206: 158.00 | J206: Target Achieved | K206: 58.50 | L206: 58.79% | M206: Successful | N206: 2017-06-12
A207: 79 | B207: 2017-02-20 | D207: SUBROS | E207: Accu | F207: 202.50 | H207: 234 | I207: 234.00 | J207: Target Achieved | K207: 31.50 | L207: 15.56% | M207: Successful | N207: 2017-04-11
A208: 80 | B208: 2017-02-20 | D208: RECLTD | E208: Accu | F208: 140.50 | H208: 220 | I208: 220.00 | J208: Target Achieved | K208: 79.50 | L208: 56.58% | M208: Successful | N208: 2017-05-09
A209: 81 | B209: 2017-03-24 | D209: VRLLOG | E209: Accu | F209: 300.50 | H209: 417.5 | I209: 420.00 | J209: Profit of Rs.117/- | K209: 117.00 | L209: 38.94% | M209: Successful | N209: 2017-12-01
A210: 82 | B210: 2017-03-24 | D210: FIEMIND | E210: Accu | F210: 850.00 | H210: 1042.5 | I210: 1023.00 | J210: Profit of Rs 192.50/- | K210: 192.50 | L210: 22.65% | M210: Successful | N210: 2017-04-05
A211: 83 | B211: 2017-04-05 | D211: RATNAMANI | E211: Accu | F211: 785.00 | H211: 930 | I211: 920.00 | J211: Profit of Rs.145/- | K211: 145.00 | L211: 18.47% | M211: Successful | N211: 2017-08-29
A212: 84 | B212: 2017-04-06 | D212: ZEEMEDIA | E212: Accu | F212: 39-41 | I212: 60.00 | J212: Open
A213: 85 | B213: 2017-04-12 | D213: DABUR | E213: Accu | F213: 289.50 | H213: 354 | I213: 360.00 | J213: Profit of Rs.64.5/- | K213: 64.50 | L213: =K213/F213 -> 22.28% | M213: Successful | N213: 2017-11-01
A214: 86 | B214: 2017-04-20 | D214: KPRMILL | E214: Accu | F214: 700.00 | H214: 840 | I214: 840.00 | J214: Profit of Rs.140/- | K214: 140.00 | L214: =K214/F214 -> 20.00% | M214: Successful | N214: 2017-06-07
A215: 87 | B215: 2017-05-22 | D215: GREAVESCOT | E215: Accu | F215: 153-158 | I215: 190.00 | J215: Open
A216: 88 | B216: 2017-06-01 | D216: ESSELPACK | E216: Accu | F216: 260 | H216: 311.00 | I216: 340.00 | J216: Part profit of Rs.51/- | K216: =H216-F216 -> 51.00 | L216: =K216/F216 -> 20% | M216: Successful | N216: 2017-11-17
A217: 89 | B217: 2017-06-15 | D217: KEI | E217: Accu | F217: 214.50 | H217: 262 | I217: 262.00 | J217: Profit of Rs.47.5/- | K217: =H217-F217 -> 47.50 | L217: 22.14% | M217: Successful | N217: 2017-08-30
A218: 90 | B218: 2017-07-17 | D218: MAYURUNIQ | E218: Accu | F218: 370.00 | H218: 447.5 | I218: 450.00 | J218: Target Achieved | K218: 77.50 | L218: 20.95% | M218: Successful | N218: 2017-10-27
A219: 91 | B219: 2017-07-27 | D219: RAMCOCEM | E219: Accu | F219: 657.50 | H219: 825 | I219: 820.00 | J219: Target Achieved | K219: 167.50 | L219: 25.48% | M219: Successful | N219: 2017-12-21
A220: 92 | B220: 2017-08-17 | D220: FINPIPE | E220: Accu | F220: 605.00 | H220: 750 | I220: 750.00 | J220: Profit of Rs.145/- | K220: 145.00 | L220: 23.97% | M220: Successful | N220: 2017-10-19
A221: 93 | B221: 2017-09-01 | D221: SHK | E221: Accu | F221: 255 | H221: 307.50 | I221: 320.00 | J221: Part profit of Rs.52.5/- | K221: 52.50 | L221: 21% | M221: Successful | N221: 2017-12-29
A222: 94 | B222: 2017-09-19 | D222: SKIPPER | E222: Accu | F222: 215.00 | H222: 258 | I222: 258.00 | J222: Target Achieved | K222: 43.00 | L222: 20.00% | M222: Successful | N222: 2017-11-01
A223: 95 | B223: 2017-09-20 | D223: CAMLINFINE | E223: Accu | F223: 75.00 | H223: 90 | I223: 90.00 | J223: Profit of Rs.15.00/- | K223: 15.00 | L223: 20.00% | M223: Successful | N223: 2017-10-11
A224: 96 | B224: 2017-10-03 | D224: GNA | E224: Accu | F224: 315.00 | H224: 392 | I224: 384.00 | J224: Profit of Rs.77/- | K224: 77.00 | L224: 24.44% | M224: Successful | N224: 2017-10-09
A225: 97 | B225: 2017-10-05 | D225: NOCIL | E225: Accu | F225: 145.00 | H225: 179 | I225: 180.00 | J225: Profit of Rs.34/- | K225: 34.00 | L225: 23.45% | M225: Successful | N225: 2017-10-17
A226: 98 | B226: 2017-10-06 | D226: CENTURYPLY | E226: Accu | F226: 256.00 | H226: 323 | I226: 320.00 | J226: Target Achieved | K226: 67.00 | L226: 26.17% | M226: Successful | N226: 2017-11-28
A227: 99 | B227: 2017-10-09 | D227: RECLTD | E227: Accu | F227: 152.5 | H227: 183.50 | I227: 210.00 | J227: Part Profit of Rs.31/- | K227: 31.00 | L227: 20% | M227: Successful | N227: 2017-11-03
A228: 100 | B228: 2017-10-09 | D228: EIHOTEL | E228: Accu | F228: 137.50 | H228: 184 | I228: 183.00 | J228: Profit of Rs.46.5/- | K228: 46.50 | L228: 33.82% | M228: Successful | N228: 2018-01-08
A229: 101 | B229: 2017-10-10 | D229: BOROSIL | E229: Accu | F229: 895.00 | H229: 1122.5 | I229: 1078.00 | J229: Profit of Rs.227.5/- | K229: 227.50 | L229: 25.42% | M229: Successful | N229: 2018-01-17
A230: 102 | B230: 2017-10-10 | D230: NRBBEARING | E230: Accu | F230: 125.50 | H230: 158 | I230: 155.00 | J230: Profit of Rs.32.5/- | K230: 32.50 | L230: 25.90% | M230: Successful | N230: 2017-11-28
A231: 103 | B231: 2017-10-12 | D231: CYIENT | E231: Accu | F231: 525.00 | H231: 629 | I231: 629.00 | J231: Target Achieved | K231: 104.00 | L231: 19.81% | M231: Successful | N231: 2018-01-19
A232: 104 | B232: 2017-11-07 | D232: HATSUN | E232: Accu | F232: 740.00 | H232: 892.5 | I232: 900.00 | J232: Profit of Rs.152.5/- | K232: 152.50 | L232: 20.61% | M232: Successful | N232: 2017-11-13
A233: 105 | B233: 2017-12-04 | D233: SANGHIIND | E233: Accu | F233: 118.50 | H233: 143.5 | I233: 145.00 | J233: Profit of Rs.25/- | K233: 25.00 | L233: 21.10% | M233: Successful | N233: 2017-12-28
A234: 106 | B234: 2017-12-05 | D234: ALLCARGO | E234: Accu | F234: 177.5 | H234: 215.00 | I234: 230.00 | J234: Part Profit of Rs.37.5/- | K234: 37.50 | L234: 21% | M234: Successful | N234: 2017-12-27
A235: 107 | B235: 2017-12-21 | D235: KAJARIACER | E235: Accu | F235: 710-720 | I235: 872.00 | J235: Open
A236: 108 | B236: 2017-12-29 | D236: GNA | E236: Accu | F236: 435.00 | H236: 542.5 | I236: 539.00 | J236: Target Achieved | K236: =H236-F236 -> 107.50 | L236: =K236/F236 -> 24.71% | M236: Successful | N236: 2018-04-16
A237: 109 | B237: 2017-12-29 | D237: ZENSARTECH | E237: Accu | F237: 885.00 | H237: 1090 | I237: 1084.00 | J237: Target Achieved | K237: 205.00 | L237: =K237/F237 -> 23.16% | M237: Successful | N237: 2018-04-23
A238: 110 | B238: 2018-02-07 | D238: GREAVESCOT | E238: Accu | F238: 130-132 | I238: 190.00 | J238: Open
A239: 111 | B239: 2018-02-27 | D239: MOLDTKPAC | E239: Accu | F239: 320-330 | I239: 398.00 | J239: Open
A240: 112 | B240: 2018-03-05 | D240: LICHSGFIN | E240: Accu | F240: 505-515 | I240: 672.00 | J240: Open
A241: 113 | B241: 2018-04-02 | D241: EVERESTIND | E241: Accu | F241: 485-500 | I241: 613.00 | J241: Open
A242: 114 | B242: 2018-04-04 | D242: GPPL | E242: Accu | F242: 140-143 | I242: 180.00 | J242: Open
A243: 115 | B243: 2018-04-19 | D243: MANPASAND | E243: Accu | F243: 430 | H243: 220.00 | I243: 537.00 | J243: Loss of Rs.210/- | K243: =H243-F243 -> -210.00 | L243: =K243/F243 -> -48.84% | M243: Unsuccessful | N243: 2018-06-01
A244: 116 | B244: 2018-04-30 | D244: HEIDELBERG | E244: Accu | F244: 154-158 | I244: 196.00 | J244: Open
A245: 117 | B245: 2018-05-17 | D245: PHILIPCARB | E245: Accu | F245: 230-240 | I245: 348.00 | J245: Open
F246: Reinitiated $
A248: Disclaimer:
A249: This document has been prepared by the Retail Research Desk of Asit C Mehta
A250: Investment Intermediates Ltd. and is meant for use of the recipient only
A251: and is not for circulation. This document is not to be reported or
A252: copied or made available to others. It should not be considered to be
A253: taken as an offer to sell or a solicitation to buy any security. The
A254: information contained herein is from sources believed reliable. We do
A255: not represent that it is accurate or complete and it should not be
A256: relied upon as such. We may from time to time have positions in and buy
A257: and sell securities referred to herein

Sheet Call Tracker (Currency) (hidden)
A1: Master Trade High Risk
A2: Sr.no | B2: Date | C2: Company | D2: Rec | E2: Rec Price | F2: Stop Loss | G2: Call Closed At | H2: Target | I2: Remark | K2: Profit / Loss per share | L2: Gain / Loss per Lot | M2: Lot | N2: Status | O2: Closed Date
A3: 1 | B3: 2017-05-08 | C3: USDINR MAY FUT | D3: Buy | E3: 64.3935 | F3: 64.29 | G3: 64.66 | H3: 64.59 | I3: Profit of Rs.0.27/- | K3: 0.27 | L3: 266.5 | M3: 1000 | N3: Successful | O3: 2017-05-09 | R3: P
A4: 2 | B4: 2017-05-08 | C4: USDINR JUN FUT | D4: Buy | E4: 64.6535 | F4: 64.45 | G4: 64.965 | H4: 65.05 | I4: Profit of Rs 0.31/- | K4: 0.31 | L4: 311.5 | M4: 1000 | N4: Successful | O4: 2017-05-09 | R4: P
A5: 3 | B5: 2017-05-09 | C5: EUROINR MAY FUT | D5: Sell | E5: 70.65 | F5: 70.8 | G5: 70.07 | H5: 70.4 | I5: Profit of Rs 0.58/- | K5: 0.58 | L5: 580 | M5: 1000 | N5: Successful | O5: 2017-05-12 | R5: P
A6: 4 | B6: 2017-05-09 | C6: GBPINR MAY FUT | D6: Buy | E6: 83.774 | F6: 83.37 | G6: 83.37 | H6: 84.77 | I6: Loss of Rs 0.40/- | K6: -0.40 | L6: -404 | M6: 1000 | N6: Unsuccessful | O6: 2017-05-11 | R6: P
A7: 5 | B7: 2017-05-11 | C7: USDINR MAY FUT | D7: Buy | E7: 64.6555 | F7: 64.55 | G7: 64.55 | H7: 64.86 | I7: Loss of Rs.0.1055/- | K7: -0.1055 | L7: =K7*M7 -> -105.50 | M7: 1000 | N7: Unsuccessful | O7: 2017-05-11 | R7: P
A8: 6 | B8: 2017-05-15 | C8: USDINR MAY FUT | D8: Buy | E8: 64.2275 | F8: 64.08 | G8: 64.46 | H8: 64.48 | I8: Profit of Rs 0.23/- | K8: 0.23 | L8: 232.5 | M8: 1000 | N8: Successful | O8: 2017-05-18 | R8: P
A9: 7 | B9: 2017-05-19 | C9: USDINR MAY FUT | D9: Sell | E9: 64.83 | F9: 65 | G9: 65 | H9: 64.5 | I9: Loss of Rs.0.17/- | K9: -0.17 | L9: -170 | M9: 1000 | N9: Unsuccessful | O9: 2017-05-19 | R9: P
A10: 8 | B10: 2017-05-23 | C10: USDINR MAY FUT | D10: Buy | E10: 64.83 | F10: 64.62 | G10: 64.95 | H10: 65.2 | I10: Profit of Rs 0.12/- | K10: 0.12 | L10: 120 | M10: 1000 | N10: Successful | O10: 2017-05-24 | R10: P
A11: 9 | B11: 2017-05-25 | C11: USDINR MAY FUT | D11: Buy | E11: 64.57 | F11: 64.25 | G11: 64.56 | H11: 65 | I11: Loss of Rs.0.01/- | K11: -0.01 | L11: -10 | M11: 1000 | N11: Neutral | O11: 2017-05-29 | R11: P
A12: 10 | B12: 2017-05-30 | C12: USDINR JUN FUT | D12: Buy | E12: 64.9125 | F12: 64.71 | G12: 64.71 | H12: 65.31 | I12: Loss of Rs.0.20/- | K12: -0.20 | L12: -202.5 | M12: 1000 | N12: Unsuccessful | O12: 2017-05-31 | R12: P
A13: 11 | B13: 2017-06-01 | C13: USDINR JUN FUT | D13: Buy | E13: 64.655 | F13: 64.45 | G13: 64.45 | H13: 65.05 | I13: Loss of Rs.0.20/- | K13: =G13-E13 -> -0.20 | L13: =K13*M13 -> -205 | M13: 1000.00 | N13: Unsuccessful | O13: 2017-06-08 | R13: P
A14: 12 | B14: 2017-06-12 | C14: USDINR JUN FUT | D14: Buy | E14: 64.45 | F14: 64 | G14: 64.7625 | H14: 65.2 | I14: Profit of Rs 0.31/- | K14: 0.31 | L14: 312.5 | M14: 1000 | N14: Successful | O14: 2017-06-16
A15: 13 | B15: 2017-06-16 | C15: USDINR JUN FUT | D15: Buy | E15: 64.51 | F15: 64.2 | G15: 64.7 | H15: 65.11 | I15: Profit of Rs 0.19/- | K15: 0.19 | L15: 190 | M15: 1000 | N15: Successful | O15: 2017-06-21
A16: 14 | B16: 2017-06-22 | C16: USDINR JUN FUT | D16: Buy | E16: 64.56 | F16: 64.2 | G16: 64.2 | H16: 65.1 | I16: Loss of Rs.0.36/- | K16: -0.36 | L16: -360 | M16: 1000.00 | N16: Unsuccessful | O16: 2017-06-30
A17: 15 | B17: 2017-07-10 | C17: USDINR JUL FUT | D17: Buy | E17: 64.67 | F17: 64.4 | G17: 64.4 | H17: 65.15 | I17: Loss of Rs.0.27/- | K17: -0.27 | L17: -270 | M17: 1000.00 | N17: Unsuccessful | O17: 2017-07-31
A18: 16 | B18: 2017-08-02 | C18: USDINR AUG FUT | D18: Buy | E18: 64.235 | F18: 63.98 | G18: 63.98 | H18: 64.75 | I18: Loss of Rs.0.26/- | K18: -0.26 | L18: -255 | M18: 1000.00 | N18: Unsuccessful | O18: 2017-08-02
A19: 17 | B19: 2017-08-08 | C19: USDINR AUG FUT | D19: Buy | E19: 63.9425 | F19: 63.6 | G19: 64.15 | H19: 64.5 | I19: Profit of Rs 0.21/- | K19: 0.21 | L19: 207.5 | M19: 1000 | N19: Successful | O19: 2017-08-10
A20: 18 | B20: 2017-08-22 | C20: USDINR AUG FUT | D20: Buy | E20: 64.1175 | F20: 63.9 | G20: 64.01 | H20: 64.5 | I20: Loss of Rs.0.11/- | K20: =G20-E20 -> -0.11 | L20: =K20*M20 -> -107.5 | M20: 1000.00 | N20: Unsuccessful | O20: 2017-08-29
A21: 19 | B21: 2017-09-01 | C21: USDINR SEP FUT | D21: Buy | E21: 64.1 | F21: 63.8 | G21: 64.205 | H21: 64.7 | I21: Profit of Rs 0.11/- | K21: 0.11 | L21: 105 | M21: 1000 | N21: Successful | O21: 2017-09-01
A22: 20 | B22: 2017-09-04 | C22: USDINR SEP FUT | D22: Buy | E22: 64.095 | F22: 63.8 | G22: 64.195 | H22: 64.7 | I22: Profit of Rs 0.10/- | K22: 0.10 | L22: =K22*M22 -> 100 | M22: 1000 | N22: Successful | O22: 2017-09-04
A23: 21 | B23: 2017-09-05 | C23: USDINR SEP FUT | D23: Buy | E23: 64.25 | F23: 64 | G23: 64.355 | H23: 64.75 | I23: Profit of Rs 0.11/- | K23: =G23-E23 -> 0.11 | L23: =K23*M23 -> 105 | M23: 1000 | N23: Successful | O23: 2017-09-06
A24: 22 | B24: 2017-09-06 | C24: USDINR SEP FUT | D24: Sell | E24: 64.365 | F24: 64.5 | G24: 64.265 | H24: 64 | I24: Profit of Rs 0.10/- | K24: =E24-G24 -> 0.10 | L24: 100 | M24: 1000 | N24: Successful | O24: 2017-09-06
A25: 23 | B25: 2017-09-07 | C25: USDINR SEP FUT | D25: Buy | E25: 64.145 | F25: 63.9 | G25: 64.2565 | H25: 64.65 | I25: Profit of Rs 0.11/- | K25: =G25-E25 -> 0.11 | L25: =K25*M25 -> 111.5 | M25: 1000 | N25: Successful | O25: 2017-09-14
A26: 24 | B26: 2017-09-11 | C26: JPYINR SEP FUT | D26: Sell | E26: 59.0285 | F26: 59.25 | G26: 58.645 | H26: 58.5 | I26: Profit of Rs 0.38/- | K26: =E26-G26 -> 0.38 | L26: 383.5 | M26: 1000 | N26: Successful | O26: 2017-09-12
A27: 25 | B27: 2017-09-14 | C27: USDINR SEP FUT | D27: Buy | E27: 64.145 | F27: 63.95 | G27: 64.26 | H27: 64.5 | I27: Profit of Rs 0.12/- | K27: =G27-E27 -> 0.12 | L27: 115 | M27: 1000 | N27: Successful | O27: 2017-09-19
A28: 26 | B28: 2017-09-20 | C28: USDINR SEP FUT | D28: Buy | E28: 64.3515 | F28: 64.15 | G28: 64.57 | H28: 64.75 | I28: Profit of Rs 0.22/- | K28: =G28-E28 -> 0.22 | L28: =K28*M28 -> 218.5 | M28: 1000 | N28: Successful | O28: 2017-09-21
A29: 27 | B29: 2017-09-21 | C29: USDINR SEP FUT | D29: Sell | E29: 64.795 | F29: 65.05 | G29: 65.05 | H29: 64.4 | I29: Loss of Rs.0.17/- | K29: -0.17 | L29: -170 | M29: 1000.00 | N29: Unsuccessful | O29: 2017-09-22
A30: 28 | B30: 2017-09-25 | C30: USDINR SEP FUT | D30: Buy | E30: 64.77 | F30: 64.4 | G30: 64.92 | H30: 65.1 | I30: Profit of Rs 0.15/- | K30: =G30-E30 -> 0.15 | L30: =K30*M30 -> 150 | M30: 1000 | N30: Successful | O30: 2017-09-25
A31: 29 | B31: 2017-09-25 | C31: USDINR SEP FUT | D31: Sell | E31: 65.1077 | F31: 65.3 | G31: 65.3 | H31: 64.5 | I31: Loss of Rs.0.19/- | K31: -0.19 | L31: -190 | M31: 1000.00 | N31: Unsuccessful | O31: 2017-09-26
A32: 30 | B32: 2017-09-27 | C32: USDINR SEP FUT | D32: Sell | E32: 65.7225 | F32: 65.83 | G32: 65.7 | H32: 65.52 | I32: Profit of Rs 0.02/- | K32: =E32-G32 -> 0.02 | L32: =K32*M32 -> 22.5 | M32: 1000 | N32: Neutral | O32: 2017-09-27
A33: 31 | B33: 2017-09-27 | C33: USDINR OCT FUT | D33: Sell | E33: 66 | F33: 66.5 | G33: 65.895 | H33: 65 | I33: Profit of Rs 0.11/- | K33: =E33-G33 -> 0.11 | L33: 105 | M33: 1000 | N33: Successful | O33: 2017-09-27
A34: 32 | B34: 2017-09-28 | C34: USDINR OCT FUT | D34: Sell | E34: 66.075 | F34: 66.3 | G34: 65.96 | H34: 65.4 | I34: Profit of Rs 0.12/- | K34: =E34-G34 -> 0.12 | L34: =K34*M34 -> 115 | M34: 1000 | N34: Successful | O34: 2017-09-28
A35: 33 | B35: 2017-09-29 | C35: GBPINR OCT fut | D35: Buy | E35: 87.745 | F35: 87.5 | G35: 87.84 | H35: 88.25 | I35: Profit of Rs 0.09/- | K35: =G35-E35 -> 0.09 | L35: 95 | M35: 1000 | N35: Successful | O35: 2017-09-29
A36: 34 | B36: 2017-09-29 | C36: USDINR OCT FUT | D36: Buy | E36: 65.514 | F36: 65.25 | G36: 65.85 | H36: 66 | I36: Profit of Rs 0.34/- | K36: 0.34 | L36: =K36*M36 -> 336 | M36: 1000 | N36: Successful | O36: 2017-10-03
A37: 35 | B37: 2017-10-09 | C37: USDINR OCT FUT | D37: Buy | E37: 65.48 | F37: 65.23 | G37: 65.5775 | H37: 65.95 | I37: Profit of Rs 0.10/- | K37: =G37-E37 -> 0.10 | L37: =K37*M37 -> 97.5 | M37: 1000 | N37: Successful | O37: 2017-10-09
A38: 36 | B38: 2017-10-10 | C38: USDINR OCT FUT | D38: Buy | E38: 65.41 | F38: 65.15 | G38: 65.5075 | H38: 66 | I38: Profit of Rs 0.10/- | K38: 0.10 | L38: 97.5 | M38: 1000 | N38: Successful | O38: 2017-10-10
A39: 37 | B39: 2017-10-11 | C39: USDINR OCT FUT | D39: Buy | E39: 65.38 | F39: 65.13 | G39: 65.13 | H39: 65.88 | I39: Loss of Rs.0.25/- | K39: -0.25 | L39: -250 | M39: 1000.00 | N39: Unsuccessful | O39: 2017-10-13
A40: 38 | B40: 2017-10-16 | C40: USDINR OCT FUT | D40: Buy | E40: 64.7925 | F40: 64.54 | G40: 64.905 | H40: 65.3 | I40: Profit of Rs 0.11/- | K40: =G40-E40 -> 0.11 | L40: =K40*M40 -> 112.5 | M40: 1000 | N40: Successful | O40: 2017-10-17
A41: 39 | B41: 2017-10-23 | C41: USDINR OCT FUT | D41: Buy | E41: 65.115 | F41: 64.85 | G41: 65.21 | H41: 65.5 | I41: Profit of Rs 0.09/- | K41: =G41-E41 -> 0.09 | L41: =K41*M41 -> 95 | M41: 1000 | N41: Successful | O41: 2017-10-25
A42: 40 | B42: 2017-10-23 | C42: JPYINR OCT FUT | D42: Buy | E42: 57.285 | F42: 57.03 | G42: 57.38 | H42: 58.4 | I42: Profit of Rs 0.10/- | K42: =G42-E42 -> 0.10 | L42: =K42*M42 -> 95 | M42: 1000 | N42: Successful | O42: 2017-10-23
A43: 41 | B43: 2017-10-26 | C43: USDINR OCT FUT | D43: Buy | E43: 64.755 | F43: 64.5 | G43: 64.87 | H43: 65.25 | I43: Profit of Rs 0.12/- | K43: 0.12 | L43: 115 | M43: 1000 | N43: Successful | O43: 2017-10-25
A44: 42 | B44: 2017-10-30 | C44: USDINR NOV FUT | D44: Buy | E44: 65.035 | F44: 64.79 | G44: 64.79 | H44: 65.5 | I44: Loss of Rs.0.24/- | K44: -0.24 | L44: -245 | M44: 1000.00 | N44: Unsuccessful | O44: 2017-11-01
A45: 43 | B45: 2017-11-01 | C45: JPYINR NOV FUT | D45: Buy | E45: 56.9875 | F45: 56.73 | G45: 57.0959 | H45: 57.5 | I45: Profit of Rs 0.11/- | K45: =G45-E45 -> 0.11 | L45: =K45*M45 -> 108.4 | M45: 1000 | N45: Successful | O45: 2017-11-07
A46: 44 | B46: 2017-11-02 | C46: USDINR NOV FUT | D46: Buy | E46: 64.7838 | F46: 64.5 | G46: 64.89 | H46: 65.25 | I46: Profit of Rs 0.11/- | K46: =G46-E46 -> 0.11 | L46: =K46*M46 -> 106.2 | M46: 1000 | N46: Successful | O46: 2017-11-06
A47: 45 | B47: 2017-11-08 | C47: USDINR NOV FUT | D47: Buy | E47: 65.1363 | F47: 64.8375 | G47: 65.235 | H47: 65.73 | I47: Profit of Rs 0.10/- | K47: =G47-E47 -> 0.10 | L47: =K47*M47 -> 98.7 | M47: 1000 | N47: Successful | O47: 2017-11-10
A48: 46 | B48: 2017-11-08 | C48: GBPINR NOV FUT | D48: Buy | E48: 85.4983 | F48: 85.25 | G48: 85.6 | H48: 86 | I48: Profit of Rs 0.10/- | K48: =G48-E48 -> 0.10 | L48: =K48*M48 -> 101.7 | M48: 1000 | N48: Successful | O48: 2017-11-09
A49: 47 | B49: 2017-11-16 | C49: EURINR NOV FUT | D49: Buy | E49: 76.8975 | F49: 76.3975 | G49: 76.3975 | H49: 77.8975 | I49: Loss of Rs.0.50/- | K49: =G49-E49 -> -0.50 | L49: -500 | M49: 1000.00 | N49: Unsuccessful | O49: 2017-11-01
A50: 48 | B50: 2017-11-16 | C50: JPYINR NOV FUT | D50: Buy | E50: 57.6625 | F50: 57.2675 | G50: 57.8075 | H50: 58.6675 | I50: Profit of Rs 0.14/- | K50: =G50-E50 -> 0.14 | L50: =K50*M50 -> 145 | M50: 1000 | N50: Successful | O50: 2017-11-17
A51: 49 | B51: 2017-11-22 | C51: EURINR NOV FUT | D51: Buy | E51: 76.175 | F51: 75.95 | G51: 76.335 | H51: 76.6 | I51: Profit of Rs 0.16/- | K51: 0.16 | L51: =K51*M51 -> 160 | M51: 1000 | N51: Successful | O51: 2017-11-22
A52: 50 | B52: 2017-11-22 | C52: USDINR NOV FUT | D52: Buy | E52: 64.87 | F52: 64.5 | G52: 64.5 | H52: 65.5 | I52: Loss of Rs.0.37/- | K52: -0.37 | L52: -370 | M52: 1000.00 | N52: Unsuccessful | O52: 2017-11-27
A53: 51 | B53: 2017-11-28 | C53: GBPINR DEC FUT | D53: Buy | E53: 86.17 | F53: 85.85 | G53: 86.46 | H53: 87 | I53: Profit of Rs 0.29/- | K53: 0.29 | L53: =K53*M53 -> 290 | M53: 1000 | N53: Successful | O53: 2017-11-29
A54: 52 | B54: 2017-11-28 | C54: JPYINR DEC FUT | D54: Buy | E54: 58.16 | F54: 57.85 | G54: 57.85 | H54: 58.6 | I54: Loss of Rs.0.31/- | K54: -0.31 | L54: -310 | M54: 1000.00 | N54: Unsuccessful | O54: 2017-11-29
A55: 53 | B55: 2017-11-28 | C55: USDINR DEC FUT | D55: Buy | E55: 64.63 | F55: 64.13 | G55: 64.13 | H55: 65.63 | I55: Loss of Rs.0.50/- | K55: -0.50 | L55: =K55*M55 -> -500 | M55: 1000.00 | N55: Unsuccessful | O55: 2017-12-15
A56: 54 | B56: 2017-11-28 | C56: EURINR DEC FUT | D56: Buy | E56: 76.93 | F56: 76.43 | G56: 76.43 | H56: 77.93 | I56: Loss of Rs.0.50/- | K56: =G56-E56 -> -0.50 | L56: =K56*M56 -> -500 | M56: 1000.00 | N56: Unsuccessful | O56: 2017-11-29
A57: 55 | B57: 2017-12-12 | C57: EURINR DEC FUT | D57: Buy | E57: 76.105 | F57: 75.7 | G57: 76.27 | H57: 76.8 | I57: Profit of Rs 0.16/- | K57: =G57-E57 -> 0.16 | L57: 165 | M57: 1000 | N57: Successful | O57: 2017-12-14
A58: 56 | B58: 2017-12-12 | C58: JPYINR DEC FUT | D58: Buy | E58: 56.975 | F58: 56.7 | G58: 57.21 | H58: 57.6 | I58: Profit of Rs 0.23/- | K58: =G58-E58 -> 0.23 | L58: =K58*M58 -> 235 | M58: 1000 | N58: Successful | O58: 2017-12-14

Sheet Sheet2 (hidden)
A1: SYMBOL | B1: SERIES | C1: OPEN | D1: HIGH | E1: LOW | F1: CLOSE | G1: LAST | H1: PREVCLOSE | I1: TOTTRDQTY | J1: TOTTRDVAL | K1: TIMESTAMP | L1: TOTALTRADES | M1: ISIN | N1: ISIN
A2: 20MICRONS | B2: EQ | C2: 37.8 | D2: 40 | E2: 35.7 | F2: 36.85 | G2: 39 | H2: 37.9 | I2: 196860 | J2: 7321015.65 | K2: 2018-06-06 | L2: 1513 | M2: INE144J01027
A3: 21STCENMGM | B3: EQ | C3: 36 | D3: 36 | E3: 36 | F3: 36 | G3: 36 | H3: 36.3 | I3: 16 | J3: 576 | K3: 2018-06-06 | L3: 1 | M3: INE253B01015
A4: 3IINFOTECH | B4: EQ | C4: 4.35 | D4: 4.5 | E4: 4.3 | F4: 4.4 | G4: 4.45 | H4: 4.45 | I4: 1088154 | J4: 4801841.7 | K4: 2018-06-06 | L4: 650 | M4: INE748C01020
A5: 3MINDIA | B5: EQ | C5: 18680 | D5: 18699.15 | E5: 18251 | F5: 18398.35 | G5: 18549.95 | H5: 18601.3 | I5: 2532 | J5: 46785974.05 | K5: 2018-06-06 | L5: 699 | M5: INE470A01017
A6: 3PLAND | B6: EQ | C6: 13.95 | D6: 14.25 | E6: 12.9 | F6: 13.35 | G6: 14.25 | H6: 13.95 | I6: 2375 | J6: 32226.7 | K6: 2018-06-06 | L6: 28 | M6: INE105C01023
A7: 5PAISA | B7: EQ | C7: 350.5 | D7: 368.05 | E7: 336.4 | F7: 368.05 | G7: 368.05 | H7: 350.55 | I7: 5721 | J7: 2062618.7 | K7: 2018-06-06 | L7: 356 | M7: INE618L01018
A8: 63MOONS | B8: EQ | C8: 66.1 | D8: 70.5 | E8: 65.05 | F8: 69.2 | G8: 69 | H8: 67.25 | I8: 205470 | J8: 14014429.8 | K8: 2018-06-06 | L8: 3309 | M8: INE111B01023
A9: 8KMILES | B9: EQ | C9: 505 | D9: 549.5 | E9: 503 | F9: 538.55 | G9: 541.5 | H9: 504.95 | I9: 466286 | J9: 248085076.5 | K9: 2018-06-06 | L9: 17737 | M9: INE650K01021
A10: A2ZINFRA | B10: EQ | C10: 20.3 | D10: 21.9 | E10: 20 | F10: 21.75 | G10: 21.5 | H10: 20.35 | I10: 415850 | J10: 8846297.45 | K10: 2018-06-06 | L10: 2576 | M10: INE619I01012
A11: AARTIDRUGS | B11: EQ | C11: 516.5 | D11: 534 | E11: 510 | F11: 531.05 | G11: 533.65 | H11: 513.35 | I11: 6148 | J11: 3217026.2 | K11: 2018-06-06 | L11: 511 | M11: INE767A01016
A12: AARTIIND | B12: EQ | C12: 1178.1 | D12: 1180.05 | E12: 1150.1 | F12: 1155.8 | G12: 1165 | H12: 1171.05 | I12: 35612 | J12: 41147136.9 | K12: 2018-06-06 | L12: 5689 | M12: INE769A01020
A13: AARVEEDEN | B13: EQ | C13: 34.9 | D13: 35.85 | E13: 32.1 | F13: 34.2 | G13: 34 | H13: 32.7 | I13: 5581 | J13: 188194.85 | K13: 2018-06-06 | L13: 72 | M13: INE273D01019
A14: ABAN | B14: EQ | C14: 119 | D14: 120 | E14: 115 | F14: 116.15 | G14: 115.75 | H14: 121 | I14: 1290775 | J14: 151246452.1 | K14: 2018-06-06 | L14: 13618 | M14: INE421A01028
A15: ABB | B15: EQ | C15: 1160.1 | D15: 1200 | E15: 1152.95 | F15: 1196.4 | G15: 1196.25 | H15: 1161.15 | I15: 51555 | J15: 61068893.75 | K15: 2018-06-06 | L15: 4033 | M15: INE117A01022
A16: ABBOTINDIA | B16: EQ | C16: 6357 | D16: 6485.85 | E16: 6238.15 | F16: 6441.5 | G16: 6449.95 | H16: 6357.25 | I16: 4320 | J16: 27349179.3 | K16: 2018-06-06 | L16: 1217 | M16: INE358A01014
A17: ABCAPITAL | B17: EQ | C17: 138.5 | D17: 140.4 | E17: 138.1 | F17: 139.7 | G17: 140.1 | H17: 138.2 | I17: 1238860 | J17: 172686325.3 | K17: 2018-06-06 | L17: 23246 | M17: INE674K01013
A18: ABFRL | B18: EQ | C18: 138.35 | D18: 143 | E18: 138.35 | F18: 142.35 | G18: 142.5 | H18: 139.1 | I18: 220900 | J18: 31118005.6 | K18: 2018-06-06 | L18: 2402 | M18: INE647O01011
A19: ACC | B19: EQ | C19: 1285 | D19: 1319.3 | E19: 1270.5 | F19: 1315.95 | G19: 1314.85 | H19: 1285.05 | I19: 592872 | J19: 772328295.6 | K19: 2018-06-06 | L19: 21922 | M19: INE012A01025
A20: ACCELYA | B20: EQ | C20: 1131 | D20: 1145 | E20: 1112 | F20: 1144.55 | G20: 1142 | H20: 1137.5 | I20: 1933 | J20: 2202647.2 | K20: 2018-06-06 | L20: 400 | M20: INE793A01012
A21: ACE | B21: EQ | C21: 135.35 | D21: 152.5 | E21: 135.35 | F21: 148.5 | G21: 148.35 | H21: 138.85 | I21: 1157861 | J21: 170720909.8 | K21: 2018-06-06 | L21: 14566 | M21: INE731H01025
A22: ADANIENT | B22: EQ | C22: 115.5 | D22: 119.65 | E22: 114.45 | F22: 118.25 | G22: 117.5 | H22: 115.4 | I22: 4012380 | J22: 469162019.5 | K22: 2018-06-06 | L22: 16441 | M22: INE423A01024
A23: ADANIPORTS | B23: EQ | C23: 374 | D23: 377.5 | E23: 373.35 | F23: 375.8 | G23: 376.2 | H23: 373.6 | I23: 3927114 | J23: 1474553775 | K23: 2018-06-06 | L23: 52890 | M23: INE742F01042
A24: ADANIPOWER | B24: EQ | C24: 17.5 | D24: 18.45 | E24: 17.4 | F24: 18.25 | G24: 18.4 | H24: 17.5 | I24: 19960969 | J24: 361027750 | K24: 2018-06-06 | L24: 19324 | M24: INE814H01011
A25: ADANITRANS | B25: EQ | C25: 129 | D25: 135 | E25: 125.1 | F25: 132.15 | G25: 133.45 | H25: 129.25 | I25: 692479 | J25: 90271206.1 | K25: 2018-06-06 | L25: 7322 | M25: INE931S01010
A26: ADFFOODS | B26: EQ | C26: 246 | D26: 260 | E26: 235.2 | F26: 255.2 | G26: 255.5 | H26: 246.05 | I26: 151576 | J26: 37521958 | K26: 2018-06-06 | L26: 3655 | M26: INE982B01019
A27: ADHUNIK | B27: EQ | C27: 3.5 | D27: 3.5 | E27: 3.35 | F27: 3.45 | G27: 3.45 | H27: 3.5 | I27: 4733 | J27: 16121.2 | K27: 2018-06-06 | L27: 39 | M27: INE400H01019
A28: ADHUNIKIND | B28: EQ | C28: 62.2 | D28: 62.2 | E28: 59 | F28: 60.5 | G28: 60.9 | H28: 61.35 | I28: 54631 | J28: 3282990.6 | K28: 2018-06-06 | L28: 156 | M28: INE452L01012
A29: ADLABS | B29: EQ | C29: 34.6 | D29: 35.85 | E29: 34.6 | F29: 35.65 | G29: 35.55 | H29: 35.3 | I29: 39862 | J29: 1405983.7 | K29: 2018-06-06 | L29: 357 | M29: INE172N01012
A30: ADORWELD | B30: EQ | C30: 320.9 | D30: 332 | E30: 310.45 | F30: 319 | G30: 319 | H30: 320.95 | I30: 21634 | J30: 6947803.65 | K30: 2018-06-06 | L30: 627 | M30: INE045A01017
A31: ADROITINFO | B31: EQ | C31: 28 | D31: 28.5 | E31: 28 | F31: 28.05 | G31: 28 | H31: 26.85 | I31: 6301 | J31: 177069.55 | K31: 2018-06-06 | L31: 26 | M31: INE737B01033
A32: ADSL | B32: EQ | C32: 16.05 | D32: 17.3 | E32: 16.05 | F32: 17.1 | G32: 17.3 | H32: 16.05 | I32: 15155 | J32: 250734.2 | K32: 2018-06-06 | L32: 122 | M32: INE102I01027
A33: ADVANIHOTR | B33: EQ | C33: 56 | D33: 56.4 | E33: 52.5 | F33: 53.5 | G33: 53.05 | H33: 52.55 | I33: 7033 | J33: 374796.9 | K33: 2018-06-06 | L33: 78 | M33: INE199C01026
A34: ADVENZYMES | B34: EQ | C34: 208.05 | D34: 214.95 | E34: 205 | F34: 210.65 | G34: 210.85 | H34: 208.35 | I34: 190367 | J34: 40105746.55 | K34: 2018-06-06 | L34: 5245 | M34: INE837H01020
A35: AEGISCHEM | B35: EQ | C35: 240 | D35: 249.9 | E35: 228.25 | F35: 229.9 | G35: 229.9 | H35: 241.1 | I35: 185711 | J35: 43633869.35 | K35: 2018-06-06 | L35: 6323 | M35: INE208C01025
A36: AFL | B36: EQ | C36: 52.3 | D36: 52.3 | E36: 50.25 | F36: 50.6 | G36: 50.6 | H36: 52.3 | I36: 1867 | J36: 94877.6 | K36: 2018-06-06 | L36: 22 | M36: INE020G01017
A37: AGARIND | B37: EQ | C37: 247.8 | D37: 247.8 | E37: 230 | F37: 240 | G37: 240 | H37: 236.15 | I37: 92674 | J37: 22026675.4 | K37: 2018-06-06 | L37: 113 | M37: INE204E01012
A38: AGCNET | B38: EQ | C38: 106.7 | D38: 114.25 | E38: 106.35 | F38: 110.05 | G38: 110 | H38: 110.2 | I38: 2296 | J38: 252309.2 | K38: 2018-06-06 | L38: 60 | M38: INE676A01019
A39: AGLSL | B39: EQ | C39: 90 | D39: 91.8 | E39: 82.8 | F39: 88.05 | G39: 88 | H39: 88.05 | I39: 6533 | J39: 575861.95 | K39: 2018-06-06 | L39: 73 | M39: INE517U01013
A40: AGRITECH | B40: EQ | C40: 99.95 | D40: 99.95 | E40: 94 | F40: 96.2 | G40: 95.8 | H40: 97.45 | I40: 20040 | J40: 1923819.45 | K40: 2018-06-06 | L40: 597 | M40: INE449G01018
A41: AHLEAST | B41: EQ | C41: 270 | D41: 288.95 | E41: 270 | F41: 283.1 | G41: 283.05 | H41: 283 | I41: 2805 | J41: 793865.45 | K41: 2018-06-06 | L41: 104 | M41: INE926K01017
A42: AHLUCONT | B42: EQ | C42: 342.45 | D42: 347.8 | E42: 327 | F42: 332.65 | G42: 330 | H42: 338.75 | I42: 85476 | J42: 29196070.7 | K42: 2018-06-06 | L42: 2948 | M42: INE758C01029
A43: AHLWEST | B43: BE | C43: 283.05 | D43: 310.15 | E43: 283.05 | F43: 295 | G43: 295 | H43: 295.4 | I43: 396 | J43: 117648 | K43: 2018-06-06 | L43: 9 | M43: INE915K01010
A44: AIAENG | B44: EQ | C44: 1564.3 | D44: 1564.3 | E44: 1545 | F44: 1549.85 | G44: 1545 | H44: 1554.95 | I44: 17562 | J44: 27226866.05 | K44: 2018-06-06 | L44: 1536 | M44: INE212H01026
A45: AICHAMP | B45: BE | C45: 22.05 | D45: 22.05 | E45: 22.05 | F45: 22.05 | G45: 22.05 | H45: 21 | I45: 1 | J45: 22.05 | K45: 2018-06-06 | L45: 1 | M45: INE768E01024
A46: AIFL | B46: EQ | C46: 455.5 | D46: 472.9 | E46: 452 | F46: 466.25 | G46: 466 | H46: 460.85 | I46: 324655 | J46: 151637016.6 | K46: 2018-06-06 | L46: 2150 | M46: INE428O01016
A47: AJANTPHARM | B47: EQ | C47: 914.75 | D47: 918.25 | E47: 900.5 | F47: 911.6 | G47: 915 | H47: 914.75 | I47: 162854 | J47: 148175014 | K47: 2018-06-06 | L47: 7290 | M47: INE031B01049
A48: AJMERA | B48: EQ | C48: 187.6 | D48: 210.9 | E48: 187.6 | F48: 208.7 | G48: 210.9 | H48: 189.55 | I48: 310973 | J48: 63359294.4 | K48: 2018-06-06 | L48: 6955 | M48: INE298G01027
A49: AKSHARCHEM | B49: EQ | C49: 615.05 | D49: 625 | E49: 600.1 | F49: 606.05 | G49: 605.5 | H49: 625.4 | I49: 4156 | J49: 2545795.05 | K49: 2018-06-06 | L49: 1023 | M49: INE542B01011
A50: AKSHOPTFBR | B50: EQ | C50: 28.95 | D50: 30.45 | E50: 28.5 | F50: 30.2 | G50: 30.1 | H50: 29.7 | I50: 878902 | J50: 26175600.6 | K50: 2018-06-06 | L50: 2661 | M50: INE523B01011
A51: AKZOINDIA | B51: EQ | C51: 1868 | D51: 1880 | E51: 1799.1 | F51: 1850.85 | G51: 1880 | H51: 1920.5 | I51: 20940 | J51: 38433356 | K51: 2018-06-06 | L51: 1942 | M51: INE133A01011
A52: ALANKIT | B52: EQ | C52: 27.45 | D52: 29.9 | E52: 27.3 | F52: 29.3 | G52: 29.5 | H52: 28.6 | I52: 459727 | J52: 13301846.9 | K52: 2018-06-06 | L52: 1255 | M52: INE914E01040
A53: ALBERTDAVD | B53: EQ | C53: 364.3 | D53: 379 | E53: 364.3 | F53: 377.8 | G53: 379 | H53: 371.15 | I53: 5020 | J53: 1886554.55 | K53: 2018-06-06 | L53: 61 | M53: INE155C01010
A54: ALBK | B54: EQ | C54: 39.75 | D54: 43.7 | E54: 39.45 | F54: 43.15 | G54: 43.2 | H54: 39.75 | I54: 10480287 | J54: 443278448.2 | K54: 2018-06-06 | L54: 28039 | M54: INE428A01015
A55: ALCHEM | B55: BE | C55: 6.05 | D55: 6.05 | E55: 5.75 | F55: 6.05 | G55: 6.05 | H55: 6.05 | I55: 13132 | J55: 79024.9 | K55: 2018-06-06 | L55: 29 | M55: INE964B01033
A56: ALEMBICLTD | B56: EQ | C56: 38.35 | D56: 40.5 | E56: 37.75 | F56: 40.05 | G56: 40.3 | H56: 38.05 | I56: 270852 | J56: 10699262.1 | K56: 2018-06-06 | L56: 5040 | M56: INE426A01027
A57: ALICON | B57: EQ | C57: 560 | D57: 583.95 | E57: 550.35 | F57: 579 | G57: 583.95 | H57: 557.25 | I57: 1875 | J57: 1066302.7 | K57: 2018-06-06 | L57: 199 | M57: INE062D01024
A58: ALKALI | B58: EQ | C58: 69.95 | D58: 71.6 | E58: 68 | F58: 69.35 | G58: 69 | H58: 70 | I58: 4602 | J58: 320591.25 | K58: 2018-06-06 | L58: 134 | M58: INE773I01017
A59: ALKEM | B59: EQ | C59: 1915 | D59: 1954.95 | E59: 1902 | F59: 1946.4 | G59: 1941 | H59: 1908.4 | I59: 10912 | J59: 21121879.65 | K59: 2018-06-06 | L59: 3675 | M59: INE540L01014
A60: ALKYLAMINE | B60: EQ | C60: 570.3 | D60: 625 | E60: 570 | F60: 619.8 | G60: 625 | H60: 585.4 | I60: 6712 | J60: 4049475.6 | K60: 2018-06-06 | L60: 1284 | M60: INE150B01021
A61: ALLCARGO | B61: EQ | C61: 108.25 | D61: 113.8 | E61: 105.3 | F61: 112.85 | G61: 113.5 | H61: 108.2 | I61: 288649 | J61: 32016413.9 | K61: 2018-06-06 | L61: 4824 | M61: INE418H01029
A62: ALLSEC | B62: EQ | C62: 279.2 | D62: 289.4 | E62: 277 | F62: 283.25 | G62: 283.45 | H62: 277.8 | I62: 13022 | J62: 3697975 | K62: 2018-06-06 | L62: 517 | M62: INE835G01018
A63: ALMONDZ | B63: BE | C63: 30.45 | D63: 30.45 | E63: 28.5 | F63: 30.25 | G63: 30.45 | H63: 29 | I63: 6855 | J63: 206489.5 | K63: 2018-06-06 | L63: 23 | M63: INE326B01027
A64: ALOKTEXT | B64: EQ | C64: 2.1 | D64: 2.1 | E64: 2.05 | F64: 2.1 | G64: 2.1 | H64: 2 | I64: 2434450 | J64: 5107317.9 | K64: 2018-06-06 | L64: 578 | M64: INE270A01011
A65: ALPA | B65: EQ | C65: 28.3 | D65: 28.3 | E65: 26.15 | F65: 26.95 | G65: 27.15 | H65: 26.75 | I65: 18962 | J65: 512925.75 | K65: 2018-06-06 | L65: 104 | M65: INE385I01010
A66: ALPHAGEO | B66: EQ | C66: 594.95 | D66: 649 | E66: 585.7 | F66: 626.7 | G66: 627.9 | H66: 595.75 | I66: 44354 | J66: 27659203.55 | K66: 2018-06-06 | L66: 2631 | M66: INE137C01018
A67: ALPSINDUS | B67: BE | C67: 2 | D67: 2 | E67: 1.9 | F67: 2 | G67: 2 | H67: 1.95 | I67: 2356 | J67: 4478.5 | K67: 2018-06-06 | L67: 11 | M67: INE093B01015
A68: AMARAJABAT | B68: EQ | C68: 773 | D68: 781.9 | E68: 763.5 | F68: 774.45 | G68: 774 | H68: 773.15 | I68: 453243 | J68: 351067569.8 | K68: 2018-06-06 | L68: 16033 | M68: INE885A01032
A69: AMBER | B69: EQ | C69: 1034.85 | D69: 1035 | E69: 1016.2 | F69: 1020.5 | G69: 1018.1 | H69: 1029.95 | I69: 6421 | J69: 6569953.95 | K69: 2018-06-06 | L69: 767 | M69: INE371P01015
A70: AMBIKCO | B70: EQ | C70: 1287 | D70: 1310 | E70: 1285.2 | F70: 1297.2 | G70: 1299 | H70: 1284.1 | I70: 1518 | J70: 1969697.15 | K70: 2018-06-06 | L70: 211 | M70: INE540G01014
A71: AMBUJACEM | B71: EQ | C71: 201.5 | D71: 206.8 | E71: 200.45 | F71: 204.15 | G71: 204.5 | H71: 202.05 | I71: 2884900 | J71: 589632730.7 | K71: 2018-06-06 | L71: 26947 | M71: INE079A01024
A72: AMDIND | B72: EQ | C72: 20.4 | D72: 22.3 | E72: 20.4 | F72: 22.1 | G72: 22.3 | H72: 21.45 | I72: 25429 | J72: 524601.15 | K72: 2018-06-06 | L72: 108 | M72: INE005I01014
A73: AMJLAND | B73: EQ | C73: 23.1 | D73: 26.8 | E73: 22.3 | F73: 25.55 | G73: 25.85 | H73: 23.1 | I73: 66348 | J73: 1628987.75 | K73: 2018-06-06 | L73: 207 | M73: INE606A01024
A74: AMRUTANJAN | B74: EQ | C74: 252 | D74: 261 | E74: 245.2 | F74: 258.65 | G74: 259.75 | H74: 251 | I74: 2879 | J74: 731449.05 | K74: 2018-06-06 | L74: 241 | M74: INE098F01031
A75: ANANTRAJ | B75: EQ | C75: 41.35 | D75: 44.6 | E75: 40.3 | F75: 44.15 | G75: 44.15 | H75: 41.35 | I75: 1169389 | J75: 49989102.35 | K75: 2018-06-06 | L75: 6458 | M75: INE242C01024
A76: ANDHRABANK | B76: EQ | C76: 33.45 | D76: 34.7 | E76: 33.3 | F76: 34.4 | G76: 34.45 | H76: 33.5 | I76: 3928632 | J76: 133981420 | K76: 2018-06-06 | L76: 8723 | M76: INE434A01013
A77: ANDHRACEMT | B77: EQ | C77: 9 | D77: 9.35 | E77: 9 | F77: 9.25 | G77: 9.3 | H77: 9 | I77: 79821 | J77: 735650.2 | K77: 2018-06-06 | L77: 173 | M77: INE666E01012
A78: ANDHRSUGAR | B78: EQ | C78: 348.85 | D78: 353.4 | E78: 338.3 | F78: 339.15 | G78: 338.6 | H78: 347.7 | I78: 60866 | J78: 20926849.5 | K78: 2018-06-06 | L78: 2654 | M78: INE715B01013
A79: ANGIND | B79: BE | C79: 2.85 | D79: 2.85 | E79: 2.65 | F79: 2.85 | G79: 2.85 | H79: 2.75 | I79: 3600 | J79: 10140 | K79: 2018-06-06 | L79: 9 | M79: INE017D01010
A80: ANIKINDS | B80: BE | C80: 33.8 | D80: 33.8 | E80: 31.25 | F80: 32.3 | G80: 32.4 | H80: 32.2 | I80: 6574 | J80: 208843.5 | K80: 2018-06-06 | L80: 67 | M80: INE087B01017
A81: ANSALAPI | B81: EQ | C81: 14.7 | D81: 15.35 | E81: 14.7 | F81: 15.05 | G81: 15.1 | H81: 15.2 | I81: 70708 | J81: 1064963.8 | K81: 2018-06-06 | L81: 179 | M81: INE436A01026
A82: ANSALHSG | B82: EQ | C82: 13.8 | D82: 14.3 | E82: 13.25 | F82: 14.2 | G82: 14.3 | H82: 13.95 | I82: 44654 | J82: 622833.25 | K82: 2018-06-06 | L82: 259 | M82: INE880B01015
A83: ANTGRAPHIC | B83: BE | C83: 0.65 | D83: 0.65 | E83: 0.55 | F83: 0.6 | G83: 0.6 | H83: 0.6 | I83: 36662 | J83: 23043 | K83: 2018-06-06 | L83: 30 | M83: INE414B01021
A84: APARINDS | B84: EQ | C84: 679.35 | D84: 685 | E84: 660 | F84: 681.25 | G84: 680.1 | H84: 679.35 | I84: 12488 | J84: 8427998.55 | K84: 2018-06-06 | L84: 588 | M84: INE372A01015
A85: APCL | B85: EQ | C85: 160.45 | D85: 180.95 | E85: 160 | F85: 173.55 | G85: 167.6 | H85: 160.9 | I85: 4072 | J85: 687213.45 | K85: 2018-06-06 | L85: 58 | M85: INE071F01012
A86: APCOTEXIND | B86: EQ | C86: 502.05 | D86: 509.9 | E86: 501.1 | F86: 506 | G86: 502.6 | H86: 502 | I86: 4684 | J86: 2361488.15 | K86: 2018-06-06 | L86: 214 | M86: INE116A01024
A87: APEX | B87: EQ | C87: 453 | D87: 500.6 | E87: 453 | F87: 500.6 | G87: 500.6 | H87: 476.8 | I87: 649446 | J87: 307735166.1 | K87: 2018-06-06 | L87: 13136 | M87: INE346W01013
A88: APLAPOLLO | B88: EQ | C88: 1725 | D88: 1825 | E88: 1691.65 | F88: 1789.25 | G88: 1770 | H88: 1721.15 | I88: 12545 | J88: 22296240.15 | K88: 2018-06-06 | L88: 1911 | M88: INE702C01019
A89: APLLTD | B89: EQ | C89: 416.4 | D89: 431 | E89: 416.05 | F89: 429.8 | G89: 428.05 | H89: 418.15 | I89: 21395 | J89: 9132937.05 | K89: 2018-06-06 | L89: 969 | M89: INE901L01018
A90: APOLLO | B90: EQ | C90: 175 | D90: 180.7 | E90: 173.55 | F90: 178.45 | G90: 178.4 | H90: 178.65 | I90: 18242 | J90: 3238334.3 | K90: 2018-06-06 | L90: 676 | M90: INE713T01010
A91: APOLLOHOSP | B91: EQ | C91: 944.95 | D91: 947.65 | E91: 927.6 | F91: 930.1 | G91: 933 | H91: 939.8 | I91: 251767 | J91: 235449078.6 | K91: 2018-06-06 | L91: 11851 | M91: INE437A01024
A92: APOLLOTYRE | B92: EQ | C92: 269.25 | D92: 274.5 | E92: 266.65 | F92: 273.4 | G92: 274 | H92: 269.05 | I92: 2271168 | J92: 617831480.1 | K92: 2018-06-06 | L92: 33016 | M92: INE438A01022
A93: APOLSINHOT | B93: EQ | C93: 1449 | D93: 1547 | E93: 1342.1 | F93: 1369.4 | G93: 1351.1 | H93: 1450.95 | I93: 2263 | J93: 3263040.75 | K93: 2018-06-06 | L93: 369 | M93: INE451F01016
A94: APTECHT | B94: EQ | C94: 236.5 | D94: 251.8 | E94: 231.95 | F94: 248.7 | G94: 248.5 | H94: 236.5 | I94: 598611 | J94: 146152984.4 | K94: 2018-06-06 | L94: 11482 | M94: INE266F01018
A95: ARCHIDPLY | B95: EQ | C95: 62.95 | D95: 65.3 | E95: 61.4 | F95: 63.65 | G95: 63.75 | H95: 64.8 | I95: 40461 | J95: 2570173.9 | K95: 2018-06-06 | L95: 684 | M95: INE877I01016
A96: ARCHIES | B96: BE | C96: 31.65 | D96: 31.65 | E96: 29 | F96: 29.9 | G96: 29.6 | H96: 30.3 | I96: 37078 | J96: 1104164.4 | K96: 2018-06-06 | L96: 200 | M96: INE731A01020
A97: ARCOTECH | B97: EQ | C97: 22.25 | D97: 22.35 | E97: 21 | F97: 21.25 | G97: 21.35 | H97: 22 | I97: 369751 | J97: 7996317.5 | K97: 2018-06-06 | L97: 1110 | M97: INE574I01035
A98: ARENTERP | B98: EQ | C98: 12.3 | D98: 12.3 | E98: 12.3 | F98: 12.3 | G98: 12.3 | H98: 12.9 | I98: 400 | J98: 4920 | K98: 2018-06-06 | L98: 4 | M98: INE610C01014
A99: ARIES | B99: EQ | C99: 136.4 | D99: 152.15 | E99: 134.3 | F99: 144.7 | G99: 143.25 | H99: 138.35 | I99: 43367 | J99: 6301691.3 | K99: 2018-06-06 | L99: 829 | M99: INE298I01015
A100: ARIHANT | B100: EQ | C100: 36 | D100: 36 | E100: 32.6 | F100: 33.9 | G100: 32.6 | H100: 34.3 | I100: 462 | J100: 16192.1 | K100: 2018-06-06 | L100: 12 | M100: INE413D01011
A101: ARIHANTSUP | B101: EQ | C101: 117.45 | D101: 118.35 | E101: 113.65 | F101: 115.8 | G101: 113.65 | H101: 116.3 | I101: 44269 | J101: 5070307.6 | K101: 2018-06-06 | L101: 1793 | M101: INE643K01018
A102: ARMANFIN | B102: BE | C102: 341.05 | D102: 370.5 | E102: 335.3 | F102: 370 | G102: 370 | H102: 352.9 | I102: 9599 | J102: 3524143.45 | K102: 2018-06-06 | L102: 43 | M102: INE109C01017
A103: AROGRANITE | B103: EQ | C103: 58.55 | D103: 59.9 | E103: 58.15 | F103: 59.25 | G103: 59.15 | H103: 57.95 | I103: 10270 | J103: 607301.1 | K103: 2018-06-06 | L103: 157 | M103: INE210C01013
A104: ARROWGREEN | B104: EQ | C104: 180.95 | D104: 180.95 | E104: 180.95 | F104: 180.95 | G104: 180.95 | H104: 190.45 | I104: 1299 | J104: 235054.05 | K104: 2018-06-06 | L104: 52 | M104: INE570D01018
A105: ARROWTEX | B105: EQ | C105: 30.35 | D105: 30.35 | E105: 28.05 | F105: 29.7 | G105: 30 | H105: 28.4 | I105: 14832 | J105: 432996.2 | K105: 2018-06-06 | L105: 115 | M105: INE933J01015
A106: ARSHIYA | B106: EQ | C106: 58.8 | D106: 58.8 | E106: 55.9 | F106: 56.85 | G106: 56.85 | H106: 56.95 | I106: 53697 | J106: 3053368.55 | K106: 2018-06-06 | L106: 537 | M106: INE968D01022
A107: ARSSINFRA | B107: BE | C107: 33.6 | D107: 34.75 | E107: 33.2 | F107: 34.05 | G107: 34 | H107: 34.9 | I107: 9755 | J107: 329284.55 | K107: 2018-06-06 | L107: 84 | M107: INE267I01010
A108: ARVIND | B108: EQ | C108: 384.95 | D108: 397 | E108: 380 | F108: 394.95 | G108: 395.8 | H108: 382.75 | I108: 2095338 | J108: 816304046.2 | K108: 2018-06-06 | L108: 29623 | M108: INE034A01011
A109: ARVSMART | B109: EQ | C109: 166.9 | D109: 166.9 | E109: 157.05 | F109: 162.85 | G109: 162.5 | H109: 160.2 | I109: 40665 | J109: 6608578.5 | K109: 2018-06-06 | L109: 1305 | M109: INE034S01021
A110: ASAHIINDIA | B110: EQ | C110: 330.3 | D110: 337.8 | E110: 330 | F110: 335.25 | G110: 335.25 | H110: 330.3 | I110: 21990 | J110: 7334475.5 | K110: 2018-06-06 | L110: 1188 | M110: INE439A01020
A111: ASAHISONG | B111: EQ | C111: 281.05 | D111: 284 | E111: 277 | F111: 277.9 | G111: 278 | H111: 279.35 | I111: 14926 | J111: 4174721.35 | K111: 2018-06-06 | L111: 182 | M111: INE228I01012
A112: ASAL | B112: EQ | C112: 67 | D112: 69.5 | E112: 63.05 | F112: 68.35 | G112: 69.5 | H112: 64.6 | I112: 6886 | J112: 462394.7 | K112: 2018-06-06 | L112: 103 | M112: INE900C01027
A113: ASHAPURMIN | B113: EQ | C113: 48.35 | D113: 52.45 | E113: 47.95 | F113: 50.75 | G113: 51 | H113: 49.35 | I113: 165847 | J113: 8443752.2 | K113: 2018-06-06 | L113: 1956 | M113: INE348A01023
A114: ASHIANA | B114: EQ | C114: 148.6 | D114: 152.3 | E114: 148 | F114: 151.8 | G114: 151.15 | H114: 147.25 | I114: 21168 | J114: 3185183.35 | K114: 2018-06-06 | L114: 477 | M114: INE365D01021
A115: ASHIMASYN | B115: EQ | C115: 22 | D115: 22.85 | E115: 22 | F115: 22.6 | G115: 22.75 | H115: 22.1 | I115: 17249 | J115: 388836.45 | K115: 2018-06-06 | L115: 112 | M115: INE440A01010
A116: ASHOKA | B116: EQ | C116: 229 | D116: 234.95 | E116: 225 | F116: 228.9 | G116: 232 | H116: 229.8 | I116: 132203 | J116: 30310444.55 | K116: 2018-06-06 | L116: 8140 | M116: INE442H01029
A117: ASHOKLEY | B117: EQ | C117: 147.75 | D117: 149.9 | E117: 144.5 | F117: 149.05 | G117: 149.25 | H117: 146.2 | I117: 13774065 | J117: 2034837012 | K117: 2018-06-06 | L117: 73397 | M117: INE208A01029
A118: ASIANHOTNR | B118: EQ | C118: 260 | D118: 260 | E118: 240.2 | F118: 259.9 | G118: 260 | H118: 250.5 | I118: 2157 | J118: 550088.55 | K118: 2018-06-06 | L118: 238 | M118: INE363A01022
A119: ASIANPAINT | B119: EQ | C119: 1270.9 | D119: 1270.9 | E119: 1245.05 | F119: 1262.8 | G119: 1268 | H119: 1273.6 | I119: 1211557 | J119: 1522747538 | K119: 2018-06-06 | L119: 32586 | M119: INE021A01026
A120: ASIANTILES | B120: EQ | C120: 356.4 | D120: 368.95 | E120: 351.15 | F120: 360 | G120: 360.35 | H120: 356.4 | I120: 170520 | J120: 61602236.65 | K120: 2018-06-06 | L120: 7472 | M120: INE022I01019
A121: ASPINWALL | B121: EQ | C121: 277.45 | D121: 285.1 | E121: 272 | F121: 276.45 | G121: 272 | H121: 268.85 | I121: 3407 | J121: 957830.2 | K121: 2018-06-06 | L121: 88 | M121: INE991I01015
A122: ASSAMCO | B122: EQ | C122: 3.75 | D122: 3.8 | E122: 3.65 | F122: 3.65 | G122: 3.65 | H122: 3.75 | I122: 130248 | J122: 480991.6 | K122: 2018-06-06 | L122: 137 | M122: INE442A01024
A123: ASTEC | B123: EQ | C123: 679 | D123: 699 | E123: 671.6 | F123: 689.9 | G123: 695.95 | H123: 674.45 | I123: 15024 | J123: 10295287.8 | K123: 2018-06-06 | L123: 951 | M123: INE563J01010
A124: ASTERDM | B124: EQ | C124: 175 | D124: 181.25 | E124: 175 | F124: 177.1 | G124: 181 | H124: 175.05 | I124: 515871 | J124: 91348854.3 | K124: 2018-06-06 | L124: 2451 | M124: INE914M01019
A125: ASTRAL | B125: EQ | C125: 960 | D125: 1033.95 | E125: 960 | F125: 1026.75 | G125: 1024.9 | H125: 964.4 | I125: 43357 | J125: 42937650.7 | K125: 2018-06-06 | L125: 3823 | M125: INE006I01046
A126: ASTRAMICRO | B126: EQ | C126: 95.1 | D126: 98.9 | E126: 94.1 | F126: 97.55 | G126: 98.05 | H126: 96.2 | I126: 283460 | J126: 27567545.85 | K126: 2018-06-06 | L126: 2488 | M126: INE386C01029
A127: ASTRAZEN | B127: EQ | C127: 1121 | D127: 1172 | E127: 1109.75 | F127: 1157.85 | G127: 1171.9 | H127: 1124.55 | I127: 4236 | J127: 4826777.95 | K127: 2018-06-06 | L127: 506 | M127: INE203A01020
A128: ASTRON | B128: EQ | C128: 102.45 | D128: 108.45 | E128: 102.4 | F128: 107.5 | G128: 106.9 | H128: 102.75 | I128: 98068 | J128: 10408509.15 | K128: 2018-06-06 | L128: 1829 | M128: INE646X01014
A129: ATFL | B129: EQ | C129: 626 | D129: 667.95 | E129: 621.05 | F129: 651.45 | G129: 654 | H129: 631.75 | I129: 8168 | J129: 5299298.6 | K129: 2018-06-06 | L129: 643 | M129: INE209A01019
A130: ATLANTA | B130: EQ | C130: 44.5 | D130: 49.4 | E130: 43.5 | F130: 49.4 | G130: 49.4 | H130: 44.95 | I130: 1134288 | J130: 55101250.9 | K130: 2018-06-06 | L130: 5015 | M130: INE285H01022
A131: ATLASCYCLE | B131: BE | C131: 133.5 | D131: 133.5 | E131: 128.05 | F131: 132.75 | G131: 132.8 | H131: 132.9 | I131: 5672 | J131: 749006.05 | K131: 2018-06-06 | L131: 89 | M131: INE446A01025
A132: ATUL | B132: EQ | C132: 2770 | D132: 2789.95 | E132: 2727 | F132: 2752.25 | G132: 2735 | H132: 2750.45 | I132: 4028 | J132: 11146223.7 | K132: 2018-06-06 | L132: 610 | M132: INE100A01010
A133: ATULAUTO | B133: EQ | C133: 417.9 | D133: 418.45 | E133: 411.7 | F133: 417.35 | G133: 416 | H133: 415.35 | I133: 3211 | J133: 1333132.9 | K133: 2018-06-06 | L133: 247 | M133: INE951D01028
A134: AUBANK | B134: EQ | C134: 685.65 | D134: 704.7 | E134: 684 | F134: 698.7 | G134: 697 | H134: 688.45 | I134: 69205 | J134: 48288891.4 | K134: 2018-06-06 | L134: 8024 | M134: INE949L01017
A135: AURIONPRO | B135: EQ | C135: 189 | D135: 195.95 | E135: 186.3 | F135: 189.6 | G135: 190 | H135: 189.25 | I135: 27722 | J135: 5256625.4 | K135: 2018-06-06 | L135: 655 | M135: INE132H01018
A136: AUROPHARMA | B136: EQ | C136: 530 | D136: 543.5 | E136: 530 | F136: 540.85 | G136: 541.9 | H136: 536.9 | I136: 1449260 | J136: 780008504.9 | K136: 2018-06-06 | L136: 38455 | M136: INE406A01037
A137: AUSOMENT | B137: EQ | C137: 71 | D137: 73.75 | E137: 70.8 | F137: 72.15 | G137: 71.5 | H137: 74.1 | I137: 18834 | J137: 1352635.6 | K137: 2018-06-06 | L137: 262 | M137: INE218C01016
A138: AUTOAXLES | B138: EQ | C138: 1135.1 | D138: 1199 | E138: 1105 | F138: 1130.45 | G138: 1126 | H138: 1133.1 | I138: 133551 | J138: 151546499.2 | K138: 2018-06-06 | L138: 11224 | M138: INE449A01011
A139: AUTOIND | B139: EQ | C139: 67 | D139: 67 | E139: 63.5 | F139: 65 | G139: 64.8 | H139: 66.3 | I139: 16913 | J139: 1102778.5 | K139: 2018-06-06 | L139: 252 | M139: INE718H01014
A140: AUTOLITIND | B140: EQ | C140: 56 | D140: 58.95 | E140: 52 | F140: 52.5 | G140: 52.25 | H140: 56.4 | I140: 55169 | J140: 2941217.2 | K140: 2018-06-06 | L140: 673 | M140: INE448A01013
A141: AVADHSUGAR | B141: EQ | C141: 350 | D141: 374 | E141: 338.35 | F141: 354.65 | G141: 349.9 | H141: 346.05 | I141: 101743 | J141: 36116161.05 | K141: 2018-06-06 | L141: 3472 | M141: INE349W01017
A142: AVANTIFEED | B142: EQ | C142: 1348 | D142: 1629.45 | E142: 1300 | F142: 1623.7 | G142: 1629.45 | H142: 1357.9 | I142: 1650619 | J142: 2516198904 | K142: 2018-06-06 | L142: 97694 | M142: INE871C01020
A143: AVTNPL | B143: EQ | C143: 33.25 | D143: 33.7 | E143: 32.3 | F143: 32.65 | G143: 33 | H143: 32.55 | I143: 48928 | J143: 1611525.85 | K143: 2018-06-06 | L143: 310 | M143: INE488D01021
A144: AXISBANK | B144: EQ | C144: 530 | D144: 533.8 | E144: 526.6 | F144: 531.4 | G144: 532 | H144: 530.9 | I144: 5281259 | J144: 2806168847 | K144: 2018-06-06 | L144: 62433 | M144: INE238A01034
A145: AXISCADES | B145: EQ | C145: 123.5 | D145: 126.15 | E145: 120.5 | F145: 122.1 | G145: 122.1 | H145: 124.45 | I145: 65194 | J145: 8016870 | K145: 2018-06-06 | L145: 1712 | M145: INE555B01013
A146: AXISGOLD | B146: EQ | C146: 2738 | D146: 2745 | E146: 2708.95 | F146: 2710 | G146: 2710 | H146: 2706.6 | I146: 330 | J146: 895082.05 | K146: 2018-06-06 | L146: 28 | M146: INF846K01347
A147: AXISNIFTY | B147: EQ | C147: 1041 | D147: 1079.2 | E147: 1041 | F147: 1074.59 | G147: 1074.59 | H147: 1065.28 | I147: 182 | J147: 192331.27 | K147: 2018-06-06 | L147: 11 | M147: INF846K01ZL0
A148: AYMSYNTEX | B148: EQ | C148: 54.65 | D148: 56.5 | E148: 53.75 | F148: 56 | G148: 56 | H148: 54.45 | I148: 27727 | J148: 1551615.95 | K148: 2018-06-06 | L148: 208 | M148: INE193B01039
A149: BAFNAPHARM | B149: EQ | C149: 22.2 | D149: 23.5 | E149: 21.95 | F149: 23 | G149: 23 | H149: 22.5 | I149: 19826 | J149: 447179.25 | K149: 2018-06-06 | L149: 100 | M149: INE878I01014
A150: BAGFILMS | B150: EQ | C150: 4.4 | D150: 4.85 | E150: 4.4 | F150: 4.8 | G150: 4.8 | H150: 4.45 | I150: 236871 | J150: 1106291.45 | K150: 2018-06-06 | L150: 471 | M150: INE116D01028
A151: BAJAJ-AUTO | B151: EQ | C151: 2850 | D151: 2939.4 | E151: 2833.65 | F151: 2885.25 | G151: 2890.5 | H151: 2847.55 | I151: 654288 | J151: 1896887189 | K151: 2018-06-06 | L151: 43097 | M151: INE917I01010
A152: BAJAJCORP | B152: EQ | C152: 446.5 | D152: 452 | E152: 435.6 | F152: 439.55 | G152: 438.05 | H152: 449.3 | I152: 47326 | J152: 20908836.5 | K152: 2018-06-06 | L152: 1386 | M152: INE933K01021
A153: BAJAJELEC | B153: EQ | C153: 491.7 | D153: 549 | E153: 475 | F153: 536 | G153: 536 | H153: 491.25 | I153: 1623420 | J153: 835325761.2 | K153: 2018-06-06 | L153: 40421 | M153: INE193E01025
A154: BAJAJFINSV | B154: EQ | C154: 5807 | D154: 5929.9 | E154: 5777.35 | F154: 5914.75 | G154: 5914 | H154: 5770.95 | I154: 123156 | J154: 721594549.8 | K154: 2018-06-06 | L154: 17825 | M154: INE918I01018
A155: BAJAJHIND | B155: EQ | C155: 7.2 | D155: 7.5 | E155: 6.95 | F155: 7.1 | G155: 7.05 | H155: 7.1 | I155: 3789420 | J155: 27210985.75 | K155: 2018-06-06 | L155: 3990 | M155: INE306A01021
A156: BAJAJHLDNG | B156: EQ | C156: 2759.95 | D156: 2790.05 | E156: 2728.8 | F156: 2762.8 | G156: 2762.65 | H156: 2741.75 | I156: 8238 | J156: 22690583.4 | K156: 2018-06-06 | L156: 1422 | M156: INE118A01012
A157: BAJFINANCE | B157: EQ | C157: 2122 | D157: 2172.9 | E157: 2107 | F157: 2160.65 | G157: 2168.25 | H157: 2100.6 | I157: 1802977 | J157: 3863242920 | K157: 2018-06-06 | L157: 73745 | M157: INE296A01024
A158: BALAJITELE | B158: EQ | C158: 129.75 | D158: 129.75 | E158: 122.05 | F158: 123.85 | G158: 123.2 | H158: 126.45 | I158: 224072 | J158: 28082886.75 | K158: 2018-06-06 | L158: 1358 | M158: INE794B01026
A159: BALAMINES | B159: EQ | C159: 524.05 | D159: 565.7 | E159: 506.85 | F159: 561.25 | G159: 565.7 | H159: 522.15 | I159: 51516 | J159: 27798786.15 | K159: 2018-06-06 | L159: 2386 | M159: INE050E01027
A160: BALAXI | B160: BE | C160: 14.8 | D160: 14.8 | E160: 14.8 | F160: 14.8 | G160: 14.8 | H160: 14.8 | I160: 50 | J160: 740 | K160: 2018-06-06 | L160: 1 | M160: INE618N01014
A161: BALKRISHNA | B161: EQ | C161: 68.1 | D161: 70.5 | E161: 68 | F161: 69.45 | G161: 69.95 | H161: 69.4 | I161: 6310 | J161: 435190.55 | K161: 2018-06-06 | L161: 66 | M161: INE875R01011
A162: BALKRISIND | B162: EQ | C162: 1090 | D162: 1120.3 | E162: 1090 | F162: 1099.9 | G162: 1098 | H162: 1102.3 | I162: 373378 | J162: 410389367.8 | K162: 2018-06-06 | L162: 11675 | M162: INE787D01026
A163: BALLARPUR | B163: EQ | C163: 10.25 | D163: 10.4 | E163: 9.7 | F163: 10.15 | G163: 10.2 | H163: 10 | I163: 1373883 | J163: 13878580.8 | K163: 2018-06-06 | L163: 2834 | M163: INE294A01037
A164: BALMLAWRIE | B164: EQ | C164: 214 | D164: 219 | E164: 214 | F164: 216.9 | G164: 217.85 | H164: 214.65 | I164: 54431 | J164: 11791248.85 | K164: 2018-06-06 | L164: 3715 | M164: INE164A01016
A165: BALPHARMA | B165: EQ | C165: 71.2 | D165: 73.9 | E165: 70.55 | F165: 72.55 | G165: 72.95 | H165: 71.8 | I165: 29844 | J165: 2164485.3 | K165: 2018-06-06 | L165: 327 | M165: INE083D01012
A166: BALRAMCHIN | B166: EQ | C166: 73.1 | D166: 75.5 | E166: 66.25 | F166: 67.25 | G166: 67.15 | H166: 72.25 | I166: 28967482 | J166: 2025594189 | K166: 2018-06-06 | L166: 107795 | M166: INE119A01028
A167: BANARBEADS | B167: EQ | C167: 57.7 | D167: 57.7 | E167: 51 | F167: 52.55 | G167: 52.35 | H167: 53.1 | I167: 1732 | J167: 91224.15 | K167: 2018-06-06 | L167: 65 | M167: INE655B01011
A168: BANARISUG | B168: EQ | C168: 1510 | D168: 1523.95 | E168: 1453 | F168: 1485.7 | G168: 1471.1 | H168: 1488 | I168: 76 | J168: 113577.85 | K168: 2018-06-06 | L168: 37 | M168: INE459A01010
A169: BANCOINDIA | B169: EQ | C169: 215 | D169: 221.65 | E169: 213.95 | F169: 217.8 | G169: 220.4 | H169: 214.7 | I169: 45900 | J169: 10030156.25 | K169: 2018-06-06 | L169: 1571 | M169: INE213C01025
A170: BANDHANBNK | B170: EQ | C170: 471 | D170: 503.6 | E170: 467 | F170: 495.7 | G170: 495.75 | H170: 470.05 | I170: 2580270 | J170: 1267967300 | K170: 2018-06-06 | L170: 32059 | M170: INE545U01014
A171: BANG | B171: EQ | C171: 36.55 | D171: 39.2 | E171: 36.55 | F171: 38.75 | G171: 38.3 | H171: 37.45 | I171: 4495 | J171: 172240.45 | K171: 2018-06-06 | L171: 104 | M171: INE863I01016
A172: BANKBARODA | B172: EQ | C172: 127 | D172: 131.1 | E172: 126.3 | F172: 130.25 | G172: 130.5 | H172: 127.75 | I172: 25559290 | J172: 3297359956 | K172: 2018-06-06 | L172: 131955 | M172: INE028A01039
A173: BANKBEES | B173: EQ | C173: 2668.81 | D173: 2688.94 | E173: 2660 | F173: 2680.28 | G173: 2679.55 | H173: 2672.04 | I173: 3177 | J173: 8481467.76 | K173: 2018-06-06 | L173: 187 | M173: INF732E01078
A174: BANKINDIA | B174: EQ | C174: 93.4 | D174: 96.7 | E174: 93.05 | F174: 96 | G174: 95.95 | H174: 93.4 | I174: 8978676 | J174: 854057854.3 | K174: 2018-06-06 | L174: 29736 | M174: INE084A01016
A175: BANSWRAS | B175: EQ | C175: 89.35 | D175: 96.3 | E175: 84.2 | F175: 88.55 | G175: 87.1 | H175: 86.45 | I175: 8034 | J175: 743442.85 | K175: 2018-06-06 | L175: 235 | M175: INE629D01012
A176: BARTRONICS | B176: BE | C176: 10.3 | D176: 10.7 | E176: 10 | F176: 10.15 | G176: 10.6 | H176: 10.3 | I176: 38026 | J176: 389003.4 | K176: 2018-06-06 | L176: 157 | M176: INE855F01034
A177: BASF | B177: EQ | C177: 1915 | D177: 1953.6 | E177: 1915 | F177: 1920.9 | G177: 1918 | H177: 1925.8 | I177: 13264 | J177: 25655451.05 | K177: 2018-06-06 | L177: 794 | M177: INE373A01013
A178: BASML | B178: EQ | C178: 217.8 | D178: 217.8 | E178: 200.1 | F178: 202.25 | G178: 202 | H178: 209.4 | I178: 1519 | J178: 308229 | K178: 2018-06-06 | L178: 38 | M178: INE186H01014
A179: BATAINDIA | B179: EQ | C179: 748.55 | D179: 754.95 | E179: 742.4 | F179: 750.8 | G179: 754 | H179: 747.7 | I179: 495979 | J179: 370951462.5 | K179: 2018-06-06 | L179: 20562 | M179: INE176A01028
A180: BAYERCROP | B180: EQ | C180: 4709.6 | D180: 4709.7 | E180: 4677.05 | F180: 4699.15 | G180: 4700 | H180: 4703.05 | I180: 6049 | J180: 28414224.45 | K180: 2018-06-06 | L180: 1761 | M180: INE462A01022
A181: BBL | B181: EQ | C181: 1285 | D181: 1290 | E181: 1250 | F181: 1269.2 | G181: 1274.5 | H181: 1250.55 | I181: 12850 | J181: 16343937.3 | K181: 2018-06-06 | L181: 1331 | M181: INE464A01028
A182: BBTC | B182: EQ | C182: 1416.05 | D182: 1473.7 | E182: 1386.4 | F182: 1464 | G182: 1464.1 | H182: 1423.2 | I182: 185321 | J182: 267606284.5 | K182: 2018-06-06 | L182: 8217 | M182: INE050A01025
A183: BDL | B183: EQ | C183: 390 | D183: 390.05 | E183: 384.8 | F183: 388.6 | G183: 389 | H183: 388.05 | I183: 18963 | J183: 7331037.85 | K183: 2018-06-06 | L183: 1433 | M183: INE171Z01018
A184: BEARDSELL | B184: EQ | C184: 36.35 | D184: 36.5 | E184: 35.1 | F184: 36.45 | G184: 36 | H184: 34.05 | I184: 1013 | J184: 36852.55 | K184: 2018-06-06 | L184: 19 | M184: INE520H01022
A185: BEDMUTHA | B185: BE | C185: 16.85 | D185: 17.65 | E185: 16.85 | F185: 17.65 | G185: 17.65 | H185: 16.85 | I185: 10080 | J185: 177647.9 | K185: 2018-06-06 | L185: 31 | M185: INE844K01012
A186: BEL | B186: EQ | C186: 113 | D186: 116.9 | E186: 112.75 | F186: 116.2 | G186: 116.4 | H186: 113 | I186: 6660743 | J186: 764860568.2 | K186: 2018-06-06 | L186: 75195 | M186: INE263A01024
A187: BEML | B187: EQ | C187: 835.05 | D187: 892 | E187: 826.35 | F187: 859.05 | G187: 863 | H187: 841.45 | I187: 2841022 | J187: 2427892291 | K187: 2018-06-06 | L187: 74266 | M187: INE258A01016
A188: BEPL | B188: EQ | C188: 118.9 | D188: 129.8 | E188: 118.9 | F188: 126.15 | G188: 129.4 | H188: 125.15 | I188: 3248146 | J188: 399373073.9 | K188: 2018-06-06 | L188: 17765 | M188: INE922A01025
A189: BERGEPAINT | B189: EQ | C189: 280 | D189: 285 | E189: 274.45 | F189: 282.95 | G189: 283.7 | H189: 279.45 | I189: 454687 | J189: 127306520.8 | K189: 2018-06-06 | L189: 7866 | M189: INE463A01038
A190: BFINVEST | B190: EQ | C190: 236.4 | D190: 245.2 | E190: 230.85 | F190: 238.9 | G190: 236.95 | H190: 235.6 | I190: 198443 | J190: 47488177.85 | K190: 2018-06-06 | L190: 5609 | M190: INE878K01010
A191: BFUTILITIE | B191: EQ | C191: 338 | D191: 345.95 | E191: 328 | F191: 339.1 | G191: 339.1 | H191: 337.4 | I191: 432136 | J191: 146622372.3 | K191: 2018-06-06 | L191: 9309 | M191: INE243D01012
A192: BGLOBAL | B192: BE | C192: 3.5 | D192: 3.8 | E192: 3.5 | F192: 3.8 | G192: 3.8 | H192: 3.65 | I192: 16122 | J192: 56991.5 | K192: 2018-06-06 | L192: 21 | M192: INE224M01013
A193: BGRENERGY | B193: EQ | C193: 91.25 | D193: 93.3 | E193: 90.5 | F193: 91.65 | G193: 91.6 | H193: 91.1 | I193: 156263 | J193: 14380031.5 | K193: 2018-06-06 | L193: 4627 | M193: INE661I01014
A194: BHAGERIA | B194: EQ | C194: 284 | D194: 298.75 | E194: 280 | F194: 294.35 | G194: 295.7 | H194: 282.6 | I194: 20867 | J194: 6100943.05 | K194: 2018-06-06 | L194: 925 | M194: INE354C01027
A195: BHAGYANGR | B195: EQ | C195: 38 | D195: 41.15 | E195: 36 | F195: 40.4 | G195: 40.25 | H195: 38.95 | I195: 48788 | J195: 1931666.2 | K195: 2018-06-06 | L195: 512 | M195: INE458B01036
A196: BHAGYAPROP | B196: BE | C196: 20.1 | D196: 21.35 | E196: 20.1 | F196: 21.1 | G196: 21 | H196: 21.05 | I196: 1279 | J196: 26907.5 | K196: 2018-06-06 | L196: 17 | M196: INE363W01018
A197: BHANDARI | B197: EQ | C197: 2.25 | D197: 2.4 | E197: 2.25 | F197: 2.3 | G197: 2.35 | H197: 2.35 | I197: 281941 | J197: 644286.55 | K197: 2018-06-06 | L197: 121 | M197: INE474E01029
A198: BHARATFIN | B198: EQ | C198: 1156.5 | D198: 1173.85 | E198: 1146.2 | F198: 1169.9 | G198: 1170.1 | H198: 1160 | I198: 406744 | J198: 472881607.5 | K198: 2018-06-06 | L198: 17129 | M198: INE180K01011
A199: BHARATFORG | B199: EQ | C199: 644 | D199: 652.95 | E199: 627.6 | F199: 650.15 | G199: 650 | H199: 638.25 | I199: 1524680 | J199: 976260579.5 | K199: 2018-06-06 | L199: 50392 | M199: INE465A01025
A200: BHARATGEAR | B200: EQ | C200: 153.7 | D200: 168.8 | E200: 149.5 | F200: 164.1 | G200: 165.5 | H200: 153.75 | I200: 55395 | J200: 8897027.55 | K200: 2018-06-06 | L200: 1146 | M200: INE561C01019
... 1446 more rows

Sheet Sheet1 (hidden)

Sheet Sheet3 (hidden)
